Capital or Revenue,Directorate,SERCOP High Level Category,SERCOP Detailed Category,Transaction Number,Date,Service Area,Expenses Type,Amount,Supplier Name
Revenue,Place,Planning services,Environmental Initiatives,5105638625,05.07.2017,East Wight Landscape Partnership,Consultants Fees,690.00,REDACTED PERSONAL DATA
Revenue,Adult Services,Adult Social Care,Learning Disab Supp (to be reallocated),5105640434,14.07.2017,Plean Dene,Consumable Cleaning Materials,105.00,A & M APPLIANCE CARE
Revenue,Adult Services,Adult Social Care,Central Codes (to be reallocated),5105640132,12.07.2017,Gouldings Resource Centre,Consumable Cleaning Materials,160.00,A & M APPLIANCE CARE
Revenue,Childrens Services,Children's & Education Services,Children Looked After,5105640270,12.07.2017,Beaulieu House,Minor Works,61.30,A & M APPLIANCE CARE
Capital,Adult Services,Capital,Capital,5105641383,26.07.2017,Adelaide & Gouldings Fixtures & Fittings,"Plant, Equipment & Furniture - Capital","2,780.00",A & M APPLIANCE CARE
Capital,Adult Services,Capital,Capital,5105641385,26.07.2017,Adelaide & Gouldings Fixtures & Fittings,"Plant, Equipment & Furniture - Capital","1,765.00",A & M APPLIANCE CARE
Capital,Adult Services,Capital,Capital,5105641387,26.07.2017,Adelaide & Gouldings Fixtures & Fittings,"Plant, Equipment & Furniture - Capital","4,545.00",A & M APPLIANCE CARE
Revenue,Adult Services,Adult Social Care,Central Codes (to be reallocated),5105640432,14.07.2017,Adelaide Resource Centre,Consumable Cleaning Materials,183.00,A & M APPLIANCE CARE
Revenue,Resources,Central Services,Support Services,5105638927,05.07.2017,Litigation Costs,Legal Fees - Other Parties,400.00,"COLLEGE CHAMBERS, BARRISTERS"
Revenue,Resources,Central Services,Support Services,5105638897,05.07.2017,Litigation Costs,Legal Fees - Other Parties,400.00,"COLLEGE CHAMBERS, BARRISTERS"
Revenue,Regeneration,Central Services,Support Services,5105638303,14.07.2017,"County Hall,Newport","Refuse Collection, Disposal and Recycling Costs",32.00,ALAN NEWBERY WASTE MANAGEMENT
Revenue,Childrens Services,Children's & Education Services,Other Education and Community Budget,5105640941,19.07.2017,Home to School Mainstream Transport,Taxis - Contract Hire,630.00,AMAR CABS OF NEWPORT
Revenue,Childrens Services,Children's & Education Services,Management & Support Services,5105640986,19.07.2017,"Speech, Language and Communication",Transport of Clients,684.00,AMAR EXCLUSIVES
Revenue,Childrens Services,Children's & Education Services,Special Schools & Alternative Provision,5105641026,19.07.2017,Island Learning Centre,Schools Catering Contract,216.00,AMAR EXCLUSIVES
Revenue,Childrens Services,Children's & Education Services,Special Schools & Alternative Provision,5105642482,28.07.2017,Island Learning Centre,Schools Catering Contract,180.00,AMAR EXCLUSIVES
Revenue,Childrens Services,Children's & Education Services,Management & Support Services,5105639064,05.07.2017,Specialist Teacher Advisors,Consultants Fees,350.00,ANOTHER WAY AROUND
Revenue,Childrens Services,Children's & Education Services,Management & Support Services,5105640939,21.07.2017,Specialist Teacher Advisors,Consultants Fees,350.00,ANOTHER WAY AROUND
Revenue,Childrens Services,Children's & Education Services,Management & Support Services,5105641332,21.07.2017,Specialist Teacher Advisors,Consultants Fees,350.00,ANOTHER WAY AROUND
Revenue,Childrens Services,Children's & Education Services,Management & Support Services,5105642005,28.07.2017,Specialist Teacher Advisors,Consultants Fees,200.00,ANOTHER WAY AROUND
Revenue,Childrens Services,Children's & Education Services,Management & Support Services,5105641606,26.07.2017,Specialist Teacher Advisors,Consultants Fees,350.00,ANOTHER WAY AROUND
Revenue,Childrens Services,Children's & Education Services,Management & Support Services,5105641444,21.07.2017,Specialist Teacher Advisors,Consultants Fees,350.00,ANOTHER WAY AROUND
Revenue,Childrens Services,Children's & Education Services,Management & Support Services,5105640258,12.07.2017,Pre 16 Independ. & Non-Maint. Special Schls & Independ. Specialist Provision,Taxis - Contract Hire,330.00,BEACON TAXIS
Revenue,Childrens Services,Children's & Education Services,Management & Support Services,5105640373,12.07.2017,Pre 16 Independ. & Non-Maint. Special Schls & Independ. Specialist Provision,Taxis - Contract Hire,528.00,BEACON TAXIS
Revenue,Childrens Services,Children's & Education Services,Family Support Services,5105641301,21.07.2017,Short Breaks,Charges from Independent Providers,50.00,BEBE'CINNO
Revenue,Childrens Services,Children's & Education Services,Family Support Services,5105641303,21.07.2017,Short Breaks,Charges from Independent Providers,174.80,BEBE'CINNO
Revenue,Adult Services,Adult Social Care,Central Codes (to be reallocated),5105641083,19.07.2017,Community Outreach,Vehicle Maintenance Costs,5.00,REDACTED PERSONAL DATA
Revenue,Adult Services,Adult Social Care,Central Codes (to be reallocated),5105641075,19.07.2017,Community Outreach,Vehicle Maintenance Costs,10.00,REDACTED PERSONAL DATA
Revenue,Adult Services,Adult Social Care,Central Codes (to be reallocated),5105641079,19.07.2017,Community Outreach,Vehicle Maintenance Costs,5.00,REDACTED PERSONAL DATA
Revenue,Adult Services,Adult Social Care,Central Codes (to be reallocated),5105641081,19.07.2017,Community Outreach,Vehicle Maintenance Costs,10.00,REDACTED PERSONAL DATA
Revenue,Adult Services,Adult Social Care,Central Codes (to be reallocated),5105641077,19.07.2017,Community Outreach,Vehicle Maintenance Costs,5.00,REDACTED PERSONAL DATA
Revenue,Adult Services,Adult Social Care,Central Codes (to be reallocated),5105641083,19.07.2017,Community Outreach,Vehicle Maintenance Costs,10.00,REDACTED PERSONAL DATA
Revenue,Adult Services,Adult Social Care,Central Codes (to be reallocated),5105641081,19.07.2017,Community Outreach,Vehicle Maintenance Costs,5.00,REDACTED PERSONAL DATA
Revenue,Adult Services,Adult Social Care,Central Codes (to be reallocated),5105641079,19.07.2017,Community Outreach,Vehicle Maintenance Costs,15.00,REDACTED PERSONAL DATA
Revenue,Adult Services,Adult Social Care,Central Codes (to be reallocated),5105641077,19.07.2017,Community Outreach,Vehicle Maintenance Costs,10.00,REDACTED PERSONAL DATA
Revenue,Adult Services,Adult Social Care,Central Codes (to be reallocated),5105641075,19.07.2017,Community Outreach,Vehicle Maintenance Costs,20.00,REDACTED PERSONAL DATA
Revenue,Adult Services,Adult Social Care,Central Codes (to be reallocated),5105641081,19.07.2017,Community Outreach,Vehicle Maintenance Costs,10.00,REDACTED PERSONAL DATA
Revenue,Adult Services,Adult Social Care,Central Codes (to be reallocated),5105641081,19.07.2017,Community Outreach,Vehicle Maintenance Costs,10.00,REDACTED PERSONAL DATA
Revenue,Adult Services,Adult Social Care,Central Codes (to be reallocated),5105641079,19.07.2017,Community Outreach,Vehicle Maintenance Costs,5.00,REDACTED PERSONAL DATA
Revenue,Adult Services,Adult Social Care,Central Codes (to be reallocated),5105641083,19.07.2017,Community Outreach,Vehicle Maintenance Costs,10.00,REDACTED PERSONAL DATA
Revenue,Adult Services,Adult Social Care,Central Codes (to be reallocated),5105641077,19.07.2017,Community Outreach,Vehicle Maintenance Costs,10.00,REDACTED PERSONAL DATA
Revenue,Adult Services,Adult Social Care,Central Codes (to be reallocated),5105641079,19.07.2017,Community Outreach,Vehicle Maintenance Costs,10.00,REDACTED PERSONAL DATA
Revenue,Adult Services,Adult Social Care,Central Codes (to be reallocated),5105641079,19.07.2017,Community Outreach,Vehicle Maintenance Costs,10.00,REDACTED PERSONAL DATA
Revenue,Adult Services,Adult Social Care,Central Codes (to be reallocated),5105641075,19.07.2017,Community Outreach,Vehicle Maintenance Costs,5.00,REDACTED PERSONAL DATA
Revenue,Adult Services,Adult Social Care,Central Codes (to be reallocated),5105641081,19.07.2017,Community Outreach,Vehicle Maintenance Costs,10.00,REDACTED PERSONAL DATA
Revenue,Adult Services,Adult Social Care,Central Codes (to be reallocated),5105641075,19.07.2017,Community Outreach,Vehicle Maintenance Costs,10.00,REDACTED PERSONAL DATA
Revenue,Adult Services,Adult Social Care,Central Codes (to be reallocated),5105641079,19.07.2017,Community Outreach,Vehicle Maintenance Costs,10.00,REDACTED PERSONAL DATA
Revenue,Adult Services,Adult Social Care,Central Codes (to be reallocated),5105641083,19.07.2017,Community Outreach,Vehicle Maintenance Costs,15.00,REDACTED PERSONAL DATA
Revenue,Adult Services,Adult Social Care,Central Codes (to be reallocated),5105641077,19.07.2017,Community Outreach,Vehicle Maintenance Costs,10.00,REDACTED PERSONAL DATA
Revenue,Adult Services,Adult Social Care,Central Codes (to be reallocated),5105641077,19.07.2017,Community Outreach,Vehicle Maintenance Costs,20.00,REDACTED PERSONAL DATA
Revenue,Adult Services,Adult Social Care,Central Codes (to be reallocated),5105641083,19.07.2017,Community Outreach,Vehicle Maintenance Costs,10.00,REDACTED PERSONAL DATA
Revenue,Adult Services,Adult Social Care,Central Codes (to be reallocated),5105641075,19.07.2017,Community Outreach,Vehicle Maintenance Costs,10.00,REDACTED PERSONAL DATA
Revenue,Adult Services,Adult Social Care,Central Codes (to be reallocated),5105641081,19.07.2017,Community Outreach,Vehicle Maintenance Costs,20.00,REDACTED PERSONAL DATA
Revenue,Adult Services,Adult Social Care,Central Codes (to be reallocated),5105641081,19.07.2017,Community Outreach,Vehicle Maintenance Costs,10.00,REDACTED PERSONAL DATA
Revenue,Adult Services,Adult Social Care,Central Codes (to be reallocated),5105641075,19.07.2017,Community Outreach,Vehicle Maintenance Costs,10.00,REDACTED PERSONAL DATA
Revenue,Adult Services,Adult Social Care,Central Codes (to be reallocated),5105641079,19.07.2017,Community Outreach,Vehicle Maintenance Costs,10.00,REDACTED PERSONAL DATA
Revenue,Adult Services,Adult Social Care,Central Codes (to be reallocated),5105641079,19.07.2017,Community Outreach,Vehicle Maintenance Costs,10.00,REDACTED PERSONAL DATA
Revenue,Adult Services,Adult Social Care,Central Codes (to be reallocated),5105641075,19.07.2017,Community Outreach,Vehicle Maintenance Costs,10.00,REDACTED PERSONAL DATA
Revenue,Adult Services,Adult Social Care,Central Codes (to be reallocated),5105641083,19.07.2017,Community Outreach,Vehicle Maintenance Costs,10.00,REDACTED PERSONAL DATA
Revenue,Adult Services,Adult Social Care,Central Codes (to be reallocated),5105641083,19.07.2017,Community Outreach,Vehicle Maintenance Costs,10.00,REDACTED PERSONAL DATA
Revenue,Adult Services,Adult Social Care,Central Codes (to be reallocated),5105641075,19.07.2017,Community Outreach,Vehicle Maintenance Costs,10.00,REDACTED PERSONAL DATA
Revenue,Adult Services,Adult Social Care,Central Codes (to be reallocated),5105641075,19.07.2017,Community Outreach,Vehicle Maintenance Costs,10.00,REDACTED PERSONAL DATA
Revenue,Adult Services,Adult Social Care,Central Codes (to be reallocated),5105641081,19.07.2017,Community Outreach,Vehicle Maintenance Costs,10.00,REDACTED PERSONAL DATA
Revenue,Adult Services,Adult Social Care,Central Codes (to be reallocated),5105641081,19.07.2017,Community Outreach,Vehicle Maintenance Costs,10.00,REDACTED PERSONAL DATA
Revenue,Adult Services,Adult Social Care,Central Codes (to be reallocated),5105641075,19.07.2017,Community Outreach,Vehicle Maintenance Costs,10.00,REDACTED PERSONAL DATA
Revenue,Adult Services,Adult Social Care,Central Codes (to be reallocated),5105641079,19.07.2017,Community Outreach,Vehicle Maintenance Costs,10.00,REDACTED PERSONAL DATA
Revenue,Adult Services,Adult Social Care,Central Codes (to be reallocated),5105641077,19.07.2017,Community Outreach,Vehicle Maintenance Costs,10.00,REDACTED PERSONAL DATA
Revenue,Adult Services,Adult Social Care,Central Codes (to be reallocated),5105641077,19.07.2017,Community Outreach,Vehicle Maintenance Costs,20.00,REDACTED PERSONAL DATA
Revenue,Adult Services,Adult Social Care,Central Codes (to be reallocated),5105641079,19.07.2017,Community Outreach,Vehicle Maintenance Costs,10.00,REDACTED PERSONAL DATA
Revenue,Adult Services,Adult Social Care,Central Codes (to be reallocated),5105641081,19.07.2017,Community Outreach,Vehicle Maintenance Costs,10.00,REDACTED PERSONAL DATA
Revenue,Adult Services,Adult Social Care,Central Codes (to be reallocated),5105641083,19.07.2017,Community Outreach,Vehicle Maintenance Costs,10.00,REDACTED PERSONAL DATA
Revenue,Adult Services,Adult Social Care,Central Codes (to be reallocated),5105629065,19.07.2017,Community Outreach,Vehicle Maintenance Costs,5.00,REDACTED PERSONAL DATA
Revenue,Adult Services,Adult Social Care,Central Codes (to be reallocated),5105629065,19.07.2017,Community Outreach,Vehicle Maintenance Costs,15.00,REDACTED PERSONAL DATA
Revenue,Adult Services,Adult Social Care,Central Codes (to be reallocated),5105629065,19.07.2017,Community Outreach,Vehicle Maintenance Costs,5.00,REDACTED PERSONAL DATA
Revenue,Adult Services,Adult Social Care,Central Codes (to be reallocated),5105629065,19.07.2017,Community Outreach,Vehicle Maintenance Costs,5.00,REDACTED PERSONAL DATA
Revenue,Adult Services,Adult Social Care,Central Codes (to be reallocated),5105629065,19.07.2017,Community Outreach,Vehicle Maintenance Costs,10.00,REDACTED PERSONAL DATA
Revenue,Adult Services,Adult Social Care,Central Codes (to be reallocated),5105629065,19.07.2017,Community Outreach,Vehicle Maintenance Costs,10.00,REDACTED PERSONAL DATA
Revenue,Adult Services,Adult Social Care,Central Codes (to be reallocated),5105629065,19.07.2017,Community Outreach,Vehicle Maintenance Costs,10.00,REDACTED PERSONAL DATA
Revenue,Adult Services,Adult Social Care,Central Codes (to be reallocated),5105629065,19.07.2017,Community Outreach,Vehicle Maintenance Costs,10.00,REDACTED PERSONAL DATA
Revenue,Adult Services,Adult Social Care,Central Codes (to be reallocated),5105629065,19.07.2017,Community Outreach,Vehicle Maintenance Costs,10.00,REDACTED PERSONAL DATA
Revenue,Adult Services,Adult Social Care,Central Codes (to be reallocated),5105629065,19.07.2017,Community Outreach,Vehicle Maintenance Costs,10.00,REDACTED PERSONAL DATA
Revenue,Regeneration,Housing Services,Other Council Property,5105640260,12.07.2017,Shared Ownership,Grounds Maintenance,300.00,C & J GROUND MAINTENANCE
Revenue,Regeneration,Housing Services,Other Council Property,5105640974,26.07.2017,Shared Ownership,Grounds Maintenance,90.75,C & J GROUND MAINTENANCE
Revenue,Regeneration,Central Services,Support Services,5105640974,26.07.2017,Properties  - Other Properties,Grounds Maintenance,353.50,C & J GROUND MAINTENANCE
Revenue,Regeneration,Central Services,Support Services,5105640974,26.07.2017,"Westridge, Ryde",Grounds Maintenance,825.25,C & J GROUND MAINTENANCE
Revenue,Regeneration,Central Services,Support Services,5105640974,26.07.2017,"Westridge, Ryde",Grounds Maintenance,153.00,C & J GROUND MAINTENANCE
Revenue,Regeneration,Planning services,Business Support,5105640260,12.07.2017,Somerton Industrial Park,Grounds Maintenance,400.00,C & J GROUND MAINTENANCE
Revenue,Regeneration,Planning services,Business Support,5105640260,12.07.2017,Properties Industrial Estates,Grounds Maintenance,300.00,C & J GROUND MAINTENANCE
Revenue,Childrens Services,Children's & Education Services,Special Schools & Alternative Provision,5105640260,12.07.2017,Workshop Initiative Support in Education,Grounds Maintenance,220.00,C & J GROUND MAINTENANCE
Revenue,Regeneration,Planning services,Business Support,5105640974,26.07.2017,Somerton Industrial Park,Grounds Maintenance,50.50,C & J GROUND MAINTENANCE
Revenue,Childrens Services,Children's & Education Services,Other Education and Community Budget,5105640916,19.07.2017,Home to School Mainstream Transport,Taxis - Contract Hire,175.77,MICK'S TAXI
Revenue,Childrens Services,Children's & Education Services,Other Education and Community Budget,5105641503,26.07.2017,Home to School Mainstream Transport,Taxis - Contract Hire,599.55,MICK'S TAXI
Revenue,Childrens Services,Children's & Education Services,Other Education and Community Budget,5105642427,28.07.2017,Home to College Transport - IW College,Taxis - Contract Hire,400.00,CAROLS TAXIS
Revenue,Childrens Services,Children's & Education Services,Other Education and Community Budget,5105642428,28.07.2017,Home to College Transport - IW College,Taxis - Contract Hire,360.00,CAROLS TAXIS
Revenue,Resources,Central Services,Support Services,5105640445,14.07.2017,Litigation Costs,Legal Fees - Other Parties,150.00,REDACTED PERSONAL DATA
Revenue,Childrens Services,Children's & Education Services,Management & Support Services,5105640655,14.07.2017,Pre 16 Independ. & Non-Maint. Special Schls & Independ. Specialist Provision,Transport of Clients,760.00,CLARES CABS
Revenue,Place,Cultural and Related Services,Open Spaces,5105641547,26.07.2017,Play Areas Health & Safety work,Payment to Private Contractors,"2,769.50",C N SERVICES
Revenue,Place,Cultural and Related Services,Open Spaces,5105641548,24.07.2017,Play Areas Health & Safety work,Payment to Private Contractors,-250.00,C N SERVICES
Revenue,Place,Cultural and Related Services,Open Spaces,5105641549,24.07.2017,Play Areas Health & Safety work,Payment to Private Contractors,250.00,C N SERVICES
Revenue,Place,Cultural and Related Services,Open Spaces,5105641550,24.07.2017,Play Areas Health & Safety work,Payment to Private Contractors,-250.00,C N SERVICES
Revenue,Place,Cultural and Related Services,Open Spaces,5105641551,24.07.2017,Play Areas Health & Safety work,Payment to Private Contractors,250.00,C N SERVICES
Revenue,Place,Cultural and Related Services,Open Spaces,5105641553,26.07.2017,Public Seats  (incl.Dedicated Seats),Payment to Private Contractors,"1,025.41",C N SERVICES
Revenue,Place,Cultural and Related Services,Recreation and Sport,5105641554,26.07.2017,Beach Safety & Inspection / Beach Awards,Payment to Private Contractors,152.00,C N SERVICES
Revenue,Place,Highways and Transport Services,"Airports, Harbours & Toll Facilities",5105641555,26.07.2017,Ferry Operation,Payment to Private Contractors,107.50,C N SERVICES
Revenue,Place,Environmental & Regulatory Services,Service Management and Support Services,5105641545,26.07.2017,Environment officers,Payment to Private Contractors,129.50,C N SERVICES
Revenue,Place,Cultural and Related Services,Open Spaces,5105639304,07.07.2017,Play Areas Health & Safety work,Payment to Private Contractors,"1,498.00",C N SERVICES
Revenue,Place,Cultural and Related Services,Open Spaces,5105641556,26.07.2017,Other Grounds Maintenance,Payment to Private Contractors,"1,360.54",C N SERVICES
Revenue,Place,Cultural and Related Services,Open Spaces,5105638988,07.07.2017,Other Grounds Maintenance,Payment to Private Contractors,"1,254.86",C N SERVICES
Revenue,Place,Cultural and Related Services,Open Spaces,5105638981,05.07.2017,Fort Victoria,Payment to Private Contractors,680.00,C N SERVICES
Revenue,Resources,Central Services,Support Services,5105639040,05.07.2017,Litigation Costs,Legal Fees - Other Parties,600.00,CORNERSTONE BARRISTERS
Revenue,Resources,Central Services,Support Services,5105640302,12.07.2017,Litigation Costs,Legal Fees - Other Parties,420.00,CORNERSTONE BARRISTERS
Revenue,Childrens Services,Children's & Education Services,Other Education and Community Budget,5105640398,12.07.2017,Home to College Transport - IW College,Transport of Clients,300.00,COWES TAXIS
Revenue,Place,Environmental & Regulatory Services,Service Management and Support Services,5105640386,12.07.2017,Environment officers,Payment to Private Contractors,"1,202.50",REDACTED PERSONAL DATA
Revenue,Resources,Central Services,Support Services,5105640377,12.07.2017,Litigation Costs,Legal Fees - Other Parties,400.00,REDACTED PERSONAL DATA
Revenue,Resources,Central Services,Support Services,5105640446,14.07.2017,Litigation Costs,Legal Fees - Other Parties,400.00,REDACTED PERSONAL DATA
Revenue,Resources,Central Services,Support Services,5105641036,19.07.2017,Litigation Costs,Legal Fees - Other Parties,450.00,REDACTED PERSONAL DATA
Revenue,Resources,Central Services,Support Services,5105638643,12.07.2017,Litigation Costs,Professional Services,528.43,"ST ANN'S HOSPITAL, POOLE"
Revenue,Childrens Services,Children's & Education Services,Safeguarding Children/Young Peoples Svs,5105638640,12.07.2017,Court Work & Consultancy Services,Professional Services,423.78,"ST ANN'S HOSPITAL, POOLE"
Revenue,Adult Services,Adult Social Care,Social Care Activities,5105635038,14.07.2017,DoLS/MCA,Professional Services,200.00,THE MEMORY SERVICE
Revenue,Adult Services,Adult Social Care,Social Care Activities,5105635187,14.07.2017,DoLS/MCA,Professional Services,200.00,THE MEMORY SERVICE
Revenue,Adult Services,Adult Social Care,Social Care Activities,5105635189,14.07.2017,DoLS/MCA,Professional Services,200.00,THE MEMORY SERVICE
Revenue,Adult Services,Adult Social Care,Social Care Activities,5105635206,14.07.2017,DoLS/MCA,Professional Services,200.00,THE MEMORY SERVICE
Revenue,Adult Services,Adult Social Care,Social Care Activities,5105635238,14.07.2017,DoLS/MCA,Professional Services,200.00,THE MEMORY SERVICE
Revenue,Adult Services,Adult Social Care,Social Care Activities,5105635245,14.07.2017,DoLS/MCA,Professional Services,200.00,THE MEMORY SERVICE
Revenue,Adult Services,Adult Social Care,Social Care Activities,5105637881,14.07.2017,DoLS/MCA,Professional Services,200.00,THE MEMORY SERVICE
Revenue,Adult Services,Adult Social Care,Social Care Activities,5105637858,14.07.2017,DoLS/MCA,Professional Services,200.00,THE MEMORY SERVICE
Revenue,Adult Services,Adult Social Care,Social Care Activities,5105637680,14.07.2017,DoLS/MCA,Professional Services,200.00,THE MEMORY SERVICE
Revenue,Adult Services,Adult Social Care,Social Care Activities,5105637681,14.07.2017,DoLS/MCA,Professional Services,200.00,THE MEMORY SERVICE
Revenue,Adult Services,Adult Social Care,Social Care Activities,5105637682,14.07.2017,DoLS/MCA,Professional Services,200.00,THE MEMORY SERVICE
Revenue,Adult Services,Adult Social Care,Social Care Activities,5105637683,14.07.2017,DoLS/MCA,Professional Services,200.00,THE MEMORY SERVICE
Revenue,Place,Cultural and Related Services,Recreation and Sport,5105639060,21.07.2017,The Heights,Stock Purchases,71.21,FULL SPREAD LIMITED
Revenue,Place,Cultural and Related Services,Recreation and Sport,5105641527,26.07.2017,The Heights,Stock Purchases,40.63,FULL SPREAD LIMITED
Revenue,Place,Cultural and Related Services,Recreation and Sport,5105641528,26.07.2017,The Heights,Stock Purchases,61.04,FULL SPREAD LIMITED
Revenue,Place,Cultural and Related Services,Recreation and Sport,5105640110,12.07.2017,The Heights,Stock Purchases,45.04,FULL SPREAD LIMITED
Revenue,Place,Cultural and Related Services,Recreation and Sport,5105640102,12.07.2017,The Heights,Stock Purchases,74.85,FULL SPREAD LIMITED
Revenue,Place,Cultural and Related Services,Recreation and Sport,5105640842,19.07.2017,The Heights,Stock Purchases,52.29,FULL SPREAD LIMITED
Revenue,Place,Cultural and Related Services,Recreation and Sport,5105640843,19.07.2017,The Heights,Stock Purchases,58.30,FULL SPREAD LIMITED
Revenue,Place,Cultural and Related Services,Recreation and Sport,5105640845,19.07.2017,The Heights,Stock Purchases,42.90,FULL SPREAD LIMITED
Revenue,Childrens Services,Children's & Education Services,Safeguarding Children/Young Peoples Svs,5105641413,21.07.2017,Court Work & Consultancy Services,Professional Services,311.20,GARY TAYLOR ASSOCIATES LIMITED
Revenue,Childrens Services,Children's & Education Services,Safeguarding Children/Young Peoples Svs,5105640785,14.07.2017,Court Work & Consultancy Services,Professional Services,310.83,GARY TAYLOR ASSOCIATES LIMITED
Revenue,Childrens Services,Children's & Education Services,Management & Support Services,5105640397,12.07.2017,Special Educational Needs Transport,Taxis - Contract Hire,180.00,HAYLES TAXIS
Revenue,Childrens Services,Children's & Education Services,Management & Support Services,5105641302,21.07.2017,Special Educational Needs Transport,Taxis - Contract Hire,60.00,HAYLES TAXIS
Revenue,Childrens Services,Children's & Education Services,Management & Support Services,5105641291,21.07.2017,Special Educational Needs Transport,Taxis - Contract Hire,290.00,HAYLES TAXIS
Revenue,Childrens Services,Children's & Education Services,Management & Support Services,5105641293,21.07.2017,Special Educational Needs Transport,Taxis - Contract Hire,870.00,HAYLES TAXIS
Revenue,Regeneration,Planning services,Economic Development,5105640411,14.07.2017,One Public Estate,Consultants Fees,"2,402.50",INNER CIRCLE CONSULTING LTD
Revenue,Place,Housing Services,Housing Strategy,5105640686,14.07.2017,Extra Care,Consultants Fees,"4,500.00",INNER CIRCLE CONSULTING LTD
Revenue,Regeneration,Central Services,Support Services,5105640849,19.07.2017,Strategic Assets Team,Consultants Fees,"2,800.00",ISLAND HIGHWAY & TRANSPORT
Revenue,Regeneration,Planning services,Economic Development,5105640424,14.07.2017,BAE Systems Office Block Regeneration,Consultants Fees,"1,742.50",ISLAND HIGHWAY & TRANSPORT
Capital,Adult Services,Capital,Capital,5105640847,19.07.2017,S106 Capital Projects,External Design and Supervision Fees,"3,440.00",ISLAND HIGHWAY & TRANSPORT
Capital,Place,Capital,Capital,5105640314,14.07.2017,Bus Infrastructure,External Design and Supervision Fees,400.00,ISLAND HIGHWAY & TRANSPORT
Capital,Place,Capital,Capital,5105640313,14.07.2017,Bus Infrastructure,External Design and Supervision Fees,600.00,ISLAND HIGHWAY & TRANSPORT
Revenue,Childrens Services,Children's & Education Services,Other Education and Community Budget,5105641971,26.07.2017,Complaints (Children & Families),Professional Services,363.95,REDACTED PERSONAL DATA
Revenue,Childrens Services,Children's & Education Services,Other Education and Community Budget,5105641822,26.07.2017,Specialist Cross-Council Training,Training,"1,600.00",REDACTED PERSONAL DATA
Revenue,Resources,Central Services,Support Services,5105640320,12.07.2017,Litigation Costs,Legal Fees - Other Parties,400.00,"COLLEGE CHAMBERS, BARRISTERS"
Revenue,Resources,Central Services,Support Services,5105642449,28.07.2017,Litigation Costs,Legal Fees - Other Parties,400.00,"COLLEGE CHAMBERS, BARRISTERS"
Revenue,Childrens Services,Children's & Education Services,Family Support Services,5105639408,12.07.2017,Short Breaks,Payments to Voluntary and Other Associations,274.00,REDACTED PERSONAL DATA
Revenue,Adult Services,Adult Social Care,Central Codes (to be reallocated),5105641851,26.07.2017,Community Outreach,Training,180.00,JOHN MARSH DRIVING INSTRUCTOR
Revenue,Adult Services,Adult Social Care,Learning Disab Supp (to be reallocated),5105641851,26.07.2017,31 Carter Avenue,Training,30.00,JOHN MARSH DRIVING INSTRUCTOR
Revenue,Childrens Services,Children's & Education Services,Children Looked After,5105638386,07.07.2017,Adoption Support Fund,Charges from Independent Providers,260.00,REDACTED PERSONAL DATA
Revenue,Childrens Services,Children's & Education Services,Other Education and Community Budget,5105640277,12.07.2017,Home to College Transport - IW College,Taxis - Contract Hire,368.00,REDACTED PERSONAL DATA
Revenue,Childrens Services,Children's & Education Services,Other Education and Community Budget,5105640281,12.07.2017,Home to College Transport - IW College,Taxis - Contract Hire,736.00,REDACTED PERSONAL DATA
Revenue,Childrens Services,Children's & Education Services,Other Education and Community Budget,5105640279,12.07.2017,Home to College Transport - IW College,Taxis - Contract Hire,552.00,REDACTED PERSONAL DATA
Revenue,Resources,Central Services,Support Services,5105638885,05.07.2017,Litigation Costs,Legal Fees - Other Parties,350.00,REDACTED PERSONAL DATA
Revenue,Place,Housing Services,Homelessness,5105640444,14.07.2017,Homelessness,Client Expenses,260.01,LEE ATKINS TRANSPORT
Revenue,Childrens Services,Children's & Education Services,Family Support Services,5105642223,28.07.2017,Short Breaks,Charges from Independent Providers,128.00,REDACTED PERSONAL DATA
Revenue,Childrens Services,Children's & Education Services,Special Schools & Alternative Provision,5105642499,28.07.2017,Island Learning Centre,Bought in Prof Services - Curriculum (Schools),750.00,ISLAND EQUUS
Revenue,Childrens Services,Children's & Education Services,Special Schools & Alternative Provision,5105642497,28.07.2017,Island Learning Centre,Bought in Prof Services - Curriculum (Schools),750.00,ISLAND EQUUS
Revenue,Childrens Services,Children's & Education Services,Special Schools & Alternative Provision,5105642500,28.07.2017,Island Learning Centre,Bought in Prof Services - Curriculum (Schools),"2,100.00",ISLAND EQUUS
Revenue,Place,Environmental & Regulatory Services,Coast Protection,5105638898,07.07.2017,Castle Haven Coast Protection Scheme,Payment to Private Contractors,"4,439.00",REDACTED PERSONAL DATA
Revenue,Childrens Services,Children's & Education Services,Management & Support Services,5105641926,26.07.2017,Pre 16 Independ. & Non-Maint. Special Schls & Independ. Specialist Provision,Transport of Clients,"1,102.00",MR TAXIS
Revenue,Place,Cultural and Related Services,Open Spaces,5105641627,24.07.2017,Rights of Way Operations,Payment to Private Contractors,190.00,REDACTED PERSONAL DATA
Revenue,Place,Cultural and Related Services,Open Spaces,5105641628,24.07.2017,Rights of Way Operations,Payment to Private Contractors,-190.00,REDACTED PERSONAL DATA
Revenue,Place,Cultural and Related Services,Open Spaces,5105641629,26.07.2017,Rights of Way Operations,Payment to Private Contractors,190.00,REDACTED PERSONAL DATA
Capital,Place,Capital,Capital,5105639098,07.07.2017,Rights Of Way Capital Programme,Payment to Contractors - Capital,"2,800.00",REDACTED PERSONAL DATA
Capital,Place,Capital,Capital,5105640254,12.07.2017,Rights Of Way Capital Programme,Payment to Contractors - Capital,"1,600.00",REDACTED PERSONAL DATA
Capital,Place,Capital,Capital,5105641630,26.07.2017,Rights Of Way Capital Programme,Payment to Contractors - Capital,"1,200.00",REDACTED PERSONAL DATA
Capital,Place,Capital,Capital,5105641429,21.07.2017,Rights Of Way Capital Programme,Payment to Contractors - Capital,800.00,REDACTED PERSONAL DATA
Capital,Place,Capital,Capital,5105641461,21.07.2017,Rights Of Way Capital Programme,Payment to Contractors - Capital,800.00,REDACTED PERSONAL DATA
Revenue,Childrens Services,Children's & Education Services,Other Education and Community Budget,5105639044,05.07.2017,Specialist Cross-Council Training,Training,112.00,REDACTED PERSONAL DATA
Revenue,Childrens Services,Children's & Education Services,Other Education and Community Budget,5105639045,05.07.2017,Specialist Cross-Council Training,Training,84.00,REDACTED PERSONAL DATA
Revenue,Resources,Central Services,Support Services,5105639390,07.07.2017,Legal Services Section,Sundry Office Expenses,59.97,OD CONSULTANCY LTD
Revenue,Place,Housing Services,Homelessness,5105641652,26.07.2017,Leaseholds by LA,Accommodation Costs - Leaseholder Payments,695.89,REDACTED PERSONAL DATA
Revenue,Place,Housing Services,Homelessness,5105641652,26.07.2017,Leaseholds by LA,Accommodation Costs - Leaseholder Payments,695.89,REDACTED PERSONAL DATA
Revenue,Place,Housing Services,Homelessness,5105641652,26.07.2017,Leaseholds by LA,Accommodation Costs - Leaseholder Payments,695.89,REDACTED PERSONAL DATA
Revenue,Place,Housing Services,Homelessness,5105641652,26.07.2017,Leaseholds by LA,Accommodation Costs - Leaseholder Payments,695.89,REDACTED PERSONAL DATA
Revenue,Place,Housing Services,Homelessness,5105641652,26.07.2017,Leaseholds by LA,Accommodation Costs - Leaseholder Payments,695.89,REDACTED PERSONAL DATA
Capital,Place,Capital,Capital,5105641046,19.07.2017,Cowes Floating Brdge,Payment to Contractors - Capital,"2,580.50",PREMIER SOLUTIONS
Capital,Place,Capital,Capital,5105641043,19.07.2017,Cowes Floating Brdge,Payment to Contractors - Capital,"14,366.00",PREMIER SOLUTIONS
Revenue,Regeneration,Central Services,Support Services,5105641908,26.07.2017,Strategic Assets Team,Consultants Fees,200.00,PRINCIPAL SURVEYORS LTD
Revenue,Adult Services,Adult Social Care,Commissioning & Service Delivery,5105641942,28.07.2017,Deferred Payment Fees,Professional Services,150.00,PRINCIPAL SURVEYORS LTD
Revenue,Adult Services,Adult Social Care,Commissioning & Service Delivery,5105641815,26.07.2017,Deferred Payment Fees,Professional Services,150.00,PRINCIPAL SURVEYORS LTD
Capital,Resources,Capital,Capital,5105641584,26.07.2017,Capital Receipts,External Design and Supervision Fees,250.00,PRINCIPAL SURVEYORS LTD
Revenue,Childrens Services,Children's & Education Services,Family Support Services,5105638657,30.06.2017,Short Breaks,Professional Services,80.00,R HUNT T/A H ARTS
Revenue,Childrens Services,Children's & Education Services,Special Schools & Alternative Provision,5105641415,21.07.2017,Island Learning Centre,Taxis - Contract Hire,130.00,ROUNSEVELLS TAXIS
Revenue,Adult Services,Adult Social Care,Learning Disability Suppt-adults (18-64),5105640252,14.07.2017,Learning Disability Other LT Care 18-64,Taxis - Contract Hire,400.00,ROUNSEVELLS TAXIS
Revenue,Resources,Central Services,Support Services,5105639041,05.07.2017,Litigation Costs,Legal Fees - Other Parties,400.00,"COLLEGE CHAMBERS, BARRISTERS"
Revenue,Childrens Services,Children's & Education Services,Family Support Services,5105641997,26.07.2017,S17 Disabled Children,Support Children,600.00,SCALLYWAGS FUN CLUB
Capital,Place,Capital,Capital,5105640717,14.07.2017,Cowes Floating Brdge,Payment to Contractors - Capital,"2,650.00",SHORELINE SURVEYS LIMITED
Capital,Place,Capital,Capital,5105640133,12.07.2017,Cowes Floating Brdge,Payment to Contractors - Capital,"2,650.00",SHORELINE SURVEYS LIMITED
Revenue,Adult Services,Adult Social Care,Social Care Activities,5105640772,14.07.2017,DoLS/MCA,Professional Services,"1,658.88",REDACTED PERSONAL DATA
Revenue,Adult Services,Adult Social Care,Social Care Activities,5105640878,19.07.2017,DoLS/MCA,Professional Services,"1,474.56",REDACTED PERSONAL DATA
Capital,Place,Capital,Capital,5105640238,12.07.2017,Parks and Gardens Capital,External Design and Supervision Fees,"5,188.00",SOUTH ISLAND ESTATES LTD
Revenue,Childrens Services,Children's & Education Services,Family Support Services,5105640744,14.07.2017,Short Breaks,Grants to External Bodies,59.90,SPLAT MESSY PLAY LTD
Revenue,Childrens Services,Children's & Education Services,Family Support Services,5105640745,14.07.2017,Short Breaks,Charges from Independent Providers,263.00,SPLAT MESSY PLAY LTD
Revenue,Childrens Services,Adult Social Care,Information & Early Intervention,5105638024,07.07.2017,Adult Social Care - Workforce Development,Training,535.50,ST THOMAS TRAINING
Revenue,Childrens Services,Adult Social Care,Information & Early Intervention,5105639083,21.07.2017,Adult Social Care - Workforce Development,Training,535.50,ST THOMAS TRAINING
Revenue,Childrens Services,Adult Social Care,Information & Early Intervention,5105642379,28.07.2017,Adult Social Care - Workforce Development,Training,535.50,ST THOMAS TRAINING
Revenue,Childrens Services,Children's & Education Services,Children Looked After,5105641796,28.07.2017,Leaving Care Costs,Charges from Independent Providers,211.20,NUMBER5NEWPORT
Revenue,Childrens Services,Children's & Education Services,Children Looked After,5105642259,28.07.2017,Leaving Care Costs,Charges from Independent Providers,"2,878.66",NUMBER5NEWPORT
Revenue,Childrens Services,Children's & Education Services,Children Looked After,5105642259,28.07.2017,Leaving Care Costs,Charges from Independent Providers,297.60,NUMBER5NEWPORT
Revenue,Childrens Services,Children's & Education Services,Children Looked After,5105642259,28.07.2017,Leaving Care Costs,Charges from Independent Providers,256.37,NUMBER5NEWPORT
Revenue,Childrens Services,Children's & Education Services,Children Looked After,5105638329,05.07.2017,Leaving Care Costs,Charges from Independent Providers,"2,321.50",NUMBER5NEWPORT
Revenue,Childrens Services,Children's & Education Services,Children Looked After,5105638329,05.07.2017,Leaving Care Costs,Charges from Independent Providers,240.00,NUMBER5NEWPORT
Revenue,Childrens Services,Children's & Education Services,Children Looked After,5105638329,05.07.2017,Leaving Care Costs,Charges from Independent Providers,206.75,NUMBER5NEWPORT
Revenue,Childrens Services,Children's & Education Services,Children Looked After,5105640247,12.07.2017,Purchased Residential,Charges from Independent Providers,650.00,NUMBER5NEWPORT
Revenue,Childrens Services,Children's & Education Services,Children Looked After,5105641796,28.07.2017,Purchased Residential,Charges from Independent Providers,"2,042.92",NUMBER5NEWPORT
Revenue,Childrens Services,Children's & Education Services,Services for Young People,5105640696,14.07.2017,Youth Commissioning,Payments to Voluntary and Other Associations,"1,580.00",THE VECTIS RADIO 4PS TRAINING
Revenue,Childrens Services,Children's & Education Services,Management & Support Services,5105640343,12.07.2017,Special Educational Needs Transport,Taxis - Contract Hire,420.00,THOMPSON TAXI
Revenue,Childrens Services,Children's & Education Services,Management & Support Services,5105640344,12.07.2017,Special Educational Needs Transport,Taxis - Contract Hire,240.00,THOMPSON TAXI
Revenue,Childrens Services,Children's & Education Services,Management & Support Services,5105641813,26.07.2017,Special Educational Needs Transport,Taxis - Contract Hire,140.00,THOMPSON TAXI
Revenue,Childrens Services,Children's & Education Services,Management & Support Services,5105642480,28.07.2017,Special Educational Needs Transport,Taxis - Contract Hire,164.00,THOMPSON TAXI
Revenue,Childrens Services,Children's & Education Services,Management & Support Services,5105642490,28.07.2017,Special Educational Needs Transport,Taxis - Contract Hire,140.00,THOMPSON TAXI
Revenue,Childrens Services,Children's & Education Services,Other Education and Community Budget,5105642489,28.07.2017,Home to School Mainstream Transport,Taxis - Contract Hire,750.00,THOMPSON TAXI
Revenue,Childrens Services,Children's & Education Services,Other Education and Community Budget,5105642491,28.07.2017,Home to School Mainstream Transport,Taxis - Contract Hire,340.00,THOMPSON TAXI
Revenue,Childrens Services,Children's & Education Services,Other Education and Community Budget,5105640342,12.07.2017,Home to School Mainstream Transport,Taxis - Contract Hire,380.00,THOMPSON TAXI
Revenue,Childrens Services,Children's & Education Services,Other Education and Community Budget,5105640341,12.07.2017,Home to School Mainstream Transport,Taxis - Contract Hire,550.00,THOMPSON TAXI
Revenue,Childrens Services,Children's & Education Services,Other Education and Community Budget,5105640422,14.07.2017,Home to School Mainstream Transport,Taxis - Contract Hire,"1,000.00",THOMPSON TAXI
Revenue,Childrens Services,Children's & Education Services,Management & Support Services,5105640919,19.07.2017,Special Educational Needs Transport,Taxis - Contract Hire,639.00,TJ CAR SERVICES LTD
Revenue,Childrens Services,Children's & Education Services,Management & Support Services,5105640919,19.07.2017,Special Educational Needs Transport,Taxis - Contract Hire,138.00,TJ CAR SERVICES LTD
Revenue,Childrens Services,Children's & Education Services,Management & Support Services,5105640919,19.07.2017,Special Educational Needs Transport,Taxis - Contract Hire,702.00,TJ CAR SERVICES LTD
Revenue,Childrens Services,Children's & Education Services,Special Schools & Alternative Provision,5105641323,21.07.2017,Island Learning Centre,Cleaning Contracts,"1,689.00",TOP MOPS LIMITED
Revenue,Childrens Services,Children's & Education Services,Special Schools & Alternative Provision,5105641309,21.07.2017,Island Learning Centre,Cleaning Contracts,"1,048.00",TOP MOPS LIMITED
Revenue,Childrens Services,Children's & Education Services,Special Schools & Alternative Provision,5105641322,21.07.2017,Island Learning Centre,Cleaning Contracts,50.36,TOP MOPS LIMITED
Revenue,Childrens Services,Children's & Education Services,Special Schools & Alternative Provision,5105641086,19.07.2017,Island Learning Centre,Transport of Clients,"1,408.00",UNION TAXIS
Revenue,Childrens Services,Children's & Education Services,Other Education and Community Budget,5105638635,05.07.2017,Weston Academy Closure,Security of Buildings,207.00,VECTIS GROUP SECURITY LTD
Revenue,Childrens Services,Children's & Education Services,Other Education and Community Budget,5105640122,12.07.2017,Barton Primary Sshool Disposal,Security of Buildings,507.00,VECTIS GROUP SECURITY LTD
Revenue,Childrens Services,Children's & Education Services,Other Education and Community Budget,5105640124,12.07.2017,Weston Academy Closure,Security of Buildings,212.00,VECTIS GROUP SECURITY LTD
Revenue,Childrens Services,Children's & Education Services,Other Education and Community Budget,5105640699,14.07.2017,Weston Academy Closure,Security of Buildings,252.00,VECTIS GROUP SECURITY LTD
Revenue,Childrens Services,Children's & Education Services,Special Schools & Alternative Provision,5105640761,21.07.2017,Island Learning Centre,Security of Buildings,12.00,VECTIS GROUP SECURITY LTD
Revenue,Childrens Services,Children's & Education Services,Special Schools & Alternative Provision,5105640761,21.07.2017,Island Learning Centre,Security of Buildings,15.00,VECTIS GROUP SECURITY LTD
Revenue,Childrens Services,Children's & Education Services,Other Education and Community Budget,5105640762,14.07.2017,Broadlea PS Berry Hill site (was 55909),Security of Buildings,277.00,VECTIS GROUP SECURITY LTD
Revenue,Childrens Services,Children's & Education Services,Management & Support Services,5105642298,28.07.2017,Pre 16 Independ. & Non-Maint. Special Schls & Independ. Specialist Provision,Transport of Clients,"1,080.00",W W CARS OF SEAVIEW
Revenue,Childrens Services,Children's & Education Services,Management & Support Services,5105640251,12.07.2017,Pre 16 Independ. & Non-Maint. Special Schls & Independ. Specialist Provision,Transport of Clients,"1,368.00",W W CARS OF SEAVIEW
Revenue,Childrens Services,Children's & Education Services,Management & Support Services,5105640250,12.07.2017,Pre 16 Independ. & Non-Maint. Special Schls & Independ. Specialist Provision,Transport of Clients,"1,140.00",W W CARS OF SEAVIEW
Revenue,Childrens Services,Children's & Education Services,Management & Support Services,5105640917,19.07.2017,Special Educational Needs Transport,Taxis - Contract Hire,744.00,HAVEN TAXIS & PRIVATE HIRE
Revenue,Childrens Services,Children's & Education Services,Management & Support Services,5105640914,19.07.2017,Special Educational Needs Transport,Taxis - Contract Hire,808.00,HAVEN TAXIS & PRIVATE HIRE
Revenue,Childrens Services,Children's & Education Services,Other Education and Community Budget,5105640923,21.07.2017,Home to School Mainstream Transport,Taxis - Contract Hire,"1,160.00",HAVEN TAXIS & PRIVATE HIRE
Capital,Childrens Services,Capital,Capital,5105638936,07.07.2017,Administration and Inspection Schemes,Payment to Contractors - Capital,"1,454.32",WIGHT HEATING LTD
Revenue,Place,Cultural and Related Services,Library Service,5105640644,14.07.2017,Ryde Library,Property Services - Planned Maintenance,115.00,WIGHT HEATING LTD
Revenue,Place,Fire & Rescue Services,Fire fighting and Rescue Operations,5105640389,12.07.2017,Business Support  - Fire,Property Services - Planned Maintenance,75.00,WIGHT HEATING LTD
Revenue,Regeneration,Central Services,Support Services,5105640643,14.07.2017,Non-operational buildings,Property Services - Planned Maintenance,75.00,WIGHT HEATING LTD
Revenue,Adult Services,Adult Social Care,Assistive Equipment & Technology,5105638950,05.07.2017,S75 Integrated Community Equipment Store,Fixtures and Fittings,145.35,WIGHT HEATING LTD
Revenue,Adult Services,Adult Social Care,Central Codes (to be reallocated),5105639026,05.07.2017,Gouldings Resource Centre,Property Services - Day to day Maintenance,152.67,WIGHT HEATING LTD
Revenue,Place,Cultural and Related Services,Recreation and Sport,5105641542,24.07.2017,Medina Leisure Centre,Property Services - Day to day Maintenance,352.12,WIGHT HEATING LTD
Revenue,Place,Cultural and Related Services,Recreation and Sport,5105641543,24.07.2017,Medina Leisure Centre,Property Services - Day to day Maintenance,-352.12,WIGHT HEATING LTD
Revenue,Place,Cultural and Related Services,Library Service,5105641290,21.07.2017,Cowes Library,Property Services - Planned Maintenance,75.00,WIGHT HEATING LTD
Revenue,Adult Services,Adult Social Care,Learning Disab Supp (to be reallocated),5105640645,14.07.2017,Westminster House,Property Services - Planned Maintenance,75.00,WIGHT HEATING LTD
Revenue,Place,Cultural and Related Services,Library Service,5105640402,12.07.2017,Newport Library,Property Services - Planned Maintenance,75.00,WIGHT HEATING LTD
Revenue,Regeneration,Central Services,Support Services,5105638951,05.07.2017,17 Fairlee Road,Minor Works,80.00,WIGHT HEATING LTD
Revenue,Regeneration,Central Services,Support Services,5105639025,05.07.2017,17 Fairlee Road,Minor Works,75.00,WIGHT HEATING LTD
Revenue,Childrens Services,Children's & Education Services,Special Schools & Alternative Provision,5105642037,28.07.2017,Island Learning Centre,Minor Works,45.00,WIGHT HEATING LTD
Revenue,Place,Cultural and Related Services,Library Service,5105642035,28.07.2017,Sandown Library,Property Services - Planned Maintenance,115.00,WIGHT HEATING LTD
Revenue,Place,Cultural and Related Services,Library Service,5105641560,26.07.2017,East Cowes Library,Property Services - Planned Maintenance,110.00,WIGHT HEATING LTD
Revenue,Childrens Services,Children's & Education Services,Special Schools & Alternative Provision,5105642031,28.07.2017,Island Learning Centre,Minor Works,115.00,WIGHT HEATING LTD
Revenue,Childrens Services,Children's & Education Services,Support Service & Management Costs,5105639024,05.07.2017,Childrens Centres Maintenance,Minor Works,80.00,WIGHT HEATING LTD
Revenue,Adult Services,Adult Social Care,Learning Disab Supp (to be reallocated),5105641475,21.07.2017,The Laurels,Minor Works,62.50,WIGHT HEATING LTD
Revenue,Childrens Services,Children's & Education Services,Support Service & Management Costs,5105641559,26.07.2017,Childrens Centres Maintenance,Minor Works,115.00,WIGHT HEATING LTD
Revenue,Childrens Services,Children's & Education Services,Support Service & Management Costs,5105641948,26.07.2017,Childrens Centres Maintenance,Minor Works,113.29,WIGHT HEATING LTD
Revenue,Adult Services,Adult Social Care,Central Codes (to be reallocated),5105638174,05.07.2017,Adelaide Resource Centre,Property Services - Day to day Maintenance,210.00,WIGHT HEATING LTD
Revenue,Place,Cultural and Related Services,Open Spaces,5105638989,05.07.2017,Open space lettings,Property Services - Planned Maintenance,35.00,WIGHT HEATING LTD
Revenue,Place,Environmental & Regulatory Services,"Cemetery, Cremation & Mortuary Services",5105641476,21.07.2017,Crematorium,Property Services - Planned Maintenance,132.50,WIGHT HEATING LTD
Revenue,Place,Housing Services,Homelessness,5105641669,26.07.2017,Leaseholds by LA,Accommodation Costs - Leaseholder Payments,866.67,2K PROPERTY
Revenue,Childrens Services,Children's & Education Services,Children Looked After,5105640317,12.07.2017,Purchased Fostering,Charges from Independent Providers,"4,251.65",5 FOSTERING
Revenue,Childrens Services,Children's & Education Services,Children Looked After,5105640485,14.07.2017,Special Guardianship Order Costs,Support Children,105.00,REDACTED PERSONAL DATA
Revenue,Childrens Services,Children's & Education Services,Children Looked After,5105642070,28.07.2017,Special Guardianship Order Costs,Support Children,105.00,REDACTED PERSONAL DATA
Revenue,Childrens Services,Children's & Education Services,Children Looked After,5105641131,21.07.2017,Special Guardianship Order Costs,Support Children,105.00,REDACTED PERSONAL DATA
Revenue,Childrens Services,Children's & Education Services,Children Looked After,5105639133,07.07.2017,Special Guardianship Order Costs,Support Children,105.00,REDACTED PERSONAL DATA
Revenue,Childrens Services,Children's & Education Services,Children Looked After,5105641131,21.07.2017,Special Guardianship Order Costs,Support Children,168.39,REDACTED PERSONAL DATA
Revenue,Childrens Services,Children's & Education Services,Children Looked After,5105642070,28.07.2017,Special Guardianship Order Costs,Support Children,168.39,REDACTED PERSONAL DATA
Revenue,Childrens Services,Children's & Education Services,Children Looked After,5105640485,14.07.2017,Special Guardianship Order Costs,Support Children,168.39,REDACTED PERSONAL DATA
Revenue,Childrens Services,Children's & Education Services,Children Looked After,5105639133,07.07.2017,Special Guardianship Order Costs,Support Children,168.39,REDACTED PERSONAL DATA
Revenue,Childrens Services,Children's & Education Services,Children Looked After,5105640544,14.07.2017,Leaving Care Costs,Support Children,120.89,REDACTED PERSONAL DATA
Revenue,Childrens Services,Children's & Education Services,Children Looked After,5105640544,14.07.2017,Leaving Care Costs,Support Children,68.50,REDACTED PERSONAL DATA
Revenue,Childrens Services,Children's & Education Services,Children Looked After,5105642127,28.07.2017,Leaving Care Costs,Support Children,120.89,REDACTED PERSONAL DATA
Revenue,Childrens Services,Children's & Education Services,Children Looked After,5105641190,21.07.2017,Leaving Care Costs,Support Children,120.89,REDACTED PERSONAL DATA
Revenue,Childrens Services,Children's & Education Services,Children Looked After,5105641190,21.07.2017,Leaving Care Costs,Support Children,68.50,REDACTED PERSONAL DATA
Revenue,Childrens Services,Children's & Education Services,Children Looked After,5105642127,28.07.2017,Leaving Care Costs,Support Children,68.50,REDACTED PERSONAL DATA
Revenue,Childrens Services,Children's & Education Services,Children Looked After,5105639021,05.07.2017,Leaving Care Costs,Support Children,241.78,REDACTED PERSONAL DATA
Revenue,Childrens Services,Children's & Education Services,Children Looked After,5105639021,05.07.2017,Leaving Care Costs,Support Children,137.00,REDACTED PERSONAL DATA
Revenue,Place,Housing Services,Homelessness,5105641664,26.07.2017,Leaseholds by LA,Accommodation Costs - Leaseholder Payments,510.25,REDACTED PERSONAL DATA
Revenue,Place,Housing Services,Homelessness,5105641664,26.07.2017,Leaseholds by LA,Accommodation Costs - Leaseholder Payments,510.25,REDACTED PERSONAL DATA
Revenue,Place,Housing Services,Homelessness,5105641664,26.07.2017,Leaseholds by LA,Accommodation Costs - Leaseholder Payments,510.25,REDACTED PERSONAL DATA
Revenue,Place,Housing Services,Homelessness,5105641664,26.07.2017,Leaseholds by LA,Accommodation Costs - Leaseholder Payments,510.25,REDACTED PERSONAL DATA
Revenue,Place,Housing Services,Homelessness,5105641664,26.07.2017,Leaseholds by LA,Accommodation Costs - Leaseholder Payments,510.25,REDACTED PERSONAL DATA
Revenue,Place,Housing Services,Homelessness,5105641664,26.07.2017,Leaseholds by LA,Accommodation Costs - Leaseholder Payments,510.25,REDACTED PERSONAL DATA
Revenue,Childrens Services,Children's & Education Services,Children Looked After,5105642058,28.07.2017,Adoption Costs,Support Children,225.83,REDACTED PERSONAL DATA
Revenue,Childrens Services,Children's & Education Services,Children Looked After,5105641119,21.07.2017,Adoption Costs,Support Children,225.83,REDACTED PERSONAL DATA
Revenue,Childrens Services,Children's & Education Services,Children Looked After,5105639119,07.07.2017,Adoption Costs,Support Children,225.83,REDACTED PERSONAL DATA
Revenue,Childrens Services,Children's & Education Services,Children Looked After,5105640473,14.07.2017,Adoption Costs,Support Children,225.83,REDACTED PERSONAL DATA
Revenue,Childrens Services,Children's & Education Services,Children Looked After,5105640517,14.07.2017,In-house Fostering,Boarding Out Allowances,500.00,REDACTED PERSONAL DATA
Revenue,Childrens Services,Children's & Education Services,Children Looked After,5105640517,14.07.2017,In-house Fostering,Boarding Out Allowances,500.00,REDACTED PERSONAL DATA
Revenue,Childrens Services,Children's & Education Services,Children Looked After,5105642100,28.07.2017,In-house Fostering,Boarding Out Allowances,500.00,REDACTED PERSONAL DATA
Revenue,Childrens Services,Children's & Education Services,Children Looked After,5105641163,21.07.2017,In-house Fostering,Boarding Out Allowances,500.00,REDACTED PERSONAL DATA
Revenue,Childrens Services,Children's & Education Services,Children Looked After,5105641163,21.07.2017,In-house Fostering,Boarding Out Allowances,500.00,REDACTED PERSONAL DATA
Revenue,Childrens Services,Children's & Education Services,Children Looked After,5105642100,28.07.2017,In-house Fostering,Boarding Out Allowances,500.00,REDACTED PERSONAL DATA
Revenue,Childrens Services,Children's & Education Services,Children Looked After,5105639165,07.07.2017,In-house Fostering,Boarding Out Allowances,500.00,REDACTED PERSONAL DATA
Revenue,Childrens Services,Children's & Education Services,Children Looked After,5105639165,07.07.2017,In-house Fostering,Boarding Out Allowances,500.00,REDACTED PERSONAL DATA
Capital,Childrens Services,Capital,Capital,5105641907,26.07.2017,Administration and Inspection Schemes,Payment to Contractors - Capital,"1,020.00",A M BUILDERS IW LTD
Capital,Childrens Services,Capital,Capital,5105641906,26.07.2017,Administration and Inspection Schemes,Payment to Contractors - Capital,435.00,A M BUILDERS IW LTD
Revenue,Place,Housing Services,Homelessness,5105641666,26.07.2017,Leaseholds by LA,Accommodation Costs - Leaseholder Payments,780.00,REDACTED PERSONAL DATA
Revenue,Place,Housing Services,Homelessness,5105641655,26.07.2017,Leaseholds by LA,Accommodation Costs - Leaseholder Payments,649.83,REDACTED PERSONAL DATA
Revenue,Place,Housing Services,Homelessness,5105641655,26.07.2017,Leaseholds by LA,Accommodation Costs - Leaseholder Payments,789.01,REDACTED PERSONAL DATA
Revenue,Place,Housing Services,Homelessness,5105641655,26.07.2017,Leaseholds by LA,Accommodation Costs - Leaseholder Payments,835.08,REDACTED PERSONAL DATA
Revenue,Place,Housing Services,Homelessness,5105641655,26.07.2017,Leaseholds by LA,Accommodation Costs - Leaseholder Payments,700.00,REDACTED PERSONAL DATA
Revenue,Place,Environmental & Regulatory Services,"Cemetery, Cremation & Mortuary Services",5105641567,26.07.2017,Crematorium,Property Services - Day to day Maintenance,125.00,A-1 GARAGE DOOR SPECIALISTS (IOW)
Revenue,Adult Services,Adult Social Care,Support - Memory /Cognition-older people (65+),5105640050,12.07.2017,Memory & Cognition Residential 65+,Charges from Independent Providers,"3,200.12",ABBERDALE LIMITED
Revenue,Adult Services,Adult Social Care,Support - Memory /Cognition-older people (65+),5105639532,12.07.2017,Memory & Cognition Residential 65+,Charges from Independent Providers,"1,905.96",ACACIA CARE HOME
Revenue,Adult Services,Balance Sheet,Balance Sheet,5105639532,12.07.2017,REDACTED PERSONAL DATA,Order Settlement to Bal Sht GL,"1,819.72",ACACIA CARE HOME
Revenue,Adult Services,Adult Social Care,Physical Support - older people (65+),5105640750,14.07.2017,Physical Support Residential 65+,Charges from Independent Providers,714.89,ACACIA CARE HOME
Revenue,Adult Services,Adult Social Care,Physical Support - older people (65+),5105642329,28.07.2017,Physical Support Residential 65+,Charges from Independent Providers,909.86,ACACIA CARE HOME
Revenue,Adult Services,Adult Social Care,Physical Support - older people (65+),5105639532,12.07.2017,Physical Support Residential 65+,Charges from Independent Providers,"1,905.96",ACACIA CARE HOME
Revenue,Adult Services,Adult Social Care,Social Support - Support for Carer,5105640750,14.07.2017,Carers Residential,Charges from Independent Providers,"1,089.12",ACACIA CARE HOME
Revenue,Adult Services,Adult Social Care,Physical Support - older people (65+),5105639532,12.07.2017,Physical Support Residential 65+,Charges from Independent Providers,"1,819.72",ACACIA CARE HOME
Revenue,Adult Services,Adult Social Care,Physical Support - older people (65+),5105639532,12.07.2017,Physical Support Residential 65+,Charges from Independent Providers,"1,819.72",ACACIA CARE HOME
Revenue,Adult Services,Adult Social Care,Social Support - Support for Carer,5105639532,12.07.2017,Carers Residential,Charges from Independent Providers,"1,905.96",ACACIA CARE HOME
Revenue,Adult Services,Adult Social Care,Social Support - Support for Carer,5105639427,12.07.2017,Carers Residential,Charges from Independent Providers,816.84,ACACIA CARE HOME
Revenue,Adult Services,Adult Social Care,Social Support - Support for Carer,5105639532,12.07.2017,Carers Residential,Charges from Independent Providers,816.84,ACACIA CARE HOME
Revenue,Chief Executive,Central Services,Support Services,5105640880,19.07.2017,Media,Professional Subscriptions,"1,750.00",ACCESS INTELLIGENCE MEDIA & COMMUNICATIONS LTD
Revenue,Adult Services,Adult Social Care,Learning Disab Supp (to be reallocated),5105641364,21.07.2017,Plean Dene,Interview & recruitment expenses,44.00,ACCESS PERSONAL CHECKING SERVICES LTD
Revenue,Place,Cultural and Related Services,Recreation and Sport,5105641364,21.07.2017,Medina Leisure Centre,Interview & recruitment expenses,25.00,ACCESS PERSONAL CHECKING SERVICES LTD
Revenue,Adult Services,Adult Social Care,Learning Disab Supp (to be reallocated),5105641364,21.07.2017,Plean Dene,Interview & recruitment expenses,6.00,ACCESS PERSONAL CHECKING SERVICES LTD
Revenue,Place,Cultural and Related Services,Recreation and Sport,5105641364,21.07.2017,Medina Leisure Centre,Interview & recruitment expenses,8.00,ACCESS PERSONAL CHECKING SERVICES LTD
Capital,Corporate Items,Balance Sheet,Balance Sheet,5105641364,21.07.2017,Balance Sheet,Recruitment Advertising,44.00,ACCESS PERSONAL CHECKING SERVICES LTD
Capital,Corporate Items,Balance Sheet,Balance Sheet,5105641364,21.07.2017,Balance Sheet,Recruitment Advertising,6.00,ACCESS PERSONAL CHECKING SERVICES LTD
Revenue,Resources,Central Services,Central Services to the Public,5105641364,21.07.2017,National Non Domestic Rates,Interview & recruitment expenses,25.00,ACCESS PERSONAL CHECKING SERVICES LTD
Revenue,Adult Services,Adult Social Care,Commissioning & Service Delivery,5105641364,21.07.2017,Adult Social Care Quality Assurance,Interview & recruitment expenses,78.00,ACCESS PERSONAL CHECKING SERVICES LTD
Revenue,Adult Services,Adult Social Care,Central Codes (to be reallocated),5105641364,21.07.2017,Community Outreach,Interview & recruitment expenses,176.00,ACCESS PERSONAL CHECKING SERVICES LTD
Revenue,Childrens Services,Children's & Education Services,Other Education and Community Budget,5105641364,21.07.2017,Education Welfare Service,Interview & recruitment expenses,44.00,ACCESS PERSONAL CHECKING SERVICES LTD
Revenue,Childrens Services,Children's & Education Services,Safeguarding Children/Young Peoples Svs,5105641364,21.07.2017,Disabled Childrens Team,Interview & recruitment expenses,44.00,ACCESS PERSONAL CHECKING SERVICES LTD
Revenue,Childrens Services,Children's & Education Services,Children Looked After,5105641364,21.07.2017,Beaulieu House,Interview & recruitment expenses,352.00,ACCESS PERSONAL CHECKING SERVICES LTD
Revenue,Place,Highways and Transport Services,Traffic Management and Road Safety,5105641364,21.07.2017,Road Safety,Interview & recruitment expenses,44.00,ACCESS PERSONAL CHECKING SERVICES LTD
Revenue,Resources,Central Services,Central Services to the Public,5105641364,21.07.2017,National Non Domestic Rates,Interview & recruitment expenses,8.00,ACCESS PERSONAL CHECKING SERVICES LTD
Revenue,Adult Services,Adult Social Care,Commissioning & Service Delivery,5105641364,21.07.2017,Adult Social Care Quality Assurance,Interview & recruitment expenses,18.00,ACCESS PERSONAL CHECKING SERVICES LTD
Revenue,Adult Services,Adult Social Care,Central Codes (to be reallocated),5105641364,21.07.2017,Community Outreach,Interview & recruitment expenses,24.00,ACCESS PERSONAL CHECKING SERVICES LTD
Revenue,Childrens Services,Children's & Education Services,Other Education and Community Budget,5105641364,21.07.2017,Education Welfare Service,Interview & recruitment expenses,90.00,ACCESS PERSONAL CHECKING SERVICES LTD
Revenue,Childrens Services,Children's & Education Services,Safeguarding Children/Young Peoples Svs,5105641364,21.07.2017,Disabled Childrens Team,Interview & recruitment expenses,6.00,ACCESS PERSONAL CHECKING SERVICES LTD
Revenue,Childrens Services,Children's & Education Services,Children Looked After,5105641364,21.07.2017,Beaulieu House,Interview & recruitment expenses,48.00,ACCESS PERSONAL CHECKING SERVICES LTD
Revenue,Place,Highways and Transport Services,Traffic Management and Road Safety,5105641364,21.07.2017,Road Safety,Interview & recruitment expenses,6.00,ACCESS PERSONAL CHECKING SERVICES LTD
Revenue,Childrens Services,Children's & Education Services,Safeguarding Children/Young Peoples Svs,5105641364,21.07.2017,Children In Need 1,Interview & recruitment expenses,44.00,ACCESS PERSONAL CHECKING SERVICES LTD
Revenue,Childrens Services,Children's & Education Services,Management & Support Services,5105641364,21.07.2017,"Speech, Language and Communication",Interview & recruitment expenses,44.00,ACCESS PERSONAL CHECKING SERVICES LTD
Revenue,Childrens Services,Children's & Education Services,Safeguarding Children/Young Peoples Svs,5105641364,21.07.2017,Children In Need 1,Interview & recruitment expenses,6.00,ACCESS PERSONAL CHECKING SERVICES LTD
Revenue,Childrens Services,Children's & Education Services,Management & Support Services,5105641364,21.07.2017,"Speech, Language and Communication",Interview & recruitment expenses,6.00,ACCESS PERSONAL CHECKING SERVICES LTD
Revenue,Place,Environmental & Regulatory Services,Regulatory Services,5105640315,12.07.2017,Licensing Services,Professional Services,396.00,ACCESS PERSONAL CHECKING SERVICES LTD
Revenue,Place,Environmental & Regulatory Services,Regulatory Services,5105640315,12.07.2017,Licensing Services,Professional Services,54.00,ACCESS PERSONAL CHECKING SERVICES LTD
Revenue,Adult Services,Adult Social Care,Learning Disab Supp (to be reallocated),5105641364,21.07.2017,The Laurels,Interview & recruitment expenses,44.00,ACCESS PERSONAL CHECKING SERVICES LTD
Revenue,Place,Cultural and Related Services,Recreation and Sport,5105641364,21.07.2017,The Heights,Interview & recruitment expenses,44.00,ACCESS PERSONAL CHECKING SERVICES LTD
Revenue,Childrens Services,Children's & Education Services,Youth Justice,5105641364,21.07.2017,Youth Offending Team,Interview & recruitment expenses,25.00,ACCESS PERSONAL CHECKING SERVICES LTD
Revenue,Childrens Services,Children's & Education Services,Children Looked After,5105641364,21.07.2017,In-house Fostering,Interview & recruitment expenses,440.00,ACCESS PERSONAL CHECKING SERVICES LTD
Revenue,Adult Services,Adult Social Care,Learning Disab Supp (to be reallocated),5105641364,21.07.2017,The Laurels,Interview & recruitment expenses,6.00,ACCESS PERSONAL CHECKING SERVICES LTD
Revenue,Place,Cultural and Related Services,Recreation and Sport,5105641364,21.07.2017,The Heights,Interview & recruitment expenses,14.00,ACCESS PERSONAL CHECKING SERVICES LTD
Revenue,Childrens Services,Children's & Education Services,Youth Justice,5105641364,21.07.2017,Youth Offending Team,Interview & recruitment expenses,14.00,ACCESS PERSONAL CHECKING SERVICES LTD
Revenue,Childrens Services,Children's & Education Services,Children Looked After,5105641364,21.07.2017,In-house Fostering,Interview & recruitment expenses,60.00,ACCESS PERSONAL CHECKING SERVICES LTD
Revenue,Place,Cultural and Related Services,Recreation and Sport,5105641364,21.07.2017,The Heights,Interview & recruitment expenses,25.00,ACCESS PERSONAL CHECKING SERVICES LTD
Revenue,Place,Fire & Rescue Services,Fire fighting and Rescue Operations,5105638933,05.07.2017,Fire Technical Support,Vehicle Maintenance Costs,12.00,ACCLAIM LOGISTICS LTD
Revenue,Childrens Services,Children's & Education Services,Children Looked After,5105641418,21.07.2017,Purchased Fostering,Charges from Independent Providers,"3,749.40",ACTION FOR CHILDREN
Revenue,Childrens Services,Children's & Education Services,Children Looked After,5105640202,12.07.2017,Purchased Fostering,Charges from Independent Providers,"1,249.80",ACTION FOR CHILDREN
Revenue,Childrens Services,Children's & Education Services,Children Looked After,5105640203,12.07.2017,Purchased Fostering,Charges from Independent Providers,"3,874.38",ACTION FOR CHILDREN
Revenue,Adult Services,Adult Social Care,Commissioning & Service Delivery,5105640226,12.07.2017,BCF Care Bill Implementation,Payment to Private Contractors,"43,750.00",ADAM HTT LTD
Revenue,Adult Services,Adult Social Care,Commissioning & Service Delivery,5105640224,12.07.2017,BCF Care Bill Implementation,Payment to Private Contractors,"20,000.00",ADAM HTT LTD
Revenue,Place,Fire & Rescue Services,Fire fighting and Rescue Operations,5105640115,12.07.2017,Fire Technical Support,Vehicle Maintenance Costs,40.40,ADAMS MOREY LTD
Revenue,Place,Fire & Rescue Services,Fire fighting and Rescue Operations,5105640115,12.07.2017,Fire Technical Support,Vehicle Maintenance Costs,23.75,ADAMS MOREY LTD
Revenue,Place,Fire & Rescue Services,Fire fighting and Rescue Operations,5105640115,12.07.2017,Fire Technical Support,Vehicle Maintenance Costs,7.50,ADAMS MOREY LTD
Revenue,Place,Fire & Rescue Services,Fire fighting and Rescue Operations,5105640115,12.07.2017,Fire Technical Support,Vehicle Maintenance Costs,30.30,ADAMS MOREY LTD
Revenue,Place,Fire & Rescue Services,Fire fighting and Rescue Operations,5105640115,12.07.2017,Fire Technical Support,Vehicle Maintenance Costs,9.00,ADAMS MOREY LTD
Revenue,Place,Fire & Rescue Services,Fire fighting and Rescue Operations,5105640115,12.07.2017,Fire Technical Support,Vehicle Maintenance Costs,14.00,ADAMS MOREY LTD
Revenue,Place,Fire & Rescue Services,Fire fighting and Rescue Operations,5105640115,12.07.2017,Fire Technical Support,Vehicle Maintenance Costs,19.10,ADAMS MOREY LTD
Revenue,Place,Fire & Rescue Services,Fire fighting and Rescue Operations,5105640115,12.07.2017,Fire Technical Support,Vehicle Maintenance Costs,9.00,ADAMS MOREY LTD
Revenue,Place,Fire & Rescue Services,Fire fighting and Rescue Operations,5105640261,12.07.2017,Fire Technical Support,Vehicle Maintenance Costs,291.44,ADAMS MOREY LTD
Revenue,Place,Fire & Rescue Services,Fire fighting and Rescue Operations,5105640991,19.07.2017,Fire Technical Support,Vehicle Maintenance Costs,2.48,ADAMS MOREY LTD
Revenue,Place,Fire & Rescue Services,Fire fighting and Rescue Operations,5105640991,19.07.2017,Fire Technical Support,Vehicle Maintenance Costs,12.35,ADAMS MOREY LTD
Revenue,Place,Fire & Rescue Services,Fire fighting and Rescue Operations,5105640991,19.07.2017,Fire Technical Support,Vehicle Maintenance Costs,31.32,ADAMS MOREY LTD
Revenue,Place,Fire & Rescue Services,Fire fighting and Rescue Operations,5105640991,19.07.2017,Fire Technical Support,Vehicle Maintenance Costs,8.10,ADAMS MOREY LTD
Revenue,Place,Fire & Rescue Services,Fire fighting and Rescue Operations,5105640991,19.07.2017,Fire Technical Support,Vehicle Maintenance Costs,34.00,ADAMS MOREY LTD
Revenue,Place,Fire & Rescue Services,Fire fighting and Rescue Operations,5105641295,26.07.2017,Fire Technical Support,Vehicle Maintenance Costs,-295.90,ADAMS MOREY LTD
Revenue,Place,Fire & Rescue Services,Fire fighting and Rescue Operations,5105640111,12.07.2017,Fire Technical Support,Vehicle Maintenance Costs,25.45,ADAMS MOREY LTD
Revenue,Place,Fire & Rescue Services,Fire fighting and Rescue Operations,5105640111,12.07.2017,Fire Technical Support,Vehicle Maintenance Costs,47.74,ADAMS MOREY LTD
Revenue,Place,Fire & Rescue Services,Fire fighting and Rescue Operations,5105640282,12.07.2017,Fire Technical Support,Vehicle Maintenance Costs,200.00,ADAMS MOREY LTD
Revenue,Place,Fire & Rescue Services,Fire fighting and Rescue Operations,5105640282,12.07.2017,Fire Technical Support,Vehicle Maintenance Costs,25.00,ADAMS MOREY LTD
Revenue,Place,Fire & Rescue Services,Fire fighting and Rescue Operations,5105640282,12.07.2017,Fire Technical Support,Vehicle Maintenance Costs,30.00,ADAMS MOREY LTD
Revenue,Place,Fire & Rescue Services,Fire fighting and Rescue Operations,5105640115,12.07.2017,Fire Technical Support,Vehicle Maintenance Costs,13.55,ADAMS MOREY LTD
Revenue,Childrens Services,Children's & Education Services,Management & Support Services,5105639037,12.07.2017,Education Direct Payments,Charges from Independent Providers,523.20,A-DAY CONSULTANTS LTD
Revenue,Childrens Services,Children's & Education Services,Management & Support Services,5105638183,12.07.2017,Education Direct Payments,Charges from Independent Providers,853.20,A-DAY CONSULTANTS LTD
Revenue,Childrens Services,Children's & Education Services,Management & Support Services,5105640200,12.07.2017,Education Direct Payments,Charges from Independent Providers,743.20,A-DAY CONSULTANTS LTD
Revenue,Childrens Services,Children's & Education Services,Management & Support Services,5105640970,21.07.2017,Education Direct Payments,Charges from Independent Providers,110.00,A-DAY CONSULTANTS LTD
Revenue,Childrens Services,Children's & Education Services,Management & Support Services,5105642019,28.07.2017,Education Direct Payments,Charges from Independent Providers,819.00,A-DAY CONSULTANTS LTD
Revenue,Childrens Services,Children's & Education Services,Special Schools & Alternative Provision,5105640715,14.07.2017,Island Learning Centre,Agency staff,431.20,A-DAY CONSULTANTS LTD
Revenue,Childrens Services,Children's & Education Services,Special Schools & Alternative Provision,5105640715,14.07.2017,Island Learning Centre,Agency staff,503.20,A-DAY CONSULTANTS LTD
Revenue,Childrens Services,Children's & Education Services,Special Schools & Alternative Provision,5105640706,14.07.2017,Island Learning Centre,Agency staff,532.80,A-DAY CONSULTANTS LTD
Revenue,Childrens Services,Children's & Education Services,Special Schools & Alternative Provision,5105641038,19.07.2017,Island Learning Centre,Agency staff,647.20,A-DAY CONSULTANTS LTD
Revenue,Childrens Services,Children's & Education Services,Special Schools & Alternative Provision,5105641335,21.07.2017,Island Learning Centre,Agency staff,947.20,A-DAY CONSULTANTS LTD
Revenue,Childrens Services,Children's & Education Services,Special Schools & Alternative Provision,5105641841,26.07.2017,Island Learning Centre,Agency staff,480.20,A-DAY CONSULTANTS LTD
Revenue,Childrens Services,Children's & Education Services,Special Schools & Alternative Provision,5105641421,21.07.2017,Island Learning Centre,Agency staff,970.40,A-DAY CONSULTANTS LTD
Revenue,Childrens Services,Children's & Education Services,Special Schools & Alternative Provision,5105641480,21.07.2017,Island Learning Centre,Agency staff,826.70,A-DAY CONSULTANTS LTD
Capital,Place,Capital,Capital,5105641104,21.07.2017,Coastal Capital Schemes,External Design and Supervision Fees,"4,084.00",AECOM
Revenue,Adult Services,Adult Social Care,Commissioning & Service Delivery,5105641040,26.07.2017,Learning Disability Homes Management & Admin,Publications,64.94,AGORA BUSINESS PUBLICATIONS LLP
Revenue,Regeneration,Central Services,Support Services,5105641810,26.07.2017,"Enterprise House, Newport",Property Services - Day to day Maintenance,70.00,AIRTEK SERVICES IOW LTD
Revenue,Adult Services,Adult Social Care,Central Codes (to be reallocated),5105638861,05.07.2017,Gouldings Resource Centre,Property Services - Planned Maintenance,90.00,AIRTEK SERVICES IOW LTD
Revenue,Regeneration,Central Services,Support Services,5105638862,12.07.2017,"County Hall,Newport",Property Services - Day to day Maintenance,231.00,AIRTEK SERVICES IOW LTD
Revenue,Adult Services,Adult Social Care,Learning Disability Suppt-adults (18-64),5105640023,12.07.2017,Learning Disability Residential 18-64,Charges from Independent Providers,"5,950.00",AITCH CARE HOMES (LONDON) LTD
Revenue,Childrens Services,Children's & Education Services,Safeguarding Children/Young Peoples Svs,5105640783,14.07.2017,Court Work & Consultancy Services,Professional Services,108.75,ALERE TOXICOLOGY PLC
Revenue,Childrens Services,Children's & Education Services,Safeguarding Children/Young Peoples Svs,5105641737,26.07.2017,Court Work & Consultancy Services,Professional Services,182.00,ALERE TOXICOLOGY PLC
Revenue,Resources,Highways and Transport Services,Public Transport,5105640718,14.07.2017,Transport Fleet Administration,Vehicle Fuel Costs,"8,897.88",ALLSTAR BUSINESS SOLUTIONS LTD
Revenue,Childrens Services,Children's & Education Services,Management & Support Services,5105639399,07.07.2017,Special Educational Needs Transport,Taxis - Contract Hire,-840.00,ALPHA (IOW) LTD
Revenue,Childrens Services,Children's & Education Services,Management & Support Services,5105639398,07.07.2017,Special Educational Needs Transport,Taxis - Contract Hire,840.00,ALPHA (IOW) LTD
Revenue,Childrens Services,Children's & Education Services,Management & Support Services,5105639399,07.07.2017,Special Educational Needs Transport,Taxis - Contract Hire,"-1,144.00",ALPHA (IOW) LTD
Revenue,Childrens Services,Children's & Education Services,Management & Support Services,5105639398,07.07.2017,Special Educational Needs Transport,Taxis - Contract Hire,"1,144.00",ALPHA (IOW) LTD
Revenue,Childrens Services,Children's & Education Services,Management & Support Services,5105639398,07.07.2017,Special Educational Needs Transport,Taxis - Contract Hire,286.00,ALPHA (IOW) LTD
Revenue,Childrens Services,Children's & Education Services,Management & Support Services,5105639399,07.07.2017,Special Educational Needs Transport,Taxis - Contract Hire,-286.00,ALPHA (IOW) LTD
Revenue,Childrens Services,Children's & Education Services,Management & Support Services,5105641631,26.07.2017,Special Educational Needs Transport,Taxis - Contract Hire,980.00,ALPHA (IOW) LTD
Revenue,Childrens Services,Children's & Education Services,Management & Support Services,5105641631,26.07.2017,Special Educational Needs Transport,Taxis - Contract Hire,"1,144.00",ALPHA (IOW) LTD
Revenue,Childrens Services,Children's & Education Services,Management & Support Services,5105641631,26.07.2017,Special Educational Needs Transport,Taxis - Contract Hire,312.00,ALPHA (IOW) LTD
Revenue,Childrens Services,Children's & Education Services,Management & Support Services,5105640264,12.07.2017,Special Educational Needs Transport,Taxis - Contract Hire,450.00,ALPHA (IOW) LTD
Revenue,Childrens Services,Children's & Education Services,Management & Support Services,5105640319,12.07.2017,Special Educational Needs Transport,Taxis - Contract Hire,450.00,ALPHA (IOW) LTD
Revenue,Childrens Services,Children's & Education Services,Management & Support Services,5105641855,26.07.2017,Special Educational Needs Transport,Taxis - Contract Hire,450.00,ALPHA (IOW) LTD
Revenue,Childrens Services,Children's & Education Services,Management & Support Services,5105641899,26.07.2017,Special Educational Needs Transport,Taxis - Contract Hire,450.00,ALPHA (IOW) LTD
Revenue,Childrens Services,Children's & Education Services,Management & Support Services,5105640264,12.07.2017,Special Educational Needs Transport,Taxis - Contract Hire,200.00,ALPHA (IOW) LTD
Revenue,Childrens Services,Children's & Education Services,Management & Support Services,5105640319,12.07.2017,Special Educational Needs Transport,Taxis - Contract Hire,200.00,ALPHA (IOW) LTD
Revenue,Childrens Services,Children's & Education Services,Management & Support Services,5105641855,26.07.2017,Special Educational Needs Transport,Taxis - Contract Hire,200.00,ALPHA (IOW) LTD
Revenue,Childrens Services,Children's & Education Services,Management & Support Services,5105641899,26.07.2017,Special Educational Needs Transport,Taxis - Contract Hire,200.00,ALPHA (IOW) LTD
Revenue,Childrens Services,Children's & Education Services,Management & Support Services,5105641855,26.07.2017,Special Educational Needs Transport,Taxis - Contract Hire,200.00,ALPHA (IOW) LTD
Revenue,Childrens Services,Children's & Education Services,Management & Support Services,5105641855,26.07.2017,Special Educational Needs Transport,Taxis - Contract Hire,80.00,ALPHA (IOW) LTD
Revenue,Childrens Services,Children's & Education Services,Management & Support Services,5105641899,26.07.2017,Special Educational Needs Transport,Taxis - Contract Hire,280.00,ALPHA (IOW) LTD
Revenue,Childrens Services,Children's & Education Services,Management & Support Services,5105640264,12.07.2017,Special Educational Needs Transport,Taxis - Contract Hire,280.00,ALPHA (IOW) LTD
Revenue,Childrens Services,Children's & Education Services,Management & Support Services,5105640319,12.07.2017,Special Educational Needs Transport,Taxis - Contract Hire,280.00,ALPHA (IOW) LTD
Revenue,Childrens Services,Children's & Education Services,Management & Support Services,5105640319,12.07.2017,Special Educational Needs Transport,Taxis - Contract Hire,250.00,ALPHA (IOW) LTD
Revenue,Childrens Services,Children's & Education Services,Management & Support Services,5105640264,12.07.2017,Special Educational Needs Transport,Taxis - Contract Hire,250.00,ALPHA (IOW) LTD
Revenue,Childrens Services,Children's & Education Services,Management & Support Services,5105641855,26.07.2017,Special Educational Needs Transport,Taxis - Contract Hire,250.00,ALPHA (IOW) LTD
Revenue,Childrens Services,Children's & Education Services,Management & Support Services,5105641899,26.07.2017,Special Educational Needs Transport,Taxis - Contract Hire,250.00,ALPHA (IOW) LTD
Revenue,Childrens Services,Children's & Education Services,Management & Support Services,5105640319,12.07.2017,Special Educational Needs Transport,Taxis - Contract Hire,300.00,ALPHA (IOW) LTD
Revenue,Childrens Services,Children's & Education Services,Management & Support Services,5105640264,12.07.2017,Special Educational Needs Transport,Taxis - Contract Hire,300.00,ALPHA (IOW) LTD
Revenue,Childrens Services,Children's & Education Services,Management & Support Services,5105641899,26.07.2017,Special Educational Needs Transport,Taxis - Contract Hire,300.00,ALPHA (IOW) LTD
Revenue,Childrens Services,Children's & Education Services,Management & Support Services,5105641855,26.07.2017,Special Educational Needs Transport,Taxis - Contract Hire,300.00,ALPHA (IOW) LTD
Revenue,Childrens Services,Children's & Education Services,Management & Support Services,5105640319,12.07.2017,Special Educational Needs Transport,Taxis - Contract Hire,300.00,ALPHA (IOW) LTD
Revenue,Childrens Services,Children's & Education Services,Management & Support Services,5105640264,12.07.2017,Special Educational Needs Transport,Taxis - Contract Hire,300.00,ALPHA (IOW) LTD
Revenue,Childrens Services,Children's & Education Services,Management & Support Services,5105641899,26.07.2017,Special Educational Needs Transport,Taxis - Contract Hire,300.00,ALPHA (IOW) LTD
Revenue,Childrens Services,Children's & Education Services,Management & Support Services,5105641855,26.07.2017,Special Educational Needs Transport,Taxis - Contract Hire,300.00,ALPHA (IOW) LTD
Revenue,Childrens Services,Children's & Education Services,Management & Support Services,5105641855,26.07.2017,Special Educational Needs Transport,Taxis - Contract Hire,320.00,ALPHA (IOW) LTD
Revenue,Childrens Services,Children's & Education Services,Management & Support Services,5105641899,26.07.2017,Special Educational Needs Transport,Taxis - Contract Hire,320.00,ALPHA (IOW) LTD
Revenue,Childrens Services,Children's & Education Services,Management & Support Services,5105640264,12.07.2017,Special Educational Needs Transport,Taxis - Contract Hire,320.00,ALPHA (IOW) LTD
Revenue,Childrens Services,Children's & Education Services,Management & Support Services,5105640319,12.07.2017,Special Educational Needs Transport,Taxis - Contract Hire,320.00,ALPHA (IOW) LTD
Revenue,Childrens Services,Children's & Education Services,Management & Support Services,5105640319,12.07.2017,Special Educational Needs Transport,Taxis - Contract Hire,280.00,ALPHA (IOW) LTD
Revenue,Childrens Services,Children's & Education Services,Management & Support Services,5105640264,12.07.2017,Special Educational Needs Transport,Taxis - Contract Hire,280.00,ALPHA (IOW) LTD
Revenue,Childrens Services,Children's & Education Services,Management & Support Services,5105641899,26.07.2017,Special Educational Needs Transport,Taxis - Contract Hire,280.00,ALPHA (IOW) LTD
Revenue,Childrens Services,Children's & Education Services,Management & Support Services,5105641855,26.07.2017,Special Educational Needs Transport,Taxis - Contract Hire,280.00,ALPHA (IOW) LTD
Revenue,Childrens Services,Children's & Education Services,Management & Support Services,5105641855,26.07.2017,Special Educational Needs Transport,Taxis - Contract Hire,450.00,ALPHA (IOW) LTD
Revenue,Childrens Services,Children's & Education Services,Management & Support Services,5105641899,26.07.2017,Special Educational Needs Transport,Taxis - Contract Hire,450.00,ALPHA (IOW) LTD
Revenue,Childrens Services,Children's & Education Services,Management & Support Services,5105640264,12.07.2017,Special Educational Needs Transport,Taxis - Contract Hire,450.00,ALPHA (IOW) LTD
Revenue,Childrens Services,Children's & Education Services,Management & Support Services,5105640319,12.07.2017,Special Educational Needs Transport,Taxis - Contract Hire,450.00,ALPHA (IOW) LTD
Revenue,Childrens Services,Children's & Education Services,Management & Support Services,5105640319,12.07.2017,Special Educational Needs Transport,Taxis - Contract Hire,395.00,ALPHA (IOW) LTD
Revenue,Childrens Services,Children's & Education Services,Management & Support Services,5105640264,12.07.2017,Special Educational Needs Transport,Taxis - Contract Hire,395.00,ALPHA (IOW) LTD
Revenue,Childrens Services,Children's & Education Services,Management & Support Services,5105641899,26.07.2017,Special Educational Needs Transport,Taxis - Contract Hire,395.00,ALPHA (IOW) LTD
Revenue,Childrens Services,Children's & Education Services,Management & Support Services,5105641855,26.07.2017,Special Educational Needs Transport,Taxis - Contract Hire,395.00,ALPHA (IOW) LTD
Revenue,Childrens Services,Children's & Education Services,Management & Support Services,5105641855,26.07.2017,Special Educational Needs Transport,Taxis - Contract Hire,400.00,ALPHA (IOW) LTD
Revenue,Childrens Services,Children's & Education Services,Management & Support Services,5105641899,26.07.2017,Special Educational Needs Transport,Taxis - Contract Hire,400.00,ALPHA (IOW) LTD
Revenue,Childrens Services,Children's & Education Services,Management & Support Services,5105640264,12.07.2017,Special Educational Needs Transport,Taxis - Contract Hire,400.00,ALPHA (IOW) LTD
Revenue,Childrens Services,Children's & Education Services,Management & Support Services,5105640319,12.07.2017,Special Educational Needs Transport,Taxis - Contract Hire,400.00,ALPHA (IOW) LTD
Revenue,Childrens Services,Children's & Education Services,Management & Support Services,5105640264,12.07.2017,Special Educational Needs Transport,Taxis - Contract Hire,250.00,ALPHA (IOW) LTD
Revenue,Childrens Services,Children's & Education Services,Management & Support Services,5105640319,12.07.2017,Special Educational Needs Transport,Taxis - Contract Hire,250.00,ALPHA (IOW) LTD
Revenue,Childrens Services,Children's & Education Services,Management & Support Services,5105641855,26.07.2017,Special Educational Needs Transport,Taxis - Contract Hire,310.00,ALPHA (IOW) LTD
Revenue,Childrens Services,Children's & Education Services,Management & Support Services,5105641899,26.07.2017,Special Educational Needs Transport,Taxis - Contract Hire,250.00,ALPHA (IOW) LTD
Revenue,Childrens Services,Children's & Education Services,Management & Support Services,5105640319,12.07.2017,Special Educational Needs Transport,Taxis - Contract Hire,270.00,ALPHA (IOW) LTD
Revenue,Childrens Services,Children's & Education Services,Management & Support Services,5105640264,12.07.2017,Special Educational Needs Transport,Taxis - Contract Hire,270.00,ALPHA (IOW) LTD
Revenue,Childrens Services,Children's & Education Services,Management & Support Services,5105641899,26.07.2017,Special Educational Needs Transport,Taxis - Contract Hire,270.00,ALPHA (IOW) LTD
Revenue,Childrens Services,Children's & Education Services,Management & Support Services,5105641855,26.07.2017,Special Educational Needs Transport,Taxis - Contract Hire,270.00,ALPHA (IOW) LTD
Revenue,Childrens Services,Children's & Education Services,Management & Support Services,5105640264,12.07.2017,Special Educational Needs Transport,Taxis - Contract Hire,120.00,ALPHA (IOW) LTD
Revenue,Childrens Services,Children's & Education Services,Management & Support Services,5105640319,12.07.2017,Special Educational Needs Transport,Taxis - Contract Hire,120.00,ALPHA (IOW) LTD
Revenue,Childrens Services,Children's & Education Services,Management & Support Services,5105641855,26.07.2017,Special Educational Needs Transport,Taxis - Contract Hire,120.00,ALPHA (IOW) LTD
Revenue,Childrens Services,Children's & Education Services,Management & Support Services,5105641899,26.07.2017,Special Educational Needs Transport,Taxis - Contract Hire,120.00,ALPHA (IOW) LTD
Revenue,Childrens Services,Children's & Education Services,Management & Support Services,5105641899,26.07.2017,Special Educational Needs Transport,Taxis - Contract Hire,70.00,ALPHA (IOW) LTD
Revenue,Childrens Services,Children's & Education Services,Management & Support Services,5105641855,26.07.2017,Special Educational Needs Transport,Taxis - Contract Hire,70.00,ALPHA (IOW) LTD
Revenue,Childrens Services,Children's & Education Services,Management & Support Services,5105640319,12.07.2017,Special Educational Needs Transport,Taxis - Contract Hire,70.00,ALPHA (IOW) LTD
Revenue,Childrens Services,Children's & Education Services,Management & Support Services,5105640264,12.07.2017,Special Educational Needs Transport,Taxis - Contract Hire,70.00,ALPHA (IOW) LTD
Revenue,Childrens Services,Children's & Education Services,Management & Support Services,5105640319,12.07.2017,Special Educational Needs Transport,Taxis - Contract Hire,200.00,ALPHA (IOW) LTD
Revenue,Childrens Services,Children's & Education Services,Management & Support Services,5105640264,12.07.2017,Special Educational Needs Transport,Taxis - Contract Hire,200.00,ALPHA (IOW) LTD
Revenue,Childrens Services,Children's & Education Services,Management & Support Services,5105641899,26.07.2017,Special Educational Needs Transport,Taxis - Contract Hire,200.00,ALPHA (IOW) LTD
Revenue,Childrens Services,Children's & Education Services,Management & Support Services,5105641855,26.07.2017,Special Educational Needs Transport,Taxis - Contract Hire,200.00,ALPHA (IOW) LTD
Revenue,Childrens Services,Children's & Education Services,Other Education and Community Budget,5105641631,26.07.2017,Home to College Transport - IW College,Taxis - Contract Hire,468.00,ALPHA (IOW) LTD
Revenue,Childrens Services,Children's & Education Services,Management & Support Services,5105640319,12.07.2017,Pre 16 Independ. & Non-Maint. Special Schls & Independ. Specialist Provision,Transport of Clients,350.00,ALPHA (IOW) LTD
Revenue,Childrens Services,Children's & Education Services,Management & Support Services,5105640264,12.07.2017,Pre 16 Independ. & Non-Maint. Special Schls & Independ. Specialist Provision,Transport of Clients,350.00,ALPHA (IOW) LTD
Revenue,Childrens Services,Children's & Education Services,Management & Support Services,5105641899,26.07.2017,Pre 16 Independ. & Non-Maint. Special Schls & Independ. Specialist Provision,Transport of Clients,350.00,ALPHA (IOW) LTD
Revenue,Childrens Services,Children's & Education Services,Management & Support Services,5105641855,26.07.2017,Pre 16 Independ. & Non-Maint. Special Schls & Independ. Specialist Provision,Transport of Clients,350.00,ALPHA (IOW) LTD
Revenue,Childrens Services,Children's & Education Services,Management & Support Services,5105641855,26.07.2017,Pre 16 Independ. & Non-Maint. Special Schls & Independ. Specialist Provision,Transport of Clients,350.00,ALPHA (IOW) LTD
Revenue,Childrens Services,Children's & Education Services,Management & Support Services,5105641899,26.07.2017,Pre 16 Independ. & Non-Maint. Special Schls & Independ. Specialist Provision,Transport of Clients,350.00,ALPHA (IOW) LTD
Revenue,Childrens Services,Children's & Education Services,Management & Support Services,5105640264,12.07.2017,Pre 16 Independ. & Non-Maint. Special Schls & Independ. Specialist Provision,Transport of Clients,350.00,ALPHA (IOW) LTD
Revenue,Childrens Services,Children's & Education Services,Management & Support Services,5105640319,12.07.2017,Pre 16 Independ. & Non-Maint. Special Schls & Independ. Specialist Provision,Transport of Clients,350.00,ALPHA (IOW) LTD
Revenue,Childrens Services,Children's & Education Services,Other Education and Community Budget,5105641899,26.07.2017,Home to School Mainstream Transport,Taxis - Contract Hire,250.00,ALPHA (IOW) LTD
Revenue,Childrens Services,Children's & Education Services,Other Education and Community Budget,5105640319,12.07.2017,Home to School Mainstream Transport,Taxis - Contract Hire,250.00,ALPHA (IOW) LTD
Revenue,Childrens Services,Children's & Education Services,Other Education and Community Budget,5105640264,12.07.2017,Home to School Mainstream Transport,Taxis - Contract Hire,250.00,ALPHA (IOW) LTD
Revenue,Childrens Services,Children's & Education Services,Other Education and Community Budget,5105640264,12.07.2017,Home to School Mainstream Transport,Taxis - Contract Hire,175.00,ALPHA (IOW) LTD
Revenue,Childrens Services,Children's & Education Services,Other Education and Community Budget,5105640319,12.07.2017,Home to School Mainstream Transport,Taxis - Contract Hire,175.00,ALPHA (IOW) LTD
Revenue,Childrens Services,Children's & Education Services,Other Education and Community Budget,5105641899,26.07.2017,Home to School Mainstream Transport,Taxis - Contract Hire,175.00,ALPHA (IOW) LTD
Revenue,Childrens Services,Children's & Education Services,Other Education and Community Budget,5105641855,26.07.2017,Home to School Mainstream Transport,Taxis - Contract Hire,175.00,ALPHA (IOW) LTD
Revenue,Childrens Services,Children's & Education Services,Other Education and Community Budget,5105640319,12.07.2017,Home to School Mainstream Transport,Taxis - Contract Hire,600.00,ALPHA (IOW) LTD
Revenue,Childrens Services,Children's & Education Services,Other Education and Community Budget,5105640264,12.07.2017,Home to School Mainstream Transport,Taxis - Contract Hire,600.00,ALPHA (IOW) LTD
Revenue,Childrens Services,Children's & Education Services,Other Education and Community Budget,5105641899,26.07.2017,Home to School Mainstream Transport,Taxis - Contract Hire,600.00,ALPHA (IOW) LTD
Revenue,Childrens Services,Children's & Education Services,Other Education and Community Budget,5105641855,26.07.2017,Home to School Mainstream Transport,Taxis - Contract Hire,600.00,ALPHA (IOW) LTD
Revenue,Childrens Services,Children's & Education Services,Management & Support Services,5105641855,26.07.2017,"Speech, Language and Communication",Transport of Clients,700.00,ALPHA (IOW) LTD
Revenue,Childrens Services,Children's & Education Services,Management & Support Services,5105641899,26.07.2017,"Speech, Language and Communication",Transport of Clients,700.00,ALPHA (IOW) LTD
Revenue,Childrens Services,Children's & Education Services,Management & Support Services,5105640264,12.07.2017,"Speech, Language and Communication",Transport of Clients,700.00,ALPHA (IOW) LTD
Revenue,Childrens Services,Children's & Education Services,Management & Support Services,5105640319,12.07.2017,"Speech, Language and Communication",Transport of Clients,700.00,ALPHA (IOW) LTD
Revenue,Childrens Services,Children's & Education Services,Management & Support Services,5105640319,12.07.2017,"Speech, Language and Communication",Transport of Clients,200.00,ALPHA (IOW) LTD
Revenue,Childrens Services,Children's & Education Services,Management & Support Services,5105640264,12.07.2017,"Speech, Language and Communication",Transport of Clients,200.00,ALPHA (IOW) LTD
Revenue,Childrens Services,Children's & Education Services,Management & Support Services,5105641855,26.07.2017,"Speech, Language and Communication",Transport of Clients,200.00,ALPHA (IOW) LTD
Revenue,Childrens Services,Children's & Education Services,Management & Support Services,5105641899,26.07.2017,"Speech, Language and Communication",Transport of Clients,200.00,ALPHA (IOW) LTD
Revenue,Childrens Services,Children's & Education Services,Family Support Services,5105641756,26.07.2017,S17 Disabled Children,Transport of Clients,18.80,ALPHA (IOW) LTD
Revenue,Childrens Services,Children's & Education Services,Other Education and Community Budget,5105640319,12.07.2017,Home to School Mainstream Transport,Taxis - Contract Hire,200.00,ALPHA (IOW) LTD
Revenue,Childrens Services,Children's & Education Services,Other Education and Community Budget,5105640264,12.07.2017,Home to School Mainstream Transport,Taxis - Contract Hire,300.00,ALPHA (IOW) LTD
Revenue,Childrens Services,Children's & Education Services,Other Education and Community Budget,5105641855,26.07.2017,Home to School Mainstream Transport,Taxis - Contract Hire,200.00,ALPHA (IOW) LTD
Revenue,Childrens Services,Children's & Education Services,Other Education and Community Budget,5105641899,26.07.2017,Home to School Mainstream Transport,Taxis - Contract Hire,200.00,ALPHA (IOW) LTD
Revenue,Childrens Services,Children's & Education Services,Other Education and Community Budget,5105641899,26.07.2017,Home to School Mainstream Transport,Taxis - Contract Hire,350.00,ALPHA (IOW) LTD
Revenue,Childrens Services,Children's & Education Services,Other Education and Community Budget,5105641855,26.07.2017,Home to School Mainstream Transport,Taxis - Contract Hire,350.00,ALPHA (IOW) LTD
Revenue,Childrens Services,Children's & Education Services,Other Education and Community Budget,5105640319,12.07.2017,Home to School Mainstream Transport,Taxis - Contract Hire,350.00,ALPHA (IOW) LTD
Revenue,Childrens Services,Children's & Education Services,Other Education and Community Budget,5105640264,12.07.2017,Home to School Mainstream Transport,Taxis - Contract Hire,350.00,ALPHA (IOW) LTD
Revenue,Childrens Services,Children's & Education Services,Other Education and Community Budget,5105640264,12.07.2017,Home to School Mainstream Transport,Taxis - Contract Hire,200.00,ALPHA (IOW) LTD
Revenue,Childrens Services,Children's & Education Services,Other Education and Community Budget,5105640319,12.07.2017,Home to School Mainstream Transport,Taxis - Contract Hire,200.00,ALPHA (IOW) LTD
Revenue,Childrens Services,Children's & Education Services,Other Education and Community Budget,5105641899,26.07.2017,Home to School Mainstream Transport,Taxis - Contract Hire,200.00,ALPHA (IOW) LTD
Revenue,Childrens Services,Children's & Education Services,Other Education and Community Budget,5105641855,26.07.2017,Home to School Mainstream Transport,Taxis - Contract Hire,200.00,ALPHA (IOW) LTD
Revenue,Childrens Services,Children's & Education Services,Other Education and Community Budget,5105641855,26.07.2017,Home to School Mainstream Transport,Taxis - Contract Hire,250.00,ALPHA (IOW) LTD
Revenue,Adult Services,Adult Social Care,Learning Disability Suppt-adults (18-64),5105639472,12.07.2017,Learning Disability Residential 18-64,Charges from Independent Providers,"3,836.84",ALPHAGRANGE LTD
Revenue,Resources,Central Services,Support Services,5105641732,26.07.2017,Staff Benefits,Payment to Private Contractors,243.00,REDACTED PERSONAL DATA
Revenue,Place,Environmental & Regulatory Services,Waste Disposal,5105641898,26.07.2017,Waste Disposal - Amey Contract,Waste Contractors,"298,304.17",AMEY (IOW) SPV LIMITED
Revenue,Place,Environmental & Regulatory Services,Recycling,5105641898,26.07.2017,Waste Recycling - Amey Contract,Waste Contractors,"68,982.10",AMEY (IOW) SPV LIMITED
Capital,Place,Capital,Capital,5105641897,26.07.2017,Waste Capital Programme,Payment to Contractors - Capital,"1,131,245.92",AMEY (IOW) SPV LIMITED
Revenue,Place,Environmental & Regulatory Services,Waste Collection,5105641898,26.07.2017,Waste Collection - Amey Contract,Waste Contractors,"93,851.68",AMEY (IOW) SPV LIMITED
Revenue,Place,Cultural and Related Services,Library Service,5105638868,05.07.2017,Public Libraries Central,Stock Purchases,"4,000.00",AMEY LG LTD
Revenue,Place,Cultural and Related Services,Library Service,5105640862,21.07.2017,Public Libraries Central,Stock Purchases,"6,000.00",AMEY LG LTD
Revenue,Adult Services,Adult Social Care,Physical Support - older people (65+),5105640333,12.07.2017,Physical Support Residential 65+,Charges from Independent Providers,"2,534.61",ANCONA CARE HOME
Revenue,Adult Services,Adult Social Care,Physical Support - older people (65+),5105639474,12.07.2017,Physical Support Residential 65+,Charges from Independent Providers,"1,905.96",ANCONA CARE HOME
Revenue,Adult Services,Adult Social Care,Physical Support - older people (65+),5105639474,12.07.2017,Physical Support Residential 65+,Charges from Independent Providers,"1,905.96",ANCONA CARE HOME
Revenue,Adult Services,Adult Social Care,Physical Support - older people (65+),5105639474,12.07.2017,Physical Support Residential 65+,Charges from Independent Providers,"1,819.72",ANCONA CARE HOME
Revenue,Adult Services,Adult Social Care,Physical Support - older people (65+),5105639474,12.07.2017,Physical Support Residential 65+,Charges from Independent Providers,"2,240.56",ANCONA CARE HOME
Revenue,Chief Executive,Central Services,Support Services,5105640865,19.07.2017,Print Unit,Printing Costs,63.80,ANTALIS MCNAUGHTON
Revenue,Chief Executive,Central Services,Support Services,5105640865,19.07.2017,Print Unit,Printing Costs,31.48,ANTALIS MCNAUGHTON
Revenue,Chief Executive,Central Services,Support Services,5105640865,19.07.2017,Print Unit,Printing Costs,34.62,ANTALIS MCNAUGHTON
Revenue,Chief Executive,Central Services,Support Services,5105640865,19.07.2017,Print Unit,Printing Costs,54.54,ANTALIS MCNAUGHTON
Revenue,Chief Executive,Central Services,Support Services,5105641570,26.07.2017,Print Unit,Printing Costs,59.40,ANTALIS MCNAUGHTON
Revenue,Chief Executive,Central Services,Support Services,5105641570,26.07.2017,Print Unit,Printing Costs,42.30,ANTALIS MCNAUGHTON
Revenue,Chief Executive,Central Services,Support Services,5105641572,26.07.2017,Print Unit,Printing Costs,26.50,ANTALIS MCNAUGHTON
Revenue,Chief Executive,Central Services,Support Services,5105642277,28.07.2017,Print Unit,Printing Costs,63.80,ANTALIS MCNAUGHTON
Revenue,Chief Executive,Central Services,Support Services,5105642277,28.07.2017,Print Unit,Printing Costs,93.60,ANTALIS MCNAUGHTON
Revenue,Place,Cultural and Related Services,Open Spaces,5105637634,07.07.2017,Parks Mtce Miscellaneous,Operational Equipment,109.00,AQUAM WATER SERVICES LTD
Revenue,Place,Cultural and Related Services,Open Spaces,5105640406,26.07.2017,Parks Mtce Miscellaneous,Operational Equipment,109.01,AQUAM WATER SERVICES LTD
Revenue,Adult Services,Adult Social Care,Central Codes (to be reallocated),5105638396,14.07.2017,Community Outreach,Clothing & Laundry,13.20,ARCO LTD
Revenue,Adult Services,Adult Social Care,Central Codes (to be reallocated),5105638396,14.07.2017,Community Outreach,Clothing & Laundry,3.60,ARCO LTD
Revenue,Adult Services,Adult Social Care,Central Codes (to be reallocated),5105639036,05.07.2017,Community Outreach,Clothing & Laundry,58.38,ARCO LTD
Revenue,Adult Services,Adult Social Care,Central Codes (to be reallocated),5105639036,05.07.2017,Community Outreach,Clothing & Laundry,29.19,ARCO LTD
Revenue,Adult Services,Adult Social Care,Central Codes (to be reallocated),5105639036,05.07.2017,Community Outreach,Clothing & Laundry,5.40,ARCO LTD
Revenue,Adult Services,Adult Social Care,Central Codes (to be reallocated),5105639008,05.07.2017,Community Outreach,Clothing & Laundry,10.80,ARCO LTD
Revenue,Adult Services,Adult Social Care,Central Codes (to be reallocated),5105639008,05.07.2017,Community Outreach,Clothing & Laundry,39.30,ARCO LTD
Revenue,Adult Services,Adult Social Care,Central Codes (to be reallocated),5105639008,05.07.2017,Community Outreach,Clothing & Laundry,28.56,ARCO LTD
Revenue,Adult Services,Adult Social Care,Central Codes (to be reallocated),5105639008,05.07.2017,Community Outreach,Clothing & Laundry,14.28,ARCO LTD
Revenue,Adult Services,Adult Social Care,Central Codes (to be reallocated),5105641453,21.07.2017,Community Outreach,Clothing & Laundry,1.80,ARCO LTD
Revenue,Adult Services,Adult Social Care,Central Codes (to be reallocated),5105641467,21.07.2017,Community Outreach,Clothing & Laundry,16.20,ARCO LTD
Revenue,Adult Services,Adult Social Care,Central Codes (to be reallocated),5105641465,21.07.2017,Community Outreach,Clothing & Laundry,-16.20,ARCO LTD
Revenue,Adult Services,Adult Social Care,Central Codes (to be reallocated),5105641464,21.07.2017,Community Outreach,Clothing & Laundry,5.40,ARCO LTD
Revenue,Adult Services,Adult Social Care,Central Codes (to be reallocated),5105641462,21.07.2017,Community Outreach,Clothing & Laundry,-5.40,ARCO LTD
Revenue,Adult Services,Adult Social Care,Central Codes (to be reallocated),5105641469,21.07.2017,Community Outreach,Clothing & Laundry,-5.40,ARCO LTD
Revenue,Adult Services,Adult Social Care,Central Codes (to be reallocated),5105641465,21.07.2017,Community Outreach,Clothing & Laundry,-19.65,ARCO LTD
Revenue,Adult Services,Adult Social Care,Central Codes (to be reallocated),5105641467,21.07.2017,Community Outreach,Clothing & Laundry,19.65,ARCO LTD
Revenue,Adult Services,Adult Social Care,Central Codes (to be reallocated),5105641467,21.07.2017,Community Outreach,Clothing & Laundry,41.25,ARCO LTD
Revenue,Adult Services,Adult Social Care,Central Codes (to be reallocated),5105641465,21.07.2017,Community Outreach,Clothing & Laundry,-41.25,ARCO LTD
Revenue,Adult Services,Adult Social Care,Central Codes (to be reallocated),5105641462,21.07.2017,Community Outreach,Clothing & Laundry,-24.75,ARCO LTD
Revenue,Adult Services,Adult Social Care,Central Codes (to be reallocated),5105641464,21.07.2017,Community Outreach,Clothing & Laundry,24.75,ARCO LTD
Revenue,Adult Services,Adult Social Care,Central Codes (to be reallocated),5105641469,21.07.2017,Community Outreach,Clothing & Laundry,-24.75,ARCO LTD
Revenue,Adult Services,Adult Social Care,Central Codes (to be reallocated),5105641453,21.07.2017,Community Outreach,Clothing & Laundry,8.25,ARCO LTD
Revenue,Adult Services,Adult Social Care,Central Codes (to be reallocated),5105641465,21.07.2017,Community Outreach,Clothing & Laundry,-6.55,ARCO LTD
Revenue,Adult Services,Adult Social Care,Central Codes (to be reallocated),5105641467,21.07.2017,Community Outreach,Clothing & Laundry,6.55,ARCO LTD
Revenue,Adult Services,Adult Social Care,Central Codes (to be reallocated),5105641467,21.07.2017,Community Outreach,Clothing & Laundry,14.28,ARCO LTD
Revenue,Adult Services,Adult Social Care,Central Codes (to be reallocated),5105641465,21.07.2017,Community Outreach,Clothing & Laundry,-14.28,ARCO LTD
Revenue,Adult Services,Adult Social Care,Central Codes (to be reallocated),5105641465,21.07.2017,Community Outreach,Clothing & Laundry,-21.42,ARCO LTD
Revenue,Adult Services,Adult Social Care,Central Codes (to be reallocated),5105641467,21.07.2017,Community Outreach,Clothing & Laundry,21.42,ARCO LTD
Revenue,Adult Services,Adult Social Care,Central Codes (to be reallocated),5105641339,21.07.2017,Community Outreach,Clothing & Laundry,3.60,ARCO LTD
Revenue,Adult Services,Adult Social Care,Central Codes (to be reallocated),5105641339,21.07.2017,Community Outreach,Clothing & Laundry,21.78,ARCO LTD
Revenue,Adult Services,Adult Social Care,Central Codes (to be reallocated),5105641339,21.07.2017,Community Outreach,Clothing & Laundry,1.80,ARCO LTD
Revenue,Adult Services,Adult Social Care,Central Codes (to be reallocated),5105641339,21.07.2017,Community Outreach,Clothing & Laundry,6.55,ARCO LTD
Revenue,Adult Services,Adult Social Care,Central Codes (to be reallocated),5105640283,12.07.2017,Community Outreach,Clothing & Laundry,10.98,ARCO LTD
Revenue,Adult Services,Adult Social Care,Central Codes (to be reallocated),5105640283,12.07.2017,Community Outreach,Clothing & Laundry,9.60,ARCO LTD
Revenue,Adult Services,Adult Social Care,Central Codes (to be reallocated),5105640283,12.07.2017,Community Outreach,Clothing & Laundry,21.96,ARCO LTD
Revenue,Adult Services,Adult Social Care,Central Codes (to be reallocated),5105640665,21.07.2017,Community Outreach,Clothing & Laundry,16.20,ARCO LTD
Revenue,Adult Services,Adult Social Care,Central Codes (to be reallocated),5105640665,21.07.2017,Community Outreach,Clothing & Laundry,19.65,ARCO LTD
Revenue,Adult Services,Adult Social Care,Central Codes (to be reallocated),5105640665,21.07.2017,Community Outreach,Clothing & Laundry,41.25,ARCO LTD
Revenue,Adult Services,Adult Social Care,Central Codes (to be reallocated),5105640665,21.07.2017,Community Outreach,Clothing & Laundry,6.55,ARCO LTD
Revenue,Adult Services,Adult Social Care,Central Codes (to be reallocated),5105640665,21.07.2017,Community Outreach,Clothing & Laundry,14.28,ARCO LTD
Revenue,Adult Services,Adult Social Care,Central Codes (to be reallocated),5105640665,21.07.2017,Community Outreach,Clothing & Laundry,21.42,ARCO LTD
Revenue,Adult Services,Adult Social Care,Central Codes (to be reallocated),5105640199,14.07.2017,Community Outreach,Clothing & Laundry,26.90,ARCO LTD
Revenue,Adult Services,Adult Social Care,Central Codes (to be reallocated),5105640199,14.07.2017,Community Outreach,Clothing & Laundry,53.80,ARCO LTD
Revenue,Adult Services,Adult Social Care,Central Codes (to be reallocated),5105640199,14.07.2017,Community Outreach,Clothing & Laundry,53.80,ARCO LTD
Revenue,Adult Services,Adult Social Care,Central Codes (to be reallocated),5105640199,14.07.2017,Community Outreach,Clothing & Laundry,53.80,ARCO LTD
Revenue,Adult Services,Adult Social Care,Central Codes (to be reallocated),5105640199,14.07.2017,Community Outreach,Clothing & Laundry,25.20,ARCO LTD
Revenue,Childrens Services,Children's & Education Services,Special Schools & Alternative Provision,5105639002,05.07.2017,Island Learning Centre,Schools Learning Resources (not ICT),9.39,ARCO LTD
Revenue,Childrens Services,Children's & Education Services,Special Schools & Alternative Provision,5105639002,05.07.2017,Island Learning Centre,Schools Learning Resources (not ICT),9.39,ARCO LTD
Revenue,Childrens Services,Children's & Education Services,Special Schools & Alternative Provision,5105639002,05.07.2017,Island Learning Centre,Schools Learning Resources (not ICT),9.39,ARCO LTD
Revenue,Childrens Services,Children's & Education Services,Special Schools & Alternative Provision,5105639002,05.07.2017,Island Learning Centre,Schools Learning Resources (not ICT),9.39,ARCO LTD
Revenue,Childrens Services,Children's & Education Services,Special Schools & Alternative Provision,5105639002,05.07.2017,Island Learning Centre,Schools Learning Resources (not ICT),8.40,ARCO LTD
Revenue,Childrens Services,Children's & Education Services,Special Schools & Alternative Provision,5105639002,05.07.2017,Island Learning Centre,Schools Learning Resources (not ICT),22.70,ARCO LTD
Revenue,Place,Cultural and Related Services,Recreation and Sport,5105641829,26.07.2017,The Heights,Clothing & Laundry,232.12,ARCO LTD
Revenue,Adult Services,Adult Social Care,Learning Disab Supp (to be reallocated),5105637940,12.07.2017,Plean Dene,Maintenance of Operational Equipment,74.00,ARJO MED AB LTD
Revenue,Adult Services,Adult Social Care,Learning Disab Supp (to be reallocated),5105638979,05.07.2017,The Laurels,Maintenance of Operational Equipment,119.59,ARJO MED AB LTD
Revenue,Adult Services,Adult Social Care,Central Codes (to be reallocated),5105639070,07.07.2017,Adelaide Resource Centre,Property Services - Day to day Maintenance,45.00,ARJO MED AB LTD
Revenue,Place,Cultural and Related Services,Recreation and Sport,5105640851,19.07.2017,Medina Leisure Centre,Property Services - Day to day Maintenance,170.00,ASSA ABLOY ENTRANCE SYSTEMS LTD
Revenue,Place,Cultural and Related Services,Recreation and Sport,5105638664,05.07.2017,Medina Leisure Centre,Property Services - Planned Maintenance,680.00,ASSA ABLOY ENTRANCE SYSTEMS LTD
Revenue,Regeneration,Central Services,Support Services,5105640461,19.07.2017,"Westridge, Ryde",Property Services - Planned Maintenance,"1,020.00",ASSA ABLOY ENTRANCE SYSTEMS LTD
Revenue,Place,Cultural and Related Services,Culture and Heritage,5105638646,05.07.2017,Medina Theatre,Property Services - Planned Maintenance,340.00,ASSA ABLOY ENTRANCE SYSTEMS LTD
Revenue,Regeneration,Central Services,Support Services,5105638913,07.07.2017,"Jubilee Stores, Newport",Property Services - Day to day Maintenance,32.49,ASSA ABLOY ENTRANCE SYSTEMS LTD
Revenue,Regeneration,Central Services,Support Services,5105638603,07.07.2017,"Jubilee Stores, Newport",Property Services - Day to day Maintenance,200.76,ASSA ABLOY ENTRANCE SYSTEMS LTD
Revenue,Regeneration,Central Services,Support Services,5105638658,05.07.2017,"Jubilee Stores, Newport",Property Services - Planned Maintenance,680.00,ASSA ABLOY ENTRANCE SYSTEMS LTD
Revenue,Adult Services,Adult Social Care,Central Codes (to be reallocated),5105638608,05.07.2017,Adelaide Resource Centre,Property Services - Planned Maintenance,427.00,ASSA ABLOY ENTRANCE SYSTEMS LTD
Revenue,Childrens Services,Children's & Education Services,Special Schools & Alternative Provision,5105641792,26.07.2017,Island Learning Centre,Schools Examination Fees,35.70,ASSESSMENT & QUALIFICATION ALLIANCE
Revenue,Public Health,Public Health,Discretionary,5105640729,14.07.2017,Public Health Core Non Prescribed,Professional Subscriptions,"2,200.00",ASSOC OF DIRECTORS OF PUBLIC HEALTH
Revenue,Place,Fire & Rescue Services,Fire fighting and Rescue Operations,5105641647,26.07.2017,Fire Control- HFRS,Computer Software Licencing,"6,000.00",ASTRIUM LTD
Revenue,Place,Fire & Rescue Services,Fire fighting and Rescue Operations,5105640768,14.07.2017,Fire Technical Support,Vehicle Maintenance Costs,115.60,ATS EUROMASTER LTD
Revenue,Place,Fire & Rescue Services,Fire fighting and Rescue Operations,5105640768,14.07.2017,Fire Technical Support,Vehicle Maintenance Costs,4.35,ATS EUROMASTER LTD
Revenue,Place,Fire & Rescue Services,Fire fighting and Rescue Operations,5105640768,14.07.2017,Fire Technical Support,Vehicle Maintenance Costs,1.16,ATS EUROMASTER LTD
Revenue,Place,Fire & Rescue Services,Fire fighting and Rescue Operations,5105640768,14.07.2017,Fire Technical Support,Vehicle Maintenance Costs,1.86,ATS EUROMASTER LTD
Revenue,Place,Fire & Rescue Services,Fire fighting and Rescue Operations,5105640768,14.07.2017,Fire Technical Support,Vehicle Maintenance Costs,257.15,ATS EUROMASTER LTD
Revenue,Place,Fire & Rescue Services,Fire fighting and Rescue Operations,5105640768,14.07.2017,Fire Technical Support,Vehicle Maintenance Costs,"1,546.96",ATS EUROMASTER LTD
Revenue,Place,Cultural and Related Services,Culture and Heritage,5105640934,19.07.2017,Dinosaur Isle Museum (Sandown Geology),Stock Purchases,271.90,AURORA WORLD UK LTD
Revenue,Adult Services,Adult Social Care,Support - Memory /Cognition-older people (65+),5105642046,28.07.2017,Memory & Cognition Residential 65+,Charges from Independent Providers,"2,240.56",AUTUMN HOUSE CARE LTD
Revenue,Adult Services,Adult Social Care,Support - Memory /Cognition-older people (65+),5105639452,12.07.2017,Memory & Cognition Residential 65+,Charges from Independent Providers,"2,240.56",AUTUMN HOUSE CARE LTD
Revenue,Adult Services,Adult Social Care,Mental Health Support-older people (65+),5105639452,12.07.2017,Mental Health Residential 65+,Charges from Independent Providers,"2,240.56",AUTUMN HOUSE CARE LTD
Revenue,Adult Services,Adult Social Care,Support - Memory /Cognition-older people (65+),5105639452,12.07.2017,Memory & Cognition Residential 65+,Charges from Independent Providers,"2,240.56",AUTUMN HOUSE CARE LTD
Revenue,Adult Services,Adult Social Care,Support - Memory /Cognition-older people (65+),5105639452,12.07.2017,Memory & Cognition Residential 65+,Charges from Independent Providers,"1,905.96",AUTUMN HOUSE CARE LTD
Revenue,Adult Services,Adult Social Care,Support - Memory /Cognition-older people (65+),5105639452,12.07.2017,Memory & Cognition Residential 65+,Charges from Independent Providers,"2,240.56",AUTUMN HOUSE CARE LTD
Revenue,Adult Services,Adult Social Care,Support - Memory /Cognition-older people (65+),5105639452,12.07.2017,Memory & Cognition Residential 65+,Charges from Independent Providers,"2,240.56",AUTUMN HOUSE CARE LTD
Revenue,Adult Services,Adult Social Care,Support - Memory /Cognition-older people (65+),5105639452,12.07.2017,Memory & Cognition Residential 65+,Charges from Independent Providers,"2,240.56",AUTUMN HOUSE CARE LTD
Revenue,Adult Services,Adult Social Care,Support - Memory /Cognition-older people (65+),5105639452,12.07.2017,Memory & Cognition Residential 65+,Charges from Independent Providers,"1,905.96",AUTUMN HOUSE CARE LTD
Revenue,Adult Services,Adult Social Care,Support - Memory /Cognition-older people (65+),5105639452,12.07.2017,Memory & Cognition Residential 65+,Charges from Independent Providers,"2,240.56",AUTUMN HOUSE CARE LTD
Revenue,Adult Services,Adult Social Care,Support - Memory /Cognition-older people (65+),5105639452,12.07.2017,Memory & Cognition Residential 65+,Charges from Independent Providers,"2,240.56",AUTUMN HOUSE CARE LTD
Revenue,Adult Services,Adult Social Care,Support - Memory /Cognition-older people (65+),5105639452,12.07.2017,Memory & Cognition Residential 65+,Charges from Independent Providers,"2,240.56",AUTUMN HOUSE CARE LTD
Revenue,Adult Services,Adult Social Care,Support - Memory /Cognition-older people (65+),5105639452,12.07.2017,Memory & Cognition Residential 65+,Charges from Independent Providers,"2,240.56",AUTUMN HOUSE CARE LTD
Revenue,Adult Services,Adult Social Care,Support - Memory /Cognition-older people (65+),5105639452,12.07.2017,Memory & Cognition Residential 65+,Charges from Independent Providers,"2,240.56",AUTUMN HOUSE CARE LTD
Revenue,Adult Services,Adult Social Care,Support - Memory /Cognition-older people (65+),5105638847,05.07.2017,Memory & Cognition Residential 65+,Charges from Independent Providers,"2,382.45",AUTUMN HOUSE CARE LTD
Revenue,Adult Services,Adult Social Care,Support - Memory /Cognition-older people (65+),5105639452,12.07.2017,Memory & Cognition Residential 65+,Charges from Independent Providers,"2,240.56",AUTUMN HOUSE CARE LTD
Revenue,Adult Services,Adult Social Care,Support - Memory /Cognition-older people (65+),5105639452,12.07.2017,Memory & Cognition Residential 65+,Charges from Independent Providers,"2,240.56",AUTUMN HOUSE CARE LTD
Revenue,Adult Services,Adult Social Care,Support - Memory /Cognition-older people (65+),5105639452,12.07.2017,Memory & Cognition Residential 65+,Charges from Independent Providers,"2,240.56",AUTUMN HOUSE CARE LTD
Revenue,Adult Services,Adult Social Care,Support - Memory /Cognition-older people (65+),5105639452,12.07.2017,Memory & Cognition Residential 65+,Charges from Independent Providers,"2,240.56",AUTUMN HOUSE CARE LTD
Revenue,Adult Services,Adult Social Care,Support - Memory /Cognition-older people (65+),5105639452,12.07.2017,Memory & Cognition Residential 65+,Charges from Independent Providers,"2,240.56",AUTUMN HOUSE CARE LTD
Revenue,Adult Services,Adult Social Care,Physical Support - older people (65+),5105641922,26.07.2017,Physical Support Residential 65+,Charges from Independent Providers,"1,840.46",AUTUMN HOUSE CARE LTD
Revenue,Adult Services,Adult Social Care,Physical Support - older people (65+),5105641922,26.07.2017,Physical Support Residential 65+,Charges from Independent Providers,"2,640.66",AUTUMN HOUSE CARE LTD
Revenue,Adult Services,Adult Social Care,Physical Support - older people (65+),5105639452,12.07.2017,Physical Support Residential 65+,Charges from Independent Providers,"1,905.96",AUTUMN HOUSE CARE LTD
Revenue,Adult Services,Adult Social Care,Physical Support - older people (65+),5105639452,12.07.2017,Physical Support Residential 65+,Charges from Independent Providers,"1,905.96",AUTUMN HOUSE CARE LTD
Revenue,Adult Services,Adult Social Care,Physical Support - older people (65+),5105639016,05.07.2017,Physical Support Residential 65+,Charges from Independent Providers,"2,960.74",AUTUMN HOUSE CARE LTD
Revenue,Adult Services,Adult Social Care,Physical Support - older people (65+),5105639452,12.07.2017,Physical Support Residential 65+,Charges from Independent Providers,"2,240.56",AUTUMN HOUSE CARE LTD
Revenue,Adult Services,Adult Social Care,Physical Support - older people (65+),5105639452,12.07.2017,Physical Support Residential 65+,Charges from Independent Providers,"2,240.56",AUTUMN HOUSE CARE LTD
Revenue,Adult Services,Adult Social Care,Physical Support - older people (65+),5105639452,12.07.2017,Physical Support Residential 65+,Charges from Independent Providers,"1,905.96",AUTUMN HOUSE CARE LTD
Revenue,Adult Services,Adult Social Care,Physical Support - older people (65+),5105639452,12.07.2017,Physical Support Residential 65+,Charges from Independent Providers,"2,240.56",AUTUMN HOUSE CARE LTD
Revenue,Adult Services,Adult Social Care,Physical Support - older people (65+),5105639422,12.07.2017,Physical Support Residential 65+,Charges from Independent Providers,"1,040.26",AUTUMN HOUSE CARE LTD
Revenue,Adult Services,Adult Social Care,Physical Support - older people (65+),5105639452,12.07.2017,Physical Support Residential 65+,Charges from Independent Providers,"2,240.56",AUTUMN HOUSE CARE LTD
Revenue,Adult Services,Adult Social Care,Physical Support - older people (65+),5105640033,12.07.2017,Physical Support Residential 65+,Charges from Independent Providers,"2,240.56",AVON PARK RESIDENTIAL HOME
Revenue,Childrens Services,Children's & Education Services,Safeguarding Children/Young Peoples Svs,5105640382,12.07.2017,Court Work & Consultancy Services,Professional Services,33.75,AVTS
Revenue,Childrens Services,Children's & Education Services,Children Looked After,5105639127,07.07.2017,Leaving Care Costs,Accommodation Costs - Service Users,50.00,REDACTED PERSONAL DATA
Revenue,Childrens Services,Children's & Education Services,Children Looked After,5105638853,05.07.2017,Leaving Care Costs,Accommodation Costs - Service Users,500.00,REDACTED PERSONAL DATA
Revenue,Childrens Services,Children's & Education Services,Children Looked After,5105640480,14.07.2017,Leaving Care Costs,Accommodation Costs - Service Users,68.50,REDACTED PERSONAL DATA
Revenue,Childrens Services,Children's & Education Services,Children Looked After,5105642065,28.07.2017,Leaving Care Costs,Accommodation Costs - Service Users,68.50,REDACTED PERSONAL DATA
Revenue,Childrens Services,Children's & Education Services,Children Looked After,5105641126,21.07.2017,Leaving Care Costs,Accommodation Costs - Service Users,68.50,REDACTED PERSONAL DATA
Revenue,Childrens Services,Children's & Education Services,Children Looked After,5105641126,21.07.2017,Leaving Care Costs,Support Children,120.89,REDACTED PERSONAL DATA
Revenue,Childrens Services,Children's & Education Services,Children Looked After,5105642065,28.07.2017,Leaving Care Costs,Support Children,120.89,REDACTED PERSONAL DATA
Revenue,Childrens Services,Children's & Education Services,Children Looked After,5105640480,14.07.2017,Leaving Care Costs,Support Children,120.89,REDACTED PERSONAL DATA
Revenue,Childrens Services,Children's & Education Services,Children Looked After,5105640480,14.07.2017,In-house Fostering,Boarding Out Allowances,234.52,REDACTED PERSONAL DATA
Revenue,Childrens Services,Children's & Education Services,Children Looked After,5105641126,21.07.2017,In-house Fostering,Boarding Out Allowances,234.52,REDACTED PERSONAL DATA
Revenue,Childrens Services,Children's & Education Services,Children Looked After,5105642065,28.07.2017,In-house Fostering,Boarding Out Allowances,234.52,REDACTED PERSONAL DATA
Revenue,Childrens Services,Children's & Education Services,Children Looked After,5105639127,07.07.2017,In-house Fostering,Boarding Out Allowances,234.52,REDACTED PERSONAL DATA
Revenue,Place,Cultural and Related Services,Open Spaces,5105641573,26.07.2017,Fort Victoria,Payment to Private Contractors,157.76,B & Q FINANCIAL SERVICES
Revenue,Place,Cultural and Related Services,Open Spaces,5105639010,05.07.2017,Fort Victoria,Payment to Private Contractors,64.03,B & Q FINANCIAL SERVICES
Revenue,Place,Cultural and Related Services,Open Spaces,5105639012,05.07.2017,Fort Victoria,Payment to Private Contractors,74.94,B & Q FINANCIAL SERVICES
Revenue,Childrens Services,Children's & Education Services,Other Education and Community Budget,5105640739,14.07.2017,Branstone Farm Studies Centre,Fuel Oil,62.00,REDACTED PERSONAL DATA
Revenue,Place,Housing Services,Homelessness,5105641653,26.07.2017,Leaseholds by LA,Accommodation Costs - Leaseholder Payments,815.49,REDACTED PERSONAL DATA
Revenue,Resources,Central Services,Support Services,5105641721,26.07.2017,Staff Benefits,Payment to Private Contractors,100.00,REDACTED PERSONAL DATA
Revenue,Resources,Central Services,Support Services,5105641721,26.07.2017,Staff Benefits,Payment to Private Contractors,100.00,REDACTED PERSONAL DATA
Revenue,Place,Housing Services,Homelessness,5105641657,26.07.2017,Leaseholds by LA,Accommodation Costs - Leaseholder Payments,866.67,REDACTED PERSONAL DATA
Revenue,Place,Housing Services,Homelessness,5105641657,26.07.2017,Leaseholds by LA,Accommodation Costs - Leaseholder Payments,888.33,REDACTED PERSONAL DATA
Revenue,Place,Housing Services,Homelessness,5105641657,26.07.2017,Leaseholds by LA,Accommodation Costs - Leaseholder Payments,799.50,REDACTED PERSONAL DATA
Capital,Corporate Items,Balance Sheet,Balance Sheet,5105640012,12.07.2017,Balance Sheet,Order Settlement to Bal Sht GL,160.16,B&M INVESTMENTS LTD
Revenue,Adult Services,Adult Social Care,Physical Support - older people (65+),5105640012,12.07.2017,Physical Support Residential 65+,Charges from Independent Providers,"1,920.80",B&M INVESTMENTS LTD
Revenue,Adult Services,Adult Social Care,Assistive Equipment & Technology,5105632151,05.07.2017,S75 Integrated Community Equipment Store,Operational Equipment,499.00,B.E.S REHAB LTD
Revenue,Adult Services,Adult Social Care,Assistive Equipment & Technology,5105632151,05.07.2017,S75 Integrated Community Equipment Store,Operational Equipment,15.00,B.E.S REHAB LTD
Revenue,Adult Services,Adult Social Care,Assistive Equipment & Technology,5105632151,05.07.2017,S75 Integrated Community Equipment Store,Operational Equipment,8.95,B.E.S REHAB LTD
Revenue,Adult Services,Adult Social Care,Assistive Equipment & Technology,5105632151,05.07.2017,S75 Integrated Community Equipment Store,Operational Equipment,75.00,B.E.S REHAB LTD
Revenue,Adult Services,Adult Social Care,Assistive Equipment & Technology,5105632151,05.07.2017,S75 Integrated Community Equipment Store,Operational Equipment,10.00,B.E.S REHAB LTD
Revenue,Place,Cultural and Related Services,Recreation and Sport,5105639035,05.07.2017,Play Development,Operational Equipment,900.00,BADMINTON ENGLAND LTD
Revenue,Place,Cultural and Related Services,Recreation and Sport,5105639035,05.07.2017,Play Development,Operational Equipment,16.67,BADMINTON ENGLAND LTD
Revenue,Place,Fire & Rescue Services,Fire fighting and Rescue Operations,5105639306,07.07.2017,Fire Technical Support,Payment to Private Contractors,"7,005.79",BALLYCLARE LTD
Revenue,Place,Fire & Rescue Services,Fire fighting and Rescue Operations,5105639102,07.07.2017,Fire Technical Support,Payment to Private Contractors,877.76,BALLYCLARE LTD
Revenue,Childrens Services,Children's & Education Services,Other Education and Community Budget,5105638167,21.07.2017,SEND Independent Advice & Support,Stationery,8.57,SUPPLIES TEAM LTD
Revenue,Childrens Services,Children's & Education Services,Other Education and Community Budget,5105638167,21.07.2017,SEND Independent Advice & Support,Stationery,4.82,SUPPLIES TEAM LTD
Revenue,Place,Cultural and Related Services,Service Management and Support Services,5105639031,07.07.2017,Leisure Management & Admin,Stationery,2.40,SUPPLIES TEAM LTD
Revenue,Place,Cultural and Related Services,Service Management and Support Services,5105639031,07.07.2017,Leisure Management & Admin,Stationery,0.40,SUPPLIES TEAM LTD
Revenue,Place,Cultural and Related Services,Service Management and Support Services,5105639031,07.07.2017,Leisure Management & Admin,Stationery,1.90,SUPPLIES TEAM LTD
Revenue,Place,Cultural and Related Services,Service Management and Support Services,5105639031,07.07.2017,Leisure Management & Admin,Stationery,8.57,SUPPLIES TEAM LTD
Revenue,Adult Services,Adult Social Care,Commissioning & Service Delivery,5105639031,07.07.2017,Head of Adult Social Care,Stationery,25.71,SUPPLIES TEAM LTD
Revenue,Regeneration,Central Services,Support Services,5105639031,07.07.2017,Strategic Assets Team,Stationery,1.65,SUPPLIES TEAM LTD
Revenue,Regeneration,Central Services,Support Services,5105639031,07.07.2017,Strategic Assets Team,Stationery,0.53,SUPPLIES TEAM LTD
Revenue,Regeneration,Central Services,Support Services,5105639031,07.07.2017,Strategic Assets Team,Stationery,0.08,SUPPLIES TEAM LTD
Revenue,Resources,Central Services,Support Services,5105639421,12.07.2017,County Hall Central Mail Room,Stationery,85.70,SUPPLIES TEAM LTD
Revenue,Childrens Services,Children's & Education Services,Management & Support Services,5105639095,07.07.2017,Education Out of School,Stationery,1.48,SUPPLIES TEAM LTD
Revenue,Childrens Services,Children's & Education Services,Management & Support Services,5105639095,07.07.2017,Education Out of School,Stationery,14.04,SUPPLIES TEAM LTD
Revenue,Childrens Services,Children's & Education Services,Management & Support Services,5105639095,07.07.2017,Education Out of School,Stationery,0.78,SUPPLIES TEAM LTD
Revenue,Childrens Services,Children's & Education Services,Management & Support Services,5105639095,07.07.2017,Education Out of School,Stationery,0.96,SUPPLIES TEAM LTD
Revenue,Childrens Services,Children's & Education Services,Management & Support Services,5105639095,07.07.2017,Education Out of School,Stationery,3.60,SUPPLIES TEAM LTD
Revenue,Childrens Services,Children's & Education Services,Management & Support Services,5105639095,07.07.2017,Education Out of School,Stationery,0.33,SUPPLIES TEAM LTD
Revenue,Place,Cultural and Related Services,Recreation and Sport,5105639391,12.07.2017,Medina Leisure Centre,Stationery,1.61,SUPPLIES TEAM LTD
Revenue,Place,Cultural and Related Services,Recreation and Sport,5105639391,12.07.2017,Medina Leisure Centre,Stationery,1.23,SUPPLIES TEAM LTD
Revenue,Place,Cultural and Related Services,Recreation and Sport,5105639391,12.07.2017,Medina Leisure Centre,Stationery,8.57,SUPPLIES TEAM LTD
Revenue,Place,Cultural and Related Services,Recreation and Sport,5105639391,12.07.2017,Medina Leisure Centre,Stationery,1.56,SUPPLIES TEAM LTD
Revenue,Place,Cultural and Related Services,Recreation and Sport,5105639391,12.07.2017,Medina Leisure Centre,Stationery,4.44,SUPPLIES TEAM LTD
Revenue,Place,Cultural and Related Services,Recreation and Sport,5105639391,12.07.2017,Medina Leisure Centre,Stationery,3.48,SUPPLIES TEAM LTD
Revenue,Place,Cultural and Related Services,Recreation and Sport,5105639391,12.07.2017,Medina Leisure Centre,Stationery,9.80,SUPPLIES TEAM LTD
Revenue,Place,Cultural and Related Services,Recreation and Sport,5105639391,12.07.2017,Medina Leisure Centre,Stationery,4.49,SUPPLIES TEAM LTD
Revenue,Place,Cultural and Related Services,Recreation and Sport,5105639391,12.07.2017,Medina Leisure Centre,Stationery,1.95,SUPPLIES TEAM LTD
Revenue,Place,Cultural and Related Services,Recreation and Sport,5105639391,12.07.2017,Medina Leisure Centre,Stationery,36.56,SUPPLIES TEAM LTD
Revenue,Place,Cultural and Related Services,Recreation and Sport,5105639391,12.07.2017,Medina Leisure Centre,Stationery,2.97,SUPPLIES TEAM LTD
Revenue,Adult Services,Adult Social Care,Central Codes (to be reallocated),5105641875,28.07.2017,Gouldings Resource Centre,Stationery,2.58,SUPPLIES TEAM LTD
Revenue,Place,Cultural and Related Services,Recreation and Sport,5105641872,28.07.2017,Medina Leisure Centre,Stationery,2.15,SUPPLIES TEAM LTD
Revenue,Place,Fire & Rescue Services,Fire fighting and Rescue Operations,5105641447,21.07.2017,Business Support  - Fire,Stationery,-8.04,SUPPLIES TEAM LTD
Revenue,Place,Fire & Rescue Services,Fire fighting and Rescue Operations,5105641447,21.07.2017,Business Support  - Fire,Stationery,-17.14,SUPPLIES TEAM LTD
Revenue,Place,Cultural and Related Services,Service Management and Support Services,5105640164,12.07.2017,Leisure Management & Admin,Stationery,0.24,SUPPLIES TEAM LTD
Revenue,Place,Cultural and Related Services,Service Management and Support Services,5105640152,14.07.2017,Leisure Management & Admin,Stationery,0.17,SUPPLIES TEAM LTD
Revenue,Place,Cultural and Related Services,Service Management and Support Services,5105640152,14.07.2017,Leisure Management & Admin,Stationery,0.17,SUPPLIES TEAM LTD
Revenue,Resources,Central Services,Support Services,5105640152,14.07.2017,County Hall Central Mail Room,Stationery,4.92,SUPPLIES TEAM LTD
Revenue,Childrens Services,Children's & Education Services,Other Education and Community Budget,5105640152,14.07.2017,Pupil Resources Business Support Team,Stationery,25.71,SUPPLIES TEAM LTD
Revenue,Place,Cultural and Related Services,Service Management and Support Services,5105640152,14.07.2017,Leisure Management & Admin,Stationery,17.14,SUPPLIES TEAM LTD
Revenue,Place,Fire & Rescue Services,Fire fighting and Rescue Operations,5105640192,12.07.2017,Business Support  - Fire,Stationery,24.12,SUPPLIES TEAM LTD
Revenue,Place,Fire & Rescue Services,Fire fighting and Rescue Operations,5105640194,12.07.2017,Business Support  - Fire,Stationery,-8.04,SUPPLIES TEAM LTD
Revenue,Place,Fire & Rescue Services,Fire fighting and Rescue Operations,5105640192,12.07.2017,Business Support  - Fire,Stationery,1.61,SUPPLIES TEAM LTD
Revenue,Place,Fire & Rescue Services,Fire fighting and Rescue Operations,5105640192,12.07.2017,Business Support  - Fire,Stationery,17.14,SUPPLIES TEAM LTD
Revenue,Place,Highways and Transport Services,Management and Support Services,5105640798,14.07.2017,Highways PFI Project,Stationery,17.14,SUPPLIES TEAM LTD
Revenue,Childrens Services,Children's & Education Services,Other Education and Community Budget,5105641448,21.07.2017,SEND Independent Advice & Support,Stationery,-8.57,SUPPLIES TEAM LTD
Revenue,Childrens Services,Children's & Education Services,Other Education and Community Budget,5105641448,21.07.2017,SEND Independent Advice & Support,Stationery,-4.82,SUPPLIES TEAM LTD
Revenue,Childrens Services,Children's & Education Services,Other Education and Community Budget,5105640149,12.07.2017,Learning & Development Running Costs,Stationery,17.14,SUPPLIES TEAM LTD
Revenue,Childrens Services,Children's & Education Services,Management & Support Services,5105640149,12.07.2017,Education Out of School,Stationery,2.61,SUPPLIES TEAM LTD
Revenue,Place,Cultural and Related Services,Recreation and Sport,5105640653,14.07.2017,Medina Leisure Centre,Stationery,11.04,SUPPLIES TEAM LTD
Revenue,Adult Services,Adult Social Care,Central Codes (to be reallocated),5105640309,12.07.2017,Gouldings Resource Centre,Stationery,1.06,SUPPLIES TEAM LTD
Revenue,Adult Services,Adult Social Care,Central Codes (to be reallocated),5105640654,14.07.2017,Gouldings Resource Centre,Stationery,1.38,SUPPLIES TEAM LTD
Revenue,Adult Services,Adult Social Care,Central Codes (to be reallocated),5105640309,12.07.2017,Gouldings Resource Centre,Stationery,25.71,SUPPLIES TEAM LTD
Revenue,Adult Services,Adult Social Care,Central Codes (to be reallocated),5105640309,12.07.2017,Gouldings Resource Centre,Stationery,2.46,SUPPLIES TEAM LTD
Revenue,Adult Services,Adult Social Care,Central Codes (to be reallocated),5105640309,12.07.2017,Gouldings Resource Centre,Stationery,1.17,SUPPLIES TEAM LTD
Revenue,Adult Services,Adult Social Care,Central Codes (to be reallocated),5105640309,12.07.2017,Gouldings Resource Centre,Stationery,0.80,SUPPLIES TEAM LTD
Revenue,Adult Services,Adult Social Care,Central Codes (to be reallocated),5105640309,12.07.2017,Gouldings Resource Centre,Stationery,1.56,SUPPLIES TEAM LTD
Revenue,Adult Services,Adult Social Care,Central Codes (to be reallocated),5105640309,12.07.2017,Gouldings Resource Centre,Stationery,0.66,SUPPLIES TEAM LTD
Revenue,Adult Services,Adult Social Care,Central Codes (to be reallocated),5105640309,12.07.2017,Gouldings Resource Centre,Stationery,9.98,SUPPLIES TEAM LTD
Revenue,Adult Services,Adult Social Care,Central Codes (to be reallocated),5105640309,12.07.2017,Gouldings Resource Centre,Stationery,1.48,SUPPLIES TEAM LTD
Revenue,Adult Services,Adult Social Care,Central Codes (to be reallocated),5105640309,12.07.2017,Gouldings Resource Centre,Stationery,1.12,SUPPLIES TEAM LTD
Revenue,Adult Services,Adult Social Care,Central Codes (to be reallocated),5105640309,12.07.2017,Gouldings Resource Centre,Stationery,4.94,SUPPLIES TEAM LTD
Revenue,Adult Services,Adult Social Care,Central Codes (to be reallocated),5105640309,12.07.2017,Gouldings Resource Centre,Stationery,0.76,SUPPLIES TEAM LTD
Revenue,Adult Services,Adult Social Care,Central Codes (to be reallocated),5105640309,12.07.2017,Gouldings Resource Centre,Stationery,7.22,SUPPLIES TEAM LTD
Revenue,Childrens Services,Children's & Education Services,Other Education and Community Budget,5105640647,14.07.2017,SEND Independent Advice & Support,Stationery,2.53,SUPPLIES TEAM LTD
Revenue,Childrens Services,Children's & Education Services,Other Education and Community Budget,5105640740,21.07.2017,SEND Independent Advice & Support,Stationery,1.63,SUPPLIES TEAM LTD
Revenue,Adult Services,Adult Social Care,Learning Disab Supp (to be reallocated),5105640701,14.07.2017,Westminster House,Stationery,2.53,SUPPLIES TEAM LTD
Revenue,Adult Services,Adult Social Care,Learning Disab Supp (to be reallocated),5105640701,14.07.2017,Saxonbury,Stationery,2.53,SUPPLIES TEAM LTD
Revenue,Adult Services,Adult Social Care,Learning Disab Supp (to be reallocated),5105640701,14.07.2017,Saxonbury,Stationery,1.38,SUPPLIES TEAM LTD
Revenue,Childrens Services,Children's & Education Services,Other Education and Community Budget,5105640800,14.07.2017,SEND Independent Advice & Support,Stationery,3.22,SUPPLIES TEAM LTD
Revenue,Childrens Services,Children's & Education Services,Other Education and Community Budget,5105640800,14.07.2017,SEND Independent Advice & Support,Stationery,17.14,SUPPLIES TEAM LTD
Revenue,Childrens Services,Children's & Education Services,Other Education and Community Budget,5105640794,14.07.2017,Learning & Development Running Costs,Stationery,25.71,SUPPLIES TEAM LTD
Revenue,Childrens Services,Children's & Education Services,Other Education and Community Budget,5105640794,14.07.2017,Learning & Development Running Costs,Stationery,6.44,SUPPLIES TEAM LTD
Revenue,Childrens Services,Children's & Education Services,Other Education and Community Budget,5105640794,14.07.2017,Learning & Development Running Costs,Stationery,2.28,SUPPLIES TEAM LTD
Revenue,Childrens Services,Children's & Education Services,Other Education and Community Budget,5105640794,14.07.2017,Learning & Development Running Costs,Stationery,7.40,SUPPLIES TEAM LTD
Revenue,Place,Cultural and Related Services,Service Management and Support Services,5105640429,14.07.2017,Leisure Management & Admin,Stationery,8.57,SUPPLIES TEAM LTD
Revenue,Place,Cultural and Related Services,Service Management and Support Services,5105640429,14.07.2017,Leisure Management & Admin,Stationery,0.41,SUPPLIES TEAM LTD
Revenue,Place,Cultural and Related Services,Service Management and Support Services,5105640429,14.07.2017,Leisure Management & Admin,Stationery,3.97,SUPPLIES TEAM LTD
Revenue,Place,Cultural and Related Services,Service Management and Support Services,5105640429,14.07.2017,Leisure Management & Admin,Stationery,4.37,SUPPLIES TEAM LTD
Revenue,Place,Cultural and Related Services,Service Management and Support Services,5105640429,14.07.2017,Leisure Management & Admin,Stationery,4.31,SUPPLIES TEAM LTD
Revenue,Adult Services,Adult Social Care,Commissioning & Service Delivery,5105640429,14.07.2017,Head of Adult Social Care,Stationery,25.71,SUPPLIES TEAM LTD
Revenue,Regeneration,Planning services,Economic Development,5105640429,14.07.2017,Director of Regeneration,Stationery,31.80,SUPPLIES TEAM LTD
Revenue,Childrens Services,Children's & Education Services,Other Education and Community Budget,5105640430,14.07.2017,Learning & Development Running Costs,Stationery,12.88,SUPPLIES TEAM LTD
Revenue,Childrens Services,Children's & Education Services,Other Education and Community Budget,5105640430,14.07.2017,Learning & Development Running Costs,Stationery,2.96,SUPPLIES TEAM LTD
Revenue,Place,Cultural and Related Services,Culture and Heritage,5105640310,12.07.2017,Archaeology,Stationery,3.18,SUPPLIES TEAM LTD
Revenue,Place,Cultural and Related Services,Culture and Heritage,5105640310,12.07.2017,Archaeology,Stationery,0.39,SUPPLIES TEAM LTD
Revenue,Childrens Services,Children's & Education Services,Other Education and Community Budget,5105641877,28.07.2017,Learning & Development Running Costs,Stationery,0.86,SUPPLIES TEAM LTD
Revenue,Childrens Services,Children's & Education Services,Other Education and Community Budget,5105642011,28.07.2017,Pupil Resources Business Support Team,Stationery,25.71,SUPPLIES TEAM LTD
Revenue,Place,Cultural and Related Services,Service Management and Support Services,5105642011,28.07.2017,Leisure Management & Admin,Stationery,17.14,SUPPLIES TEAM LTD
Revenue,Resources,Housing Services,Housing Benefits Administration,5105642011,28.07.2017,Housing Benefit,Stationery,25.71,SUPPLIES TEAM LTD
Revenue,Place,Cultural and Related Services,Service Management and Support Services,5105641894,28.07.2017,Leisure Management & Admin,Stationery,7.43,SUPPLIES TEAM LTD
Revenue,Place,Cultural and Related Services,Service Management and Support Services,5105641894,28.07.2017,Leisure Management & Admin,Stationery,0.08,SUPPLIES TEAM LTD
Revenue,Resources,Central Services,Support Services,5105641894,28.07.2017,County Hall Central Mail Room,Stationery,42.85,SUPPLIES TEAM LTD
Revenue,Adult Services,Adult Social Care,Commissioning & Service Delivery,5105641894,28.07.2017,Head of Adult Social Care,Stationery,25.71,SUPPLIES TEAM LTD
Revenue,Childrens Services,Children's & Education Services,Safeguarding Children/Young Peoples Svs,5105641894,28.07.2017,Children's office costs,Stationery,6.26,SUPPLIES TEAM LTD
Revenue,Place,Highways and Transport Services,"Airports, Harbours & Toll Facilities",5105641894,28.07.2017,Ferry Operation,Stationery,17.96,SUPPLIES TEAM LTD
Revenue,Place,Highways and Transport Services,"Airports, Harbours & Toll Facilities",5105641894,28.07.2017,Ferry Operation,Stationery,32.06,SUPPLIES TEAM LTD
Revenue,Childrens Services,Children's & Education Services,Other Education and Community Budget,5105640152,14.07.2017,Schools Asset Management,Stationery,3.48,SUPPLIES TEAM LTD
Revenue,Childrens Services,Children's & Education Services,Other Education and Community Budget,5105640152,14.07.2017,Schools Asset Management,Stationery,3.84,SUPPLIES TEAM LTD
Revenue,Childrens Services,Children's & Education Services,Other Education and Community Budget,5105640152,14.07.2017,Schools Asset Management,Stationery,3.00,SUPPLIES TEAM LTD
Revenue,Resources,Central Services,Support Services,5105640152,14.07.2017,Legal Services Section,Stationery,31.10,SUPPLIES TEAM LTD
Revenue,Adult Services,Adult Social Care,Commissioning & Service Delivery,5105640805,14.07.2017,Learning Disability Homes Management & Admin,Stationery,0.53,SUPPLIES TEAM LTD
Revenue,Adult Services,Adult Social Care,Commissioning & Service Delivery,5105640805,14.07.2017,Learning Disability Homes Management & Admin,Stationery,0.38,SUPPLIES TEAM LTD
Revenue,Adult Services,Adult Social Care,Commissioning & Service Delivery,5105640805,14.07.2017,Learning Disability Homes Management & Admin,Stationery,0.16,SUPPLIES TEAM LTD
Revenue,Adult Services,Adult Social Care,Commissioning & Service Delivery,5105640805,14.07.2017,Learning Disability Homes Management & Admin,Stationery,1.20,SUPPLIES TEAM LTD
Revenue,Adult Services,Adult Social Care,Commissioning & Service Delivery,5105640805,14.07.2017,Learning Disability Homes Management & Admin,Stationery,0.17,SUPPLIES TEAM LTD
Revenue,Adult Services,Adult Social Care,Commissioning & Service Delivery,5105640805,14.07.2017,Learning Disability Homes Management & Admin,Stationery,5.83,SUPPLIES TEAM LTD
Revenue,Adult Services,Adult Social Care,Commissioning & Service Delivery,5105640805,14.07.2017,Learning Disability Homes Management & Admin,Stationery,0.33,SUPPLIES TEAM LTD
Revenue,Adult Services,Adult Social Care,Commissioning & Service Delivery,5105640311,12.07.2017,Learning Disability Homes Management & Admin,Stationery,1.46,SUPPLIES TEAM LTD
Revenue,Adult Services,Adult Social Care,Commissioning & Service Delivery,5105640805,14.07.2017,Learning Disability Homes Management & Admin,Stationery,1.46,SUPPLIES TEAM LTD
Revenue,Adult Services,Adult Social Care,Commissioning & Service Delivery,5105640805,14.07.2017,Learning Disability Homes Management & Admin,Stationery,1.46,SUPPLIES TEAM LTD
Revenue,Adult Services,Adult Social Care,Commissioning & Service Delivery,5105640805,14.07.2017,Learning Disability Homes Management & Admin,Stationery,1.46,SUPPLIES TEAM LTD
Revenue,Adult Services,Adult Social Care,Commissioning & Service Delivery,5105640805,14.07.2017,Learning Disability Homes Management & Admin,Stationery,1.90,SUPPLIES TEAM LTD
Revenue,Adult Services,Adult Social Care,Central Codes (to be reallocated),5105640308,19.07.2017,Community Outreach,Stationery,73.20,SUPPLIES TEAM LTD
Revenue,Adult Services,Adult Social Care,Central Codes (to be reallocated),5105640308,19.07.2017,Community Outreach,Stationery,34.28,SUPPLIES TEAM LTD
Revenue,Adult Services,Adult Social Care,Central Codes (to be reallocated),5105640308,19.07.2017,Community Outreach,Stationery,2.90,SUPPLIES TEAM LTD
Revenue,Adult Services,Adult Social Care,Central Codes (to be reallocated),5105640308,19.07.2017,Community Outreach,Stationery,6.90,SUPPLIES TEAM LTD
Revenue,Adult Services,Adult Social Care,Central Codes (to be reallocated),5105640308,19.07.2017,Community Outreach,Stationery,0.53,SUPPLIES TEAM LTD
Revenue,Place,Central Services,Central Services to the Public,5105640797,19.07.2017,"Registration Of Births,Deaths, Marriages",Stationery,13.98,SUPPLIES TEAM LTD
Revenue,Place,Central Services,Central Services to the Public,5105640797,19.07.2017,"Registration Of Births,Deaths, Marriages",Stationery,4.40,SUPPLIES TEAM LTD
Revenue,Place,Central Services,Central Services to the Public,5105640797,19.07.2017,"Registration Of Births,Deaths, Marriages",Stationery,17.14,SUPPLIES TEAM LTD
Revenue,Place,Central Services,Central Services to the Public,5105640797,19.07.2017,"Registration Of Births,Deaths, Marriages",Stationery,6.20,SUPPLIES TEAM LTD
Revenue,Resources,Central Services,Support Services,5105640646,14.07.2017,Legal Services Section,Stationery,2.53,SUPPLIES TEAM LTD
Revenue,Resources,Central Services,Support Services,5105640646,14.07.2017,Legal Services Section,Stationery,1.71,SUPPLIES TEAM LTD
Revenue,Resources,Central Services,Support Services,5105640646,14.07.2017,Legal Services Section,Stationery,1.38,SUPPLIES TEAM LTD
Revenue,Adult Services,Adult Social Care,Central Codes (to be reallocated),5105640309,12.07.2017,Community Outreach,Stationery,25.71,SUPPLIES TEAM LTD
Revenue,Adult Services,Adult Social Care,Central Codes (to be reallocated),5105640309,12.07.2017,Community Outreach,Stationery,1.08,SUPPLIES TEAM LTD
Revenue,Adult Services,Adult Social Care,Central Codes (to be reallocated),5105640309,12.07.2017,Community Outreach,Stationery,0.80,SUPPLIES TEAM LTD
Revenue,Adult Services,Adult Social Care,Central Codes (to be reallocated),5105640309,12.07.2017,Community Outreach,Stationery,0.85,SUPPLIES TEAM LTD
Revenue,Adult Services,Adult Social Care,Central Codes (to be reallocated),5105640309,12.07.2017,Community Outreach,Stationery,2.46,SUPPLIES TEAM LTD
Revenue,Adult Services,Adult Social Care,Central Codes (to be reallocated),5105640309,12.07.2017,Community Outreach,Stationery,16.10,SUPPLIES TEAM LTD
Revenue,Adult Services,Adult Social Care,Central Codes (to be reallocated),5105640309,12.07.2017,Community Outreach,Stationery,24.40,SUPPLIES TEAM LTD
Revenue,Adult Services,Adult Social Care,Learning Disab Supp (to be reallocated),5105640701,14.07.2017,31 Carter Avenue,Stationery,30.36,SUPPLIES TEAM LTD
Revenue,Adult Services,Adult Social Care,Learning Disab Supp (to be reallocated),5105640701,14.07.2017,31 Carter Avenue,Stationery,5.13,SUPPLIES TEAM LTD
Revenue,Adult Services,Adult Social Care,Learning Disab Supp (to be reallocated),5105640701,14.07.2017,31 Carter Avenue,Stationery,12.65,SUPPLIES TEAM LTD
Revenue,Adult Services,Adult Social Care,Learning Disab Supp (to be reallocated),5105640701,14.07.2017,31 Carter Avenue,Stationery,1.71,SUPPLIES TEAM LTD
Revenue,Childrens Services,Children's & Education Services,Children Looked After,5105640792,14.07.2017,Beaulieu House,Stationery,2.16,SUPPLIES TEAM LTD
Revenue,Childrens Services,Children's & Education Services,Children Looked After,5105640792,14.07.2017,Beaulieu House,Stationery,34.28,SUPPLIES TEAM LTD
Revenue,Childrens Services,Children's & Education Services,Children Looked After,5105640792,14.07.2017,Beaulieu House,Stationery,14.86,SUPPLIES TEAM LTD
Revenue,Childrens Services,Children's & Education Services,Children Looked After,5105640792,14.07.2017,Beaulieu House,Stationery,14.86,SUPPLIES TEAM LTD
Revenue,Childrens Services,Children's & Education Services,Children Looked After,5105640792,14.07.2017,Beaulieu House,Stationery,6.86,SUPPLIES TEAM LTD
Revenue,Childrens Services,Children's & Education Services,Children Looked After,5105640792,14.07.2017,Beaulieu House,Stationery,0.69,SUPPLIES TEAM LTD
Revenue,Childrens Services,Children's & Education Services,Children Looked After,5105640792,14.07.2017,Beaulieu House,Stationery,2.46,SUPPLIES TEAM LTD
Revenue,Childrens Services,Children's & Education Services,Children Looked After,5105640792,14.07.2017,Beaulieu House,Stationery,2.47,SUPPLIES TEAM LTD
Revenue,Resources,Central Services,Central Services to the Public,5105640306,21.07.2017,Electoral Registration Office,Stationery,2.38,SUPPLIES TEAM LTD
Revenue,Resources,Central Services,Central Services to the Public,5105640306,21.07.2017,Electoral Registration Office,Stationery,38.68,SUPPLIES TEAM LTD
Revenue,Resources,Central Services,Central Services to the Public,5105640306,21.07.2017,Electoral Registration Office,Stationery,3.08,SUPPLIES TEAM LTD
Revenue,Childrens Services,Children's & Education Services,Safeguarding Children/Young Peoples Svs,5105640429,14.07.2017,Children's office costs,Stationery,1.23,SUPPLIES TEAM LTD
Revenue,Childrens Services,Children's & Education Services,Safeguarding Children/Young Peoples Svs,5105640429,14.07.2017,Children's office costs,Stationery,1.80,SUPPLIES TEAM LTD
Revenue,Childrens Services,Children's & Education Services,Safeguarding Children/Young Peoples Svs,5105640429,14.07.2017,Children's office costs,Stationery,5.94,SUPPLIES TEAM LTD
Revenue,Childrens Services,Children's & Education Services,Safeguarding Children/Young Peoples Svs,5105640429,14.07.2017,Children's office costs,Stationery,0.19,SUPPLIES TEAM LTD
Revenue,Chief Executive,Central Services,Central Services to the Public,5105640429,14.07.2017,Emergency Management,Stationery,0.34,SUPPLIES TEAM LTD
Revenue,Place,Cultural and Related Services,Recreation and Sport,5105640429,14.07.2017,Play Development,Stationery,1.98,SUPPLIES TEAM LTD
Revenue,Childrens Services,Children's & Education Services,Safeguarding Children/Young Peoples Svs,5105640429,14.07.2017,Children's office costs,Stationery,25.71,SUPPLIES TEAM LTD
Revenue,Resources,Central Services,Support Services,5105640429,14.07.2017,Legal Services Section,Stationery,17.14,SUPPLIES TEAM LTD
Revenue,Chief Executive,Central Services,Central Services to the Public,5105640429,14.07.2017,Emergency Management,Stationery,3.10,SUPPLIES TEAM LTD
Revenue,Childrens Services,Children's & Education Services,Other Education and Community Budget,5105640430,14.07.2017,Statutory Assessment and Review Team,Stationery,2.94,SUPPLIES TEAM LTD
Revenue,Childrens Services,Children's & Education Services,Other Education and Community Budget,5105640430,14.07.2017,Statutory Assessment and Review Team,Stationery,2.94,SUPPLIES TEAM LTD
Revenue,Place,Cultural and Related Services,Culture and Heritage,5105640310,12.07.2017,Museums & Collections Management,Stationery,25.71,SUPPLIES TEAM LTD
Revenue,Place,Cultural and Related Services,Culture and Heritage,5105640310,12.07.2017,Museums & Collections Management,Stationery,0.53,SUPPLIES TEAM LTD
Revenue,Resources,Central Services,Support Services,5105640310,12.07.2017,Human Resources,Stationery,1.23,SUPPLIES TEAM LTD
Revenue,Place,Cultural and Related Services,Culture and Heritage,5105640310,12.07.2017,Museums & Collections Management,Stationery,14.39,SUPPLIES TEAM LTD
Revenue,Place,Cultural and Related Services,Culture and Heritage,5105640310,12.07.2017,Museums & Collections Management,Stationery,2.46,SUPPLIES TEAM LTD
Revenue,Place,Cultural and Related Services,Culture and Heritage,5105640310,12.07.2017,Museums & Collections Management,Stationery,58.70,SUPPLIES TEAM LTD
Revenue,Childrens Services,Children's & Education Services,Safeguarding Children/Young Peoples Svs,5105642464,28.07.2017,Children's office costs,Stationery,3.80,SUPPLIES TEAM LTD
Revenue,Childrens Services,Children's & Education Services,Safeguarding Children/Young Peoples Svs,5105642472,28.07.2017,Children's office costs,Stationery,0.99,SUPPLIES TEAM LTD
Revenue,Place,Cultural and Related Services,Library Service,5105642466,28.07.2017,Freshwater West Wight Library,Stationery,8.57,SUPPLIES TEAM LTD
Revenue,Place,Cultural and Related Services,Library Service,5105642466,28.07.2017,Freshwater West Wight Library,Stationery,0.94,SUPPLIES TEAM LTD
Revenue,Place,Cultural and Related Services,Library Service,5105642466,28.07.2017,Freshwater West Wight Library,Stationery,1.60,SUPPLIES TEAM LTD
Revenue,Childrens Services,Children's & Education Services,Other Education and Community Budget,5105642011,28.07.2017,Schools Asset Management,Stationery,0.39,SUPPLIES TEAM LTD
Revenue,Childrens Services,Children's & Education Services,Other Education and Community Budget,5105642011,28.07.2017,Schools Asset Management,Stationery,1.61,SUPPLIES TEAM LTD
Revenue,Resources,Central Services,Central Services to the Public,5105642011,28.07.2017,National Non Domestic Rates,Stationery,8.57,SUPPLIES TEAM LTD
Revenue,Resources,Central Services,Support Services,5105642011,28.07.2017,Creditor Payments Shared Service Centre,Stationery,8.57,SUPPLIES TEAM LTD
Revenue,Childrens Services,Children's & Education Services,Safeguarding Children/Young Peoples Svs,5105642011,28.07.2017,Children's office costs,Stationery,6.26,SUPPLIES TEAM LTD
Revenue,Childrens Services,Children's & Education Services,Safeguarding Children/Young Peoples Svs,5105642011,28.07.2017,Children's office costs,Stationery,25.71,SUPPLIES TEAM LTD
Revenue,Childrens Services,Children's & Education Services,Safeguarding Children/Young Peoples Svs,5105641894,28.07.2017,Children's office costs,Stationery,1.61,SUPPLIES TEAM LTD
Revenue,Childrens Services,Children's & Education Services,Safeguarding Children/Young Peoples Svs,5105641894,28.07.2017,Children's office costs,Stationery,1.23,SUPPLIES TEAM LTD
Revenue,Childrens Services,Children's & Education Services,Safeguarding Children/Young Peoples Svs,5105641894,28.07.2017,Children's office costs,Stationery,2.46,SUPPLIES TEAM LTD
Revenue,Childrens Services,Children's & Education Services,Safeguarding Children/Young Peoples Svs,5105641894,28.07.2017,Children's office costs,Stationery,2.46,SUPPLIES TEAM LTD
Revenue,Childrens Services,Children's & Education Services,Safeguarding Children/Young Peoples Svs,5105641894,28.07.2017,Children's office costs,Stationery,0.80,SUPPLIES TEAM LTD
Revenue,Childrens Services,Children's & Education Services,Safeguarding Children/Young Peoples Svs,5105641894,28.07.2017,Children's office costs,Stationery,3.00,SUPPLIES TEAM LTD
Revenue,Childrens Services,Children's & Education Services,Safeguarding Children/Young Peoples Svs,5105641894,28.07.2017,Children's office costs,Stationery,4.40,SUPPLIES TEAM LTD
Revenue,Childrens Services,Children's & Education Services,Safeguarding Children/Young Peoples Svs,5105641894,28.07.2017,Children's office costs,Stationery,0.70,SUPPLIES TEAM LTD
Revenue,Childrens Services,Children's & Education Services,Safeguarding Children/Young Peoples Svs,5105641894,28.07.2017,Children's office costs,Stationery,1.02,SUPPLIES TEAM LTD
Revenue,Childrens Services,Children's & Education Services,Safeguarding Children/Young Peoples Svs,5105641894,28.07.2017,Children's office costs,Stationery,0.27,SUPPLIES TEAM LTD
Revenue,Childrens Services,Children's & Education Services,Safeguarding Children/Young Peoples Svs,5105641894,28.07.2017,Children's office costs,Stationery,0.54,SUPPLIES TEAM LTD
Revenue,Resources,Central Services,Central Services to the Public,5105641894,28.07.2017,National Non Domestic Rates,Stationery,25.71,SUPPLIES TEAM LTD
Revenue,Resources,Central Services,Support Services,5105641894,28.07.2017,Creditor Payments Shared Service Centre,Stationery,8.57,SUPPLIES TEAM LTD
Revenue,Childrens Services,Children's & Education Services,Safeguarding Children/Young Peoples Svs,5105641894,28.07.2017,Children's office costs,Stationery,1.17,SUPPLIES TEAM LTD
Revenue,Childrens Services,Children's & Education Services,Safeguarding Children/Young Peoples Svs,5105641894,28.07.2017,Children's office costs,Stationery,2.46,SUPPLIES TEAM LTD
Revenue,Place,Cultural and Related Services,Recreation and Sport,5105641894,28.07.2017,Play Development,Stationery,2.46,SUPPLIES TEAM LTD
Revenue,Place,Cultural and Related Services,Recreation and Sport,5105641894,28.07.2017,Play Development,Stationery,2.15,SUPPLIES TEAM LTD
Revenue,Childrens Services,Children's & Education Services,Safeguarding Children/Young Peoples Svs,5105641894,28.07.2017,Children's office costs,Stationery,12.64,SUPPLIES TEAM LTD
Revenue,Resources,Central Services,Support Services,5105641894,28.07.2017,Legal Services Section,Stationery,0.40,SUPPLIES TEAM LTD
Revenue,Childrens Services,Children's & Education Services,Safeguarding Children/Young Peoples Svs,5105641894,28.07.2017,Children's office costs,Stationery,17.14,SUPPLIES TEAM LTD
Revenue,Childrens Services,Children's & Education Services,Safeguarding Children/Young Peoples Svs,5105641894,28.07.2017,Children's office costs,Stationery,17.14,SUPPLIES TEAM LTD
Revenue,Resources,Central Services,Support Services,5105641894,28.07.2017,Legal Services Section,Stationery,34.28,SUPPLIES TEAM LTD
Revenue,Childrens Services,Children's & Education Services,Safeguarding Children/Young Peoples Svs,5105641894,28.07.2017,Children's office costs,Stationery,8.57,SUPPLIES TEAM LTD
Revenue,Childrens Services,Children's & Education Services,Safeguarding Children/Young Peoples Svs,5105641894,28.07.2017,Children's office costs,Stationery,31.30,SUPPLIES TEAM LTD
Revenue,Resources,Central Services,Support Services,5105628545,07.07.2017,Legal Services Section,Stationery,32.61,SUPPLIES TEAM LTD
Revenue,Resources,Central Services,Support Services,5105639344,07.07.2017,Legal Services Section,Stationery,-32.61,SUPPLIES TEAM LTD
Revenue,Childrens Services,Children's & Education Services,Safeguarding Children/Young Peoples Svs,5105639031,07.07.2017,Children's office costs,Stationery,5.94,SUPPLIES TEAM LTD
Revenue,Resources,Central Services,Support Services,5105639031,07.07.2017,Legal Services Section,Stationery,1.00,SUPPLIES TEAM LTD
Revenue,Resources,Central Services,Support Services,5105639031,07.07.2017,Legal Services Section,Stationery,6.99,SUPPLIES TEAM LTD
Revenue,Resources,Central Services,Support Services,5105639031,07.07.2017,Legal Services Section,Stationery,4.00,SUPPLIES TEAM LTD
Revenue,Resources,Central Services,Support Services,5105639031,07.07.2017,Legal Services Section,Stationery,4.30,SUPPLIES TEAM LTD
Revenue,Resources,Central Services,Support Services,5105639031,07.07.2017,Legal Services Section,Stationery,4.56,SUPPLIES TEAM LTD
Revenue,Regeneration,Central Services,Support Services,5105639031,07.07.2017,Property Management,Stationery,0.24,SUPPLIES TEAM LTD
Revenue,Resources,Central Services,Support Services,5105639031,07.07.2017,Legal Services Section,Stationery,8.57,SUPPLIES TEAM LTD
Revenue,Childrens Services,Children's & Education Services,Safeguarding Children/Young Peoples Svs,5105639031,07.07.2017,Children's office costs,Stationery,25.71,SUPPLIES TEAM LTD
Revenue,Childrens Services,Children's & Education Services,Safeguarding Children/Young Peoples Svs,5105639031,07.07.2017,Children's office costs,Stationery,17.14,SUPPLIES TEAM LTD
Revenue,Childrens Services,Children's & Education Services,Safeguarding Children/Young Peoples Svs,5105639031,07.07.2017,Children's office costs,Stationery,17.14,SUPPLIES TEAM LTD
Revenue,Resources,Central Services,Support Services,5105639031,07.07.2017,Legal Services Section,Stationery,34.28,SUPPLIES TEAM LTD
Revenue,Regeneration,Central Services,Support Services,5105639031,07.07.2017,Property Management,Stationery,1.90,SUPPLIES TEAM LTD
Revenue,Place,Planning services,Environmental Initiatives,5105641744,26.07.2017,East Wight Landscape Partnership,Stationery,2.53,SUPPLIES TEAM LTD
Revenue,Adult Services,Adult Social Care,Assistive Equipment & Technology,5105641881,26.07.2017,Wightcare,Stationery,2.12,SUPPLIES TEAM LTD
Revenue,Adult Services,Adult Social Care,Assistive Equipment & Technology,5105641881,26.07.2017,Wightcare,Stationery,17.14,SUPPLIES TEAM LTD
Revenue,Adult Services,Adult Social Care,Assistive Equipment & Technology,5105641881,26.07.2017,Wightcare,Stationery,12.52,SUPPLIES TEAM LTD
Revenue,Resources,Central Services,Support Services,5105640152,14.07.2017,Legal Services Section,Stationery,20.31,SUPPLIES TEAM LTD
Revenue,Resources,Central Services,Support Services,5105640152,14.07.2017,Legal Services Section,Stationery,2.46,SUPPLIES TEAM LTD
Revenue,Childrens Services,Children's & Education Services,Safeguarding Children/Young Peoples Svs,5105640152,14.07.2017,Children's office costs,Stationery,34.28,SUPPLIES TEAM LTD
Revenue,Resources,Parking Services,Off Street Parking,5105641894,28.07.2017,Parking Services,Stationery,8.57,SUPPLIES TEAM LTD
Revenue,Adult Services,Adult Social Care,Commissioning & Service Delivery,5105639405,12.07.2017,Adult Social Care Enterprise House,Stationery,1.56,SUPPLIES TEAM LTD
Revenue,Adult Services,Adult Social Care,Commissioning & Service Delivery,5105639405,12.07.2017,Adult Social Care Enterprise House,Stationery,2.78,SUPPLIES TEAM LTD
Revenue,Childrens Services,Children's & Education Services,Special Schools & Alternative Provision,5105641873,28.07.2017,Island Learning Centre,Stationery,2.58,SUPPLIES TEAM LTD
Revenue,Adult Services,Adult Social Care,Commissioning & Service Delivery,5105641881,26.07.2017,Adult Social Care Enterprise House,Stationery,34.28,SUPPLIES TEAM LTD
Revenue,Adult Services,Adult Social Care,Commissioning & Service Delivery,5105641881,26.07.2017,Adult Social Care Enterprise House,Stationery,2.49,SUPPLIES TEAM LTD
Revenue,Adult Services,Adult Social Care,Commissioning & Service Delivery,5105641881,26.07.2017,Adult Social Care Enterprise House,Stationery,2.90,SUPPLIES TEAM LTD
Revenue,Adult Services,Adult Social Care,Commissioning & Service Delivery,5105641881,26.07.2017,Adult Social Care Enterprise House,Stationery,2.72,SUPPLIES TEAM LTD
Revenue,Adult Services,Adult Social Care,Commissioning & Service Delivery,5105641881,26.07.2017,Adult Social Care Enterprise House,Stationery,2.46,SUPPLIES TEAM LTD
Revenue,Adult Services,Adult Social Care,Commissioning & Service Delivery,5105641881,26.07.2017,Adult Social Care Enterprise House,Stationery,31.24,SUPPLIES TEAM LTD
Revenue,Place,Cultural and Related Services,Library Service,5105641006,21.07.2017,Prison Library Service,Stationery,14.39,SUPPLIES TEAM LTD
Revenue,Place,Cultural and Related Services,Library Service,5105641757,26.07.2017,Prison Library Service,Stationery,15.13,SUPPLIES TEAM LTD
Revenue,Place,Cultural and Related Services,Library Service,5105641006,21.07.2017,Prison Library Service,Stationery,15.13,SUPPLIES TEAM LTD
Revenue,Place,Cultural and Related Services,Library Service,5105641740,26.07.2017,Prison Library Service,Stationery,30.26,SUPPLIES TEAM LTD
Revenue,Adult Services,Adult Social Care,Commissioning & Service Delivery,5105641023,19.07.2017,Adult Social Care Enterprise House,Stationery,6.26,SUPPLIES TEAM LTD
Revenue,Adult Services,Adult Social Care,Commissioning & Service Delivery,5105641023,19.07.2017,Adult Social Care Enterprise House,Stationery,5.92,SUPPLIES TEAM LTD
Revenue,Adult Services,Adult Social Care,Commissioning & Service Delivery,5105641023,19.07.2017,Adult Social Care Enterprise House,Stationery,1.00,SUPPLIES TEAM LTD
Revenue,Adult Services,Adult Social Care,Commissioning & Service Delivery,5105641023,19.07.2017,Adult Social Care Enterprise House,Stationery,1.23,SUPPLIES TEAM LTD
Revenue,Adult Services,Adult Social Care,Commissioning & Service Delivery,5105641023,19.07.2017,Adult Social Care Enterprise House,Stationery,3.60,SUPPLIES TEAM LTD
Revenue,Adult Services,Adult Social Care,Commissioning & Service Delivery,5105641023,19.07.2017,Adult Social Care Enterprise House,Stationery,0.38,SUPPLIES TEAM LTD
Revenue,Adult Services,Adult Social Care,Commissioning & Service Delivery,5105641023,19.07.2017,Adult Social Care Enterprise House,Stationery,17.14,SUPPLIES TEAM LTD
Revenue,Adult Services,Adult Social Care,Commissioning & Service Delivery,5105641023,19.07.2017,Adult Social Care Enterprise House,Stationery,3.22,SUPPLIES TEAM LTD
Revenue,Adult Services,Adult Social Care,Commissioning & Service Delivery,5105641023,19.07.2017,Adult Social Care Enterprise House,Stationery,2.46,SUPPLIES TEAM LTD
Revenue,Adult Services,Adult Social Care,Commissioning & Service Delivery,5105640161,12.07.2017,Adult Social Care Enterprise House,Stationery,0.53,SUPPLIES TEAM LTD
Revenue,Place,Housing Services,Private Sector Housing Renewal,5105640152,14.07.2017,Renewal & Enforcement,Stationery,4.49,SUPPLIES TEAM LTD
Revenue,Place,Housing Services,Private Sector Housing Renewal,5105640152,14.07.2017,Renewal & Enforcement,Stationery,2.46,SUPPLIES TEAM LTD
Revenue,Place,Housing Services,Private Sector Housing Renewal,5105640152,14.07.2017,Renewal & Enforcement,Stationery,0.39,SUPPLIES TEAM LTD
Revenue,Place,Housing Services,Private Sector Housing Renewal,5105640152,14.07.2017,Renewal & Enforcement,Stationery,0.53,SUPPLIES TEAM LTD
Revenue,Place,Housing Services,Private Sector Housing Renewal,5105640152,14.07.2017,Renewal & Enforcement,Stationery,5.44,SUPPLIES TEAM LTD
Revenue,Place,Housing Services,Private Sector Housing Renewal,5105640152,14.07.2017,Renewal & Enforcement,Stationery,1.48,SUPPLIES TEAM LTD
Revenue,Place,Housing Services,Private Sector Housing Renewal,5105640152,14.07.2017,Renewal & Enforcement,Stationery,0.39,SUPPLIES TEAM LTD
Revenue,Place,Cultural and Related Services,Recreation and Sport,5105640152,14.07.2017,Commercial Sales Team,Stationery,3.00,SUPPLIES TEAM LTD
Revenue,Place,Housing Services,Private Sector Housing Renewal,5105640152,14.07.2017,Renewal & Enforcement,Stationery,6.26,SUPPLIES TEAM LTD
Revenue,Place,Cultural and Related Services,Open Spaces,5105640771,14.07.2017,Fort Victoria,Stationery,14.96,SUPPLIES TEAM LTD
Revenue,Place,Cultural and Related Services,Open Spaces,5105640152,14.07.2017,Fort Victoria,Stationery,11.27,SUPPLIES TEAM LTD
Revenue,Place,Cultural and Related Services,Library Service,5105640807,14.07.2017,Public Libraries Central,Stationery,2.46,SUPPLIES TEAM LTD
Revenue,Place,Planning services,Building Control,5105640797,19.07.2017,Building Control,Stationery,3.43,SUPPLIES TEAM LTD
Revenue,Place,Planning services,Building Control,5105640797,19.07.2017,Building Control,Stationery,16.02,SUPPLIES TEAM LTD
Revenue,Resources,Central Services,Support Services,5105640797,19.07.2017,ICT CCR,Stationery,1.60,SUPPLIES TEAM LTD
Revenue,Childrens Services,Children's & Education Services,Special Schools & Alternative Provision,5105640149,12.07.2017,Workshop Initiative Support in Education,Stationery,1.48,SUPPLIES TEAM LTD
Revenue,Place,Highways and Transport Services,Parking Services,5105640650,19.07.2017,Parking Management,Stationery,2.53,SUPPLIES TEAM LTD
Revenue,Place,Cultural and Related Services,Open Spaces,5105640650,19.07.2017,Parks/ Gardens Inspectors,Stationery,1.38,SUPPLIES TEAM LTD
Revenue,Place,Cultural and Related Services,Service Management and Support Services,5105640650,19.07.2017,Duke of Edingburgh Award,Stationery,1.38,SUPPLIES TEAM LTD
Revenue,Adult Services,Adult Social Care,Learning Disab Supp (to be reallocated),5105640701,14.07.2017,40 Venner Avenue,Stationery,1.38,SUPPLIES TEAM LTD
Revenue,Adult Services,Adult Social Care,Learning Disab Supp (to be reallocated),5105640705,14.07.2017,40 Venner Avenue,Stationery,1.63,SUPPLIES TEAM LTD
Revenue,Adult Services,Adult Social Care,Learning Disab Supp (to be reallocated),5105640701,14.07.2017,Seagulls,Stationery,12.65,SUPPLIES TEAM LTD
Revenue,Adult Services,Adult Social Care,Learning Disability Suppt-adults (18-64),5105640691,21.07.2017,No-Barriers,Stationery,12.65,SUPPLIES TEAM LTD
Revenue,Adult Services,Adult Social Care,Learning Disability Suppt-adults (18-64),5105640724,21.07.2017,No-Barriers,Stationery,1.63,SUPPLIES TEAM LTD
Revenue,Place,Cultural and Related Services,Library Service,5105640703,14.07.2017,Public Libraries Central,Stationery,1.63,SUPPLIES TEAM LTD
Revenue,Place,Cultural and Related Services,Library Service,5105640648,14.07.2017,Public Libraries Central,Stationery,8.28,SUPPLIES TEAM LTD
Revenue,Place,Cultural and Related Services,Library Service,5105640648,14.07.2017,Prison Library Service,Stationery,1.38,SUPPLIES TEAM LTD
Revenue,Place,Cultural and Related Services,Library Service,5105640703,14.07.2017,Prison Library Service,Stationery,3.26,SUPPLIES TEAM LTD
Revenue,Childrens Services,Children's & Education Services,Safeguarding Children/Young Peoples Svs,5105640429,14.07.2017,Fostering Team,Stationery,1.60,SUPPLIES TEAM LTD
Revenue,Place,Housing Services,Private Sector Housing Renewal,5105640429,14.07.2017,Renewal & Enforcement,Stationery,0.78,SUPPLIES TEAM LTD
Revenue,Childrens Services,Children's & Education Services,Management & Support Services,5105640430,14.07.2017,"Speech, Language and Communication",Stationery,12.93,SUPPLIES TEAM LTD
Revenue,Childrens Services,Children's & Education Services,Management & Support Services,5105640430,14.07.2017,"Speech, Language and Communication",Stationery,4.94,SUPPLIES TEAM LTD
Revenue,Childrens Services,Children's & Education Services,Special Schools & Alternative Provision,5105640427,19.07.2017,Island Learning Centre,Stationery,2.34,SUPPLIES TEAM LTD
Revenue,Childrens Services,Children's & Education Services,Special Schools & Alternative Provision,5105640427,19.07.2017,Island Learning Centre,Stationery,3.20,SUPPLIES TEAM LTD
Revenue,Childrens Services,Children's & Education Services,Special Schools & Alternative Provision,5105640427,19.07.2017,Island Learning Centre,Stationery,9.18,SUPPLIES TEAM LTD
Revenue,Childrens Services,Children's & Education Services,Special Schools & Alternative Provision,5105640427,19.07.2017,Island Learning Centre,Stationery,26.04,SUPPLIES TEAM LTD
Revenue,Childrens Services,Children's & Education Services,Special Schools & Alternative Provision,5105640427,19.07.2017,Island Learning Centre,Stationery,17.76,SUPPLIES TEAM LTD
Revenue,Adult Services,Adult Social Care,Commissioning & Service Delivery,5105642462,28.07.2017,Adult Social Care Enterprise House,Stationery,0.48,SUPPLIES TEAM LTD
Revenue,Adult Services,Adult Social Care,Commissioning & Service Delivery,5105642462,28.07.2017,Adult Social Care Enterprise House,Stationery,1.60,SUPPLIES TEAM LTD
Revenue,Adult Services,Adult Social Care,Commissioning & Service Delivery,5105642462,28.07.2017,Adult Social Care Enterprise House,Stationery,5.52,SUPPLIES TEAM LTD
Revenue,Place,Housing Services,Private Sector Housing Renewal,5105642011,28.07.2017,Renewal & Enforcement,Stationery,0.48,SUPPLIES TEAM LTD
Revenue,Resources,Central Services,Support Services,5105642011,28.07.2017,Corproate Business Hub,Stationery,0.38,SUPPLIES TEAM LTD
Revenue,Resources,Central Services,Support Services,5105642011,28.07.2017,Customer Accounts Shared Service Centre,Stationery,8.57,SUPPLIES TEAM LTD
Revenue,Resources,Parking Services,Off Street Parking,5105642011,28.07.2017,Parking Services,Stationery,8.57,SUPPLIES TEAM LTD
Revenue,Regeneration,Central Services,Support Services,5105642011,28.07.2017,"County Hall,Newport",Stationery,174.18,SUPPLIES TEAM LTD
Revenue,Regeneration,Central Services,Support Services,5105642011,28.07.2017,"County Hall,Newport",Stationery,173.60,SUPPLIES TEAM LTD
Revenue,Regeneration,Central Services,Support Services,5105642011,28.07.2017,"County Hall,Newport",Stationery,128.24,SUPPLIES TEAM LTD
Revenue,Regeneration,Central Services,Support Services,5105642011,28.07.2017,"County Hall,Newport",Stationery,133.20,SUPPLIES TEAM LTD
Revenue,Regeneration,Central Services,Support Services,5105642011,28.07.2017,"County Hall,Newport",Stationery,6.07,SUPPLIES TEAM LTD
Revenue,Regeneration,Central Services,Support Services,5105642011,28.07.2017,"County Hall,Newport",Stationery,105.57,SUPPLIES TEAM LTD
Revenue,Regeneration,Central Services,Support Services,5105642011,28.07.2017,"County Hall,Newport",Stationery,10.64,SUPPLIES TEAM LTD
Revenue,Regeneration,Central Services,Support Services,5105642011,28.07.2017,"County Hall,Newport",Stationery,2.80,SUPPLIES TEAM LTD
Revenue,Place,Cultural and Related Services,Library Service,5105641870,28.07.2017,Public Libraries Central,Stationery,0.86,SUPPLIES TEAM LTD
Revenue,Childrens Services,Children's & Education Services,Safeguarding Children/Young Peoples Svs,5105641894,28.07.2017,Fostering Team,Stationery,8.62,SUPPLIES TEAM LTD
Revenue,Resources,Central Services,Support Services,5105641894,28.07.2017,Customer Accounts Shared Service Centre,Stationery,8.57,SUPPLIES TEAM LTD
Revenue,Childrens Services,Children's & Education Services,Safeguarding Children/Young Peoples Svs,5105641894,28.07.2017,Fostering Team,Stationery,1.20,SUPPLIES TEAM LTD
Revenue,Childrens Services,Children's & Education Services,Safeguarding Children/Young Peoples Svs,5105641894,28.07.2017,Fostering Team,Stationery,1.23,SUPPLIES TEAM LTD
Revenue,Place,Housing Services,Private Sector Housing Renewal,5105628547,05.07.2017,Renewal & Enforcement,Stationery,-3.10,SUPPLIES TEAM LTD
Revenue,Place,Cultural and Related Services,Library Service,5105638977,05.07.2017,Public Libraries Central,Stationery,85.70,SUPPLIES TEAM LTD
Revenue,Childrens Services,Children's & Education Services,Safeguarding Children/Young Peoples Svs,5105639031,07.07.2017,Fostering Team,Stationery,1.23,SUPPLIES TEAM LTD
Revenue,Childrens Services,Children's & Education Services,Safeguarding Children/Young Peoples Svs,5105639031,07.07.2017,Fostering Team,Stationery,19.34,SUPPLIES TEAM LTD
Revenue,Childrens Services,Children's & Education Services,Safeguarding Children/Young Peoples Svs,5105639031,07.07.2017,Fostering Team,Stationery,7.74,SUPPLIES TEAM LTD
Revenue,Childrens Services,Children's & Education Services,Safeguarding Children/Young Peoples Svs,5105639031,07.07.2017,Early Help Team,Stationery,3.87,SUPPLIES TEAM LTD
Revenue,Childrens Services,Children's & Education Services,Special Schools & Alternative Provision,5105639047,05.07.2017,Island Learning Centre,Stationery,51.42,SUPPLIES TEAM LTD
Revenue,Childrens Services,Children's & Education Services,Special Schools & Alternative Provision,5105639047,05.07.2017,Island Learning Centre,Stationery,2.92,SUPPLIES TEAM LTD
Revenue,Childrens Services,Children's & Education Services,Special Schools & Alternative Provision,5105639047,05.07.2017,Island Learning Centre,Stationery,3.90,SUPPLIES TEAM LTD
Revenue,Childrens Services,Children's & Education Services,Special Schools & Alternative Provision,5105639047,05.07.2017,Island Learning Centre,Stationery,0.53,SUPPLIES TEAM LTD
Revenue,Childrens Services,Children's & Education Services,Special Schools & Alternative Provision,5105639047,05.07.2017,Island Learning Centre,Stationery,1.62,SUPPLIES TEAM LTD
Revenue,Childrens Services,Children's & Education Services,Special Schools & Alternative Provision,5105639047,05.07.2017,Island Learning Centre,Stationery,2.92,SUPPLIES TEAM LTD
Revenue,Adult Services,Adult Social Care,Commissioning & Service Delivery,5105639405,12.07.2017,Adult Social Care Enterprise House,Stationery,51.42,SUPPLIES TEAM LTD
Revenue,Childrens Services,Children's & Education Services,Youth Justice,5105640152,14.07.2017,Youth Offending Team,Stationery,17.14,SUPPLIES TEAM LTD
Revenue,Place,Environmental & Regulatory Services,"Cemetery, Cremation & Mortuary Services",5105640799,14.07.2017,Crematorium,Stationery,8.38,SUPPLIES TEAM LTD
Revenue,Place,Environmental & Regulatory Services,"Cemetery, Cremation & Mortuary Services",5105640799,14.07.2017,Crematorium,Stationery,1.98,SUPPLIES TEAM LTD
Revenue,Place,Environmental & Regulatory Services,"Cemetery, Cremation & Mortuary Services",5105640799,14.07.2017,Crematorium,Stationery,4.06,SUPPLIES TEAM LTD
Revenue,Place,Environmental & Regulatory Services,"Cemetery, Cremation & Mortuary Services",5105640799,14.07.2017,Crematorium,Stationery,2.47,SUPPLIES TEAM LTD
Revenue,Place,Environmental & Regulatory Services,"Cemetery, Cremation & Mortuary Services",5105640799,14.07.2017,Crematorium,Stationery,1.90,SUPPLIES TEAM LTD
Revenue,Place,Environmental & Regulatory Services,"Cemetery, Cremation & Mortuary Services",5105640799,14.07.2017,Crematorium,Stationery,17.14,SUPPLIES TEAM LTD
Revenue,Place,Environmental & Regulatory Services,Regulatory Services,5105640307,21.07.2017,Licensing Services,Stationery,8.98,SUPPLIES TEAM LTD
Revenue,Place,Environmental & Regulatory Services,Regulatory Services,5105640307,21.07.2017,Licensing Services,Stationery,11.09,SUPPLIES TEAM LTD
Revenue,Place,Environmental & Regulatory Services,Regulatory Services,5105640307,21.07.2017,Licensing Services,Stationery,42.85,SUPPLIES TEAM LTD
Revenue,Place,Environmental & Regulatory Services,Regulatory Services,5105640307,21.07.2017,Licensing Services,Stationery,3.48,SUPPLIES TEAM LTD
Revenue,Place,Environmental & Regulatory Services,Regulatory Services,5105640307,21.07.2017,Licensing Services,Stationery,8.98,SUPPLIES TEAM LTD
Revenue,Place,Environmental & Regulatory Services,Regulatory Services,5105640307,21.07.2017,Licensing Services,Stationery,4.94,SUPPLIES TEAM LTD
Revenue,Public Health,Public Health,Discretionary,5105640307,21.07.2017,Public Health Core Non Prescribed,Stationery,17.14,SUPPLIES TEAM LTD
Revenue,Place,Environmental & Regulatory Services,Regulatory Services,5105640307,21.07.2017,Licensing Services,Stationery,3.11,SUPPLIES TEAM LTD
Revenue,Place,Environmental & Regulatory Services,Regulatory Services,5105640307,21.07.2017,Licensing Services,Stationery,0.96,SUPPLIES TEAM LTD
Revenue,Public Health,Public Health,Discretionary,5105640307,21.07.2017,Public Health Core Non Prescribed,Stationery,1.71,SUPPLIES TEAM LTD
Revenue,Place,Environmental & Regulatory Services,Regulatory Services,5105640307,21.07.2017,Licensing Services,Stationery,0.53,SUPPLIES TEAM LTD
Revenue,Place,Environmental & Regulatory Services,Regulatory Services,5105640307,21.07.2017,Licensing Services,Stationery,1.23,SUPPLIES TEAM LTD
Revenue,Place,Environmental & Regulatory Services,Regulatory Services,5105640307,21.07.2017,Licensing Services,Stationery,1.80,SUPPLIES TEAM LTD
Revenue,Place,Environmental & Regulatory Services,Regulatory Services,5105640307,21.07.2017,Licensing Services,Stationery,0.19,SUPPLIES TEAM LTD
Revenue,Adult Services,Adult Social Care,Central Codes (to be reallocated),5105640308,19.07.2017,Adelaide Resource Centre,Stationery,17.14,SUPPLIES TEAM LTD
Revenue,Adult Services,Adult Social Care,Central Codes (to be reallocated),5105640308,19.07.2017,Adelaide Resource Centre,Stationery,1.23,SUPPLIES TEAM LTD
Revenue,Adult Services,Adult Social Care,Central Codes (to be reallocated),5105640308,19.07.2017,Adelaide Resource Centre,Stationery,1.17,SUPPLIES TEAM LTD
Revenue,Adult Services,Adult Social Care,Central Codes (to be reallocated),5105640308,19.07.2017,Adelaide Resource Centre,Stationery,2.15,SUPPLIES TEAM LTD
Revenue,Adult Services,Adult Social Care,Central Codes (to be reallocated),5105640308,19.07.2017,Adelaide Resource Centre,Stationery,2.52,SUPPLIES TEAM LTD
Revenue,Adult Services,Adult Social Care,Central Codes (to be reallocated),5105640308,19.07.2017,Adelaide Resource Centre,Stationery,0.24,SUPPLIES TEAM LTD
Revenue,Adult Services,Adult Social Care,Central Codes (to be reallocated),5105640308,19.07.2017,Adelaide Resource Centre,Stationery,5.34,SUPPLIES TEAM LTD
Revenue,Adult Services,Adult Social Care,Central Codes (to be reallocated),5105640308,19.07.2017,Adelaide Resource Centre,Stationery,4.60,SUPPLIES TEAM LTD
Revenue,Adult Services,Adult Social Care,Central Codes (to be reallocated),5105640308,19.07.2017,Adelaide Resource Centre,Stationery,0.34,SUPPLIES TEAM LTD
Revenue,Adult Services,Adult Social Care,Central Codes (to be reallocated),5105640308,19.07.2017,Adelaide Resource Centre,Stationery,3.43,SUPPLIES TEAM LTD
Revenue,Adult Services,Adult Social Care,Central Codes (to be reallocated),5105640308,19.07.2017,Adelaide Resource Centre,Stationery,1.44,SUPPLIES TEAM LTD
Revenue,Adult Services,Adult Social Care,Central Codes (to be reallocated),5105640308,19.07.2017,Adelaide Resource Centre,Stationery,2.28,SUPPLIES TEAM LTD
Revenue,Place,Planning services,Management & Support Services,5105640797,19.07.2017,Planning Management,Stationery,51.42,SUPPLIES TEAM LTD
Revenue,Place,Planning services,Management & Support Services,5105640797,19.07.2017,Planning Management,Stationery,37.38,SUPPLIES TEAM LTD
Revenue,Place,Planning services,Management & Support Services,5105640797,19.07.2017,Planning Management,Stationery,18.78,SUPPLIES TEAM LTD
Revenue,Place,Planning services,Management & Support Services,5105640797,19.07.2017,Planning Management,Stationery,3.20,SUPPLIES TEAM LTD
Revenue,Place,Planning services,Management & Support Services,5105640797,19.07.2017,Planning Management,Stationery,6.99,SUPPLIES TEAM LTD
Revenue,Place,Planning services,Management & Support Services,5105640797,19.07.2017,Planning Management,Stationery,0.53,SUPPLIES TEAM LTD
Revenue,Place,Planning services,Management & Support Services,5105640797,19.07.2017,Planning Management,Stationery,6.57,SUPPLIES TEAM LTD
Revenue,Place,Planning services,Management & Support Services,5105640797,19.07.2017,Planning Management,Stationery,6.03,SUPPLIES TEAM LTD
Revenue,Place,Planning services,Management & Support Services,5105640797,19.07.2017,Planning Management,Stationery,0.53,SUPPLIES TEAM LTD
Revenue,Place,Central Services,Central Services to the Public,5105640797,19.07.2017,Coroner,Stationery,1.98,SUPPLIES TEAM LTD
Revenue,Place,Central Services,Central Services to the Public,5105640797,19.07.2017,Coroner,Stationery,0.81,SUPPLIES TEAM LTD
Revenue,Place,Central Services,Central Services to the Public,5105640797,19.07.2017,Coroner,Stationery,68.56,SUPPLIES TEAM LTD
Revenue,Place,Central Services,Central Services to the Public,5105640797,19.07.2017,Coroner,Stationery,7.38,SUPPLIES TEAM LTD
Revenue,Place,Central Services,Central Services to the Public,5105640797,19.07.2017,Coroner,Stationery,1.23,SUPPLIES TEAM LTD
Revenue,Place,Central Services,Central Services to the Public,5105640797,19.07.2017,Coroner,Stationery,0.38,SUPPLIES TEAM LTD
Revenue,Place,Central Services,Central Services to the Public,5105640797,19.07.2017,Coroner,Stationery,0.17,SUPPLIES TEAM LTD
Revenue,Place,Central Services,Central Services to the Public,5105640797,19.07.2017,Coroner,Stationery,2.47,SUPPLIES TEAM LTD
Revenue,Place,Central Services,Central Services to the Public,5105640797,19.07.2017,Coroner,Stationery,1.39,SUPPLIES TEAM LTD
Revenue,Place,Central Services,Central Services to the Public,5105640797,19.07.2017,Coroner,Stationery,1.92,SUPPLIES TEAM LTD
Revenue,Place,Central Services,Central Services to the Public,5105640797,19.07.2017,Coroner,Stationery,9.30,SUPPLIES TEAM LTD
Revenue,Place,Central Services,Central Services to the Public,5105640797,19.07.2017,Coroner,Stationery,3.80,SUPPLIES TEAM LTD
Revenue,Place,Central Services,Central Services to the Public,5105640797,19.07.2017,Coroner,Stationery,0.24,SUPPLIES TEAM LTD
Revenue,Childrens Services,Children's & Education Services,Management & Support Services,5105640149,12.07.2017,Specialist Service Business Admin,Stationery,13.05,SUPPLIES TEAM LTD
Revenue,Childrens Services,Children's & Education Services,Management & Support Services,5105640271,12.07.2017,Specialist Service Business Admin,Stationery,9.60,SUPPLIES TEAM LTD
Revenue,Childrens Services,Children's & Education Services,Management & Support Services,5105640149,12.07.2017,Specialist Service Business Admin,Stationery,26.04,SUPPLIES TEAM LTD
Revenue,Childrens Services,Children's & Education Services,Management & Support Services,5105640149,12.07.2017,Specialist Service Business Admin,Stationery,13.32,SUPPLIES TEAM LTD
Revenue,Place,Cultural and Related Services,Recreation and Sport,5105640815,14.07.2017,The Heights,Stationery,4.56,SUPPLIES TEAM LTD
Revenue,Place,Cultural and Related Services,Recreation and Sport,5105640815,14.07.2017,The Heights,Stationery,0.24,SUPPLIES TEAM LTD
Revenue,Place,Cultural and Related Services,Recreation and Sport,5105640815,14.07.2017,The Heights,Stationery,0.80,SUPPLIES TEAM LTD
Revenue,Place,Cultural and Related Services,Recreation and Sport,5105640815,14.07.2017,The Heights,Stationery,1.61,SUPPLIES TEAM LTD
Revenue,Adult Services,Adult Social Care,Learning Disab Supp (to be reallocated),5105640701,14.07.2017,The Laurels,Stationery,12.65,SUPPLIES TEAM LTD
Revenue,Adult Services,Adult Social Care,Central Codes (to be reallocated),5105640741,14.07.2017,Adelaide Resource Centre,Stationery,1.63,SUPPLIES TEAM LTD
Revenue,Adult Services,Adult Social Care,Central Codes (to be reallocated),5105640689,14.07.2017,Adelaide Resource Centre,Stationery,8.28,SUPPLIES TEAM LTD
Revenue,Resources,Central Services,Central Services to the Public,5105640306,21.07.2017,Council Tax,Stationery,0.94,SUPPLIES TEAM LTD
Revenue,Resources,Central Services,Central Services to the Public,5105640306,21.07.2017,Council Tax,Stationery,3.43,SUPPLIES TEAM LTD
Revenue,Childrens Services,Children's & Education Services,Management & Support Services,5105640305,12.07.2017,Specialist Service Business Admin,Stationery,85.70,SUPPLIES TEAM LTD
Revenue,Childrens Services,Children's & Education Services,Management & Support Services,5105640430,14.07.2017,Specialist Service Business Admin,Stationery,8.98,SUPPLIES TEAM LTD
Revenue,Childrens Services,Children's & Education Services,Management & Support Services,5105640430,14.07.2017,Specialist Service Business Admin,Stationery,18.80,SUPPLIES TEAM LTD
Revenue,Childrens Services,Children's & Education Services,Management & Support Services,5105640430,14.07.2017,Specialist Service Business Admin,Stationery,6.99,SUPPLIES TEAM LTD
Revenue,Childrens Services,Children's & Education Services,Management & Support Services,5105640430,14.07.2017,Specialist Service Business Admin,Stationery,4.76,SUPPLIES TEAM LTD
Revenue,Childrens Services,Children's & Education Services,Management & Support Services,5105640430,14.07.2017,Specialist Service Business Admin,Stationery,4.88,SUPPLIES TEAM LTD
Revenue,Childrens Services,Children's & Education Services,Management & Support Services,5105640430,14.07.2017,Specialist Service Business Admin,Stationery,12.64,SUPPLIES TEAM LTD
Revenue,Childrens Services,Children's & Education Services,Management & Support Services,5105640430,14.07.2017,Specialist Service Business Admin,Stationery,16.08,SUPPLIES TEAM LTD
Revenue,Childrens Services,Children's & Education Services,Management & Support Services,5105640430,14.07.2017,Specialist Service Business Admin,Stationery,18.27,SUPPLIES TEAM LTD
Revenue,Childrens Services,Children's & Education Services,Management & Support Services,5105640430,14.07.2017,Specialist Service Business Admin,Stationery,8.19,SUPPLIES TEAM LTD
Revenue,Resources,Central Services,Support Services,5105640310,12.07.2017,Payments Social Care Team,Stationery,0.39,SUPPLIES TEAM LTD
Revenue,Resources,Central Services,Support Services,5105640310,12.07.2017,Payments Social Care Team,Stationery,2.38,SUPPLIES TEAM LTD
Revenue,Resources,Central Services,Support Services,5105640310,12.07.2017,Payments Social Care Team,Stationery,0.27,SUPPLIES TEAM LTD
Revenue,Resources,Central Services,Support Services,5105640310,12.07.2017,Payments Social Care Team,Stationery,0.27,SUPPLIES TEAM LTD
Revenue,Resources,Central Services,Support Services,5105640310,12.07.2017,Payments Social Care Team,Stationery,0.94,SUPPLIES TEAM LTD
Revenue,Resources,Central Services,Central Services to the Public,5105642011,28.07.2017,Council Tax,Stationery,25.71,SUPPLIES TEAM LTD
Revenue,Resources,Central Services,Central Services to the Public,5105641894,28.07.2017,Council Tax,Stationery,25.71,SUPPLIES TEAM LTD
Revenue,Childrens Services,Children's & Education Services,Youth Justice,5105641894,28.07.2017,Youth Offending Team,Stationery,8.57,SUPPLIES TEAM LTD
Revenue,Resources,Central Services,Support Services,5105642024,28.07.2017,Payments Social Care Team,Stationery,1.00,SUPPLIES TEAM LTD
Revenue,Resources,Central Services,Support Services,5105638999,05.07.2017,Payments Social Care Team,Stationery,42.85,SUPPLIES TEAM LTD
Revenue,Place,Cultural and Related Services,Recreation and Sport,5105639290,07.07.2017,The Heights,Stationery,19.20,SUPPLIES TEAM LTD
Revenue,Resources,Central Services,Support Services,5105639031,07.07.2017,Help Centres Shared Service Centre,Stationery,7.52,SUPPLIES TEAM LTD
Revenue,Place,Planning services,Environmental Initiatives,5105641744,26.07.2017,A.O.N.B.,Stationery,1.71,SUPPLIES TEAM LTD
Revenue,Adult Services,Adult Social Care,Central Codes (to be reallocated),5105641320,21.07.2017,Adelaide Resource Centre,Stationery,1.60,SUPPLIES TEAM LTD
Revenue,Place,Planning services,Management & Support Services,5105641754,26.07.2017,Planning Management,Stationery,1.60,SUPPLIES TEAM LTD
Revenue,Resources,Central Services,Support Services,5105640152,14.07.2017,Help Centres Shared Service Centre,Stationery,17.14,SUPPLIES TEAM LTD
Revenue,Childrens Services,Children's & Education Services,Family Support Services,5105640456,14.07.2017,Strengthening Families,Payment to Private Contractors,"28,000.00",BARNARDO'S
Revenue,Childrens Services,Children's & Education Services,Other Education and Community Budget,5105639301,07.07.2017,Specialist Cross-Council Training,Training,30.00,BARNARDO'S
Revenue,Resources,Central Services,Support Services,5105641705,26.07.2017,Staff Benefits,Payment to Private Contractors,40.00,BARTON PRIMARY & EARLY YEARS
Revenue,Place,Cultural and Related Services,Recreation and Sport,5105639316,07.07.2017,Medina Leisure Centre,Consumable Cleaning Materials,25.94,LAKE CLEANING & CATERING SUPPLIES
Revenue,Place,Cultural and Related Services,Recreation and Sport,5105639316,07.07.2017,Medina Leisure Centre,Consumable Cleaning Materials,22.98,LAKE CLEANING & CATERING SUPPLIES
Revenue,Place,Cultural and Related Services,Recreation and Sport,5105639316,07.07.2017,Medina Leisure Centre,Consumable Cleaning Materials,7.65,LAKE CLEANING & CATERING SUPPLIES
Revenue,Place,Cultural and Related Services,Recreation and Sport,5105639316,07.07.2017,Medina Leisure Centre,Consumable Cleaning Materials,2.24,LAKE CLEANING & CATERING SUPPLIES
Revenue,Place,Cultural and Related Services,Recreation and Sport,5105639316,07.07.2017,Medina Leisure Centre,Consumable Cleaning Materials,4.44,LAKE CLEANING & CATERING SUPPLIES
Revenue,Place,Cultural and Related Services,Recreation and Sport,5105639316,07.07.2017,Medina Leisure Centre,Consumable Cleaning Materials,12.90,LAKE CLEANING & CATERING SUPPLIES
Revenue,Place,Cultural and Related Services,Recreation and Sport,5105639315,07.07.2017,Ryde Harbour,Consumable Cleaning Materials,43.63,LAKE CLEANING & CATERING SUPPLIES
Revenue,Place,Cultural and Related Services,Recreation and Sport,5105642289,28.07.2017,Medina Leisure Centre,Consumable Cleaning Materials,13.44,LAKE CLEANING & CATERING SUPPLIES
Revenue,Place,Cultural and Related Services,Recreation and Sport,5105642289,28.07.2017,Medina Leisure Centre,Consumable Cleaning Materials,20.76,LAKE CLEANING & CATERING SUPPLIES
Revenue,Place,Cultural and Related Services,Recreation and Sport,5105642289,28.07.2017,Medina Leisure Centre,Consumable Cleaning Materials,12.97,LAKE CLEANING & CATERING SUPPLIES
Revenue,Place,Cultural and Related Services,Recreation and Sport,5105642289,28.07.2017,Medina Leisure Centre,Consumable Cleaning Materials,14.56,LAKE CLEANING & CATERING SUPPLIES
Revenue,Place,Cultural and Related Services,Recreation and Sport,5105642289,28.07.2017,Medina Leisure Centre,Consumable Cleaning Materials,117.50,LAKE CLEANING & CATERING SUPPLIES
Revenue,Place,Cultural and Related Services,Recreation and Sport,5105642289,28.07.2017,Medina Leisure Centre,Consumable Cleaning Materials,10.96,LAKE CLEANING & CATERING SUPPLIES
Revenue,Adult Services,Adult Social Care,Learning Disab Supp (to be reallocated),5105642417,28.07.2017,Plean Dene,Operational Equipment,26.59,LAKE CLEANING & CATERING SUPPLIES
Revenue,Place,Cultural and Related Services,Recreation and Sport,5105638941,05.07.2017,Medina Leisure Centre,Stock Purchases,38.42,LAKE CLEANING & CATERING SUPPLIES
Revenue,Place,Cultural and Related Services,Recreation and Sport,5105638941,05.07.2017,Medina Leisure Centre,Stock Purchases,32.59,LAKE CLEANING & CATERING SUPPLIES
Revenue,Adult Services,Adult Social Care,Learning Disab Supp (to be reallocated),5105640711,14.07.2017,Plean Dene,Operational Equipment,45.09,LAKE CLEANING & CATERING SUPPLIES
Revenue,Childrens Services,Children's & Education Services,Children Looked After,5105638944,05.07.2017,Beaulieu House,General Materials,92.63,LAKE CLEANING & CATERING SUPPLIES
Revenue,Childrens Services,Children's & Education Services,Children Looked After,5105641411,21.07.2017,Beaulieu House,General Materials,99.10,LAKE CLEANING & CATERING SUPPLIES
Revenue,Place,Cultural and Related Services,Recreation and Sport,5105639101,07.07.2017,The Heights,Consumable Cleaning Materials,290.34,LAKE CLEANING & CATERING SUPPLIES
Revenue,Place,Cultural and Related Services,Recreation and Sport,5105641330,21.07.2017,The Heights,Consumable Cleaning Materials,104.21,LAKE CLEANING & CATERING SUPPLIES
Revenue,Place,Cultural and Related Services,Recreation and Sport,5105642291,28.07.2017,The Heights,Consumable Cleaning Materials,141.65,LAKE CLEANING & CATERING SUPPLIES
Revenue,Place,Cultural and Related Services,Recreation and Sport,5105639101,07.07.2017,The Heights,Catering Equipment,66.98,LAKE CLEANING & CATERING SUPPLIES
Revenue,Place,Cultural and Related Services,Recreation and Sport,5105642291,28.07.2017,The Heights,Catering Equipment,30.85,LAKE CLEANING & CATERING SUPPLIES
Revenue,Place,Cultural and Related Services,Recreation and Sport,5105638877,05.07.2017,Play Development,Advertising & Publicity,550.00,BEACON MEDIA LIMITED
Revenue,Adult Services,Adult Social Care,Support - Memory /Cognition-older people (65+),5105639624,12.07.2017,Memory & Cognition Nursing 65+,Charges from Independent Providers,"2,269.40",BEAUMONT LODGE LTD
Revenue,Adult Services,Adult Social Care,Learning Disability Suppt-adults (18-64),5105639900,12.07.2017,Learning Disability Residential 18-64,Charges from Independent Providers,"16,584.68",BEECHWOOD COLLEGE
Revenue,Place,Cultural and Related Services,Open Spaces,5105640458,14.07.2017,Rights of Way Operations,Payment to Private Contractors,500.00,BEMBRIDGE PARISH COUNCIL
Revenue,Resources,Central Services,Support Services,5105640982,19.07.2017,Litigation Costs,Legal Fees - Other Parties,696.42,REDACTED PERSONAL DATA
Revenue,Resources,Central Services,Support Services,5105641696,26.07.2017,Staff Benefits,Payment to Private Contractors,243.00,BERRY HILL CHILDCARE LIMITED
Revenue,Adult Services,Adult Social Care,Central Codes (to be reallocated),5105641752,26.07.2017,Gouldings Resource Centre,Fixtures and Fittings,187.24,BETA PAK LTD
Revenue,Adult Services,Adult Social Care,Central Codes (to be reallocated),5105638882,05.07.2017,Gouldings Resource Centre,Consumable Cleaning Materials,22.84,BETA PAK LTD
Revenue,Adult Services,Adult Social Care,Central Codes (to be reallocated),5105641776,26.07.2017,Gouldings Resource Centre,Consumable Cleaning Materials,70.72,BETA PAK LTD
Revenue,Adult Services,Adult Social Care,Learning Disab Supp (to be reallocated),5105642270,28.07.2017,Plean Dene,Operational Equipment,162.80,BETA PAK LTD
Revenue,Adult Services,Adult Social Care,Learning Disab Supp (to be reallocated),5105640108,12.07.2017,Plean Dene,Operational Equipment,76.74,BETA PAK LTD
Revenue,Adult Services,Adult Social Care,Learning Disab Supp (to be reallocated),5105640109,12.07.2017,Plean Dene,Operational Equipment,-76.74,BETA PAK LTD
Revenue,Adult Services,Adult Social Care,Learning Disab Supp (to be reallocated),5105640788,14.07.2017,Plean Dene,Operational Equipment,72.08,BETA PAK LTD
Revenue,Adult Services,Adult Social Care,Learning Disab Supp (to be reallocated),5105640822,21.07.2017,Saxonbury,Operational Equipment,6.99,BETA PAK LTD
Revenue,Adult Services,Adult Social Care,Learning Disab Supp (to be reallocated),5105640129,12.07.2017,Saxonbury,Operational Equipment,16.80,BETA PAK LTD
Revenue,Adult Services,Adult Social Care,Learning Disab Supp (to be reallocated),5105640179,12.07.2017,Saxonbury,Operational Equipment,284.41,BETA PAK LTD
Revenue,Adult Services,Adult Social Care,Learning Disab Supp (to be reallocated),5105640337,12.07.2017,Saxonbury,Operational Equipment,15.96,BETA PAK LTD
Revenue,Adult Services,Adult Social Care,Learning Disab Supp (to be reallocated),5105641409,21.07.2017,Saxonbury,Operational Equipment,22.37,BETA PAK LTD
Revenue,Adult Services,Adult Social Care,Learning Disab Supp (to be reallocated),5105640400,12.07.2017,Westminster House,Operational Equipment,56.65,BETA PAK LTD
Revenue,Adult Services,Adult Social Care,Learning Disab Supp (to be reallocated),5105640663,14.07.2017,Westminster House,Operational Equipment,4.09,BETA PAK LTD
Revenue,Adult Services,Adult Social Care,Learning Disab Supp (to be reallocated),5105641759,26.07.2017,Westminster House,Operational Equipment,86.04,BETA PAK LTD
Revenue,Adult Services,Adult Social Care,Learning Disab Supp (to be reallocated),5105642426,28.07.2017,Saxonbury,Operational Equipment,135.59,BETA PAK LTD
Revenue,Adult Services,Adult Social Care,Learning Disab Supp (to be reallocated),5105638886,05.07.2017,Plean Dene,Operational Equipment,106.38,BETA PAK LTD
Revenue,Adult Services,Adult Social Care,Learning Disab Supp (to be reallocated),5105641013,21.07.2017,Plean Dene,Operational Equipment,-19.50,BETA PAK LTD
Revenue,Adult Services,Adult Social Care,Learning Disab Supp (to be reallocated),5105641408,28.07.2017,Plean Dene,Operational Equipment,4.66,BETA PAK LTD
Revenue,Adult Services,Adult Social Care,Learning Disab Supp (to be reallocated),5105640913,26.07.2017,31 Carter Avenue,Operational Equipment,69.41,BETA PAK LTD
Revenue,Adult Services,Adult Social Care,Learning Disab Supp (to be reallocated),5105641014,21.07.2017,31 Carter Avenue,Operational Equipment,-9.75,BETA PAK LTD
Revenue,Adult Services,Adult Social Care,Learning Disab Supp (to be reallocated),5105638884,05.07.2017,40 Venner Avenue,Operational Equipment,231.29,BETA PAK LTD
Revenue,Adult Services,Adult Social Care,Learning Disab Supp (to be reallocated),5105641015,21.07.2017,40 Venner Avenue,Operational Equipment,-19.50,BETA PAK LTD
Revenue,Adult Services,Adult Social Care,Learning Disab Supp (to be reallocated),5105641771,28.07.2017,40 Venner Avenue,Operational Equipment,103.90,BETA PAK LTD
Revenue,Adult Services,Adult Social Care,Learning Disab Supp (to be reallocated),5105640660,14.07.2017,40 Venner Avenue,Operational Equipment,4.25,BETA PAK LTD
Revenue,Adult Services,Adult Social Care,Learning Disab Supp (to be reallocated),5105640339,14.07.2017,40 Venner Avenue,Operational Equipment,265.87,BETA PAK LTD
Revenue,Adult Services,Adult Social Care,Learning Disab Supp (to be reallocated),5105640126,12.07.2017,Seagulls,Operational Equipment,64.70,BETA PAK LTD
Revenue,Resources,Central Services,Support Services,5105640891,21.07.2017,Corporate Stores,General Materials,54.90,BETA PAK LTD
Revenue,Adult Services,Adult Social Care,Learning Disab Supp (to be reallocated),5105640284,14.07.2017,The Laurels,Operational Equipment,423.30,BETA PAK LTD
Revenue,Adult Services,Adult Social Care,Learning Disab Supp (to be reallocated),5105641012,21.07.2017,The Laurels,Operational Equipment,-19.50,BETA PAK LTD
Revenue,Adult Services,Adult Social Care,Central Codes (to be reallocated),5105641750,26.07.2017,Adelaide Resource Centre,Operational Equipment,34.56,BETA PAK LTD
Revenue,Adult Services,Adult Social Care,Central Codes (to be reallocated),5105638929,05.07.2017,Adelaide Resource Centre,Catering Purchases,18.69,BETA PAK LTD
Revenue,Adult Services,Adult Social Care,Central Codes (to be reallocated),5105639099,07.07.2017,Adelaide Resource Centre,Consumable Cleaning Materials,307.98,BETA PAK LTD
Revenue,Adult Services,Adult Social Care,Central Codes (to be reallocated),5105639071,07.07.2017,Adelaide Resource Centre,Consumable Cleaning Materials,4.44,BETA PAK LTD
Revenue,Adult Services,Adult Social Care,Central Codes (to be reallocated),5105638969,05.07.2017,Adelaide Resource Centre,Consumable Cleaning Materials,14.60,BETA PAK LTD
Revenue,Adult Services,Adult Social Care,Central Codes (to be reallocated),5105641788,26.07.2017,Adelaide Resource Centre,Consumable Cleaning Materials,33.25,BETA PAK LTD
Revenue,Adult Services,Adult Social Care,Central Codes (to be reallocated),5105641753,26.07.2017,Adelaide Resource Centre,Consumable Cleaning Materials,348.37,BETA PAK LTD
Revenue,Adult Services,Adult Social Care,Central Codes (to be reallocated),5105640664,14.07.2017,Adelaide Resource Centre,Consumable Cleaning Materials,401.80,BETA PAK LTD
